Workbook

Sheet Information
A1: Information
B2: Based on Alklaline A-Series from NEL and Haber Bosch from Haldor Topsoe
B3: Economic Analysis done by Massimiliano Cervo and Ed Bodmer with Excel, with Matlab and Information from Global Solar Atlas, HiSys
B4: Cost Approximations done with Lead Software
B5: Oxygen Sales Revenue is not considered in this Analysis.
B6: Based on AdAstra Project it could improve the IRR of the Overall Project Leveling the Ammonia Price
B7: 79% of Ammonia Demand for Fertilizer
B8: CAGR 1.9% p.a for Ammonia Demand
B9: Tipical Ammonia Plant produced 1500 Tn/Day
B10: Mass and Energy Balance done with Sci Kit Learn with Curve Optimiser
B11: Business Case for Investors -> Trasnporting Renewable Energy Overseas in the way of Ammonia
B12: Ammonia is currently shipped at -33 Celsius and Ambient Pressure in LPG ships.
B13: Shipping Cost Depends on shipping distance and speed.
B14: Deadweight Tonnage is 90% of cargo weight.
B15: Shipping Cost -> 43 to 59 EUR/TnNH3 Distance: 13500 km
B16: China consumes 33.7% of Global Ammonia Production
B17: Europe Consumes 21.5% of Global Ammonia Production.
B20: Inputs for the simulation
D21: Energy Load Curves vs Time
D22: Electricity Costs
D23: Component CapEx + Size with Economies of Scale
D24: OpEx vs Time
D25: WorldWide Data 2021
B27: Renewable Energy
D28: Unregulated Market | E28: USD/MWh | F28: 34.88
D29: Regulated Market | E29: USD/MWh | F29: 11.02
D31: Peixoto -> Installed CapEx for Solar | E31: USD/MW | F31: 150000
B33: Electrolysis Plant
D34: Capacity | E34: MW | F34: 400
D35: System CapEx | E35: USD/kWe | F35: 630
D36: Electrolyzer Stack Weighting Factor | E36: % | F36: 0.46
D37: Plant Lifetime | E37: Years | F37: 25
D38: Stack Lifetime | E38: Hours | F38: 67500
D39: Electrolyzer Load Factor - Maximum Possible | E39: % | F39: 0.96
D40: Electrolyzer Efficiency | E40: kWh/kg | F40: 56
D41: Learning Curve for Stack Replacement | E41: % | F41: 0.01
D42: OpEx as a Function of CapEx | E42: % | F42: 0.015
D43: Degradation of the Stack for Electricity Use | E43: % p.a. | F43: 0.01
D44: Water Requirement | E44: L/m3H2 | F44: 1
D45: Area for 400 MW | E45: km2 | F45: 30
D46: Operating Pressure | E46: Bar | F46: 5
D47: O2:H2 Mass Ratio | E47: Ratio | F47: 8:1
D48: Largest Size Unit | E48: MW | F48: 20
D49: Water Cost | E49: USD/m3 | F49: 0.5
B51: Economic Inputs
D52: Inflation | E52: % p.a. | F52: 0.015
D53: Tax Rate | E53: % | F53: 0.25
D54: Cost of Equity | E54: % | F54: 0.12
D55: Cost of Debt | E55: % | F55: 0.062
D56: Interest Rate - Same as cost of Debt | E56: % | F56: =F55 -> 0.062
D57: Ideal Debt Amount in % | E57: % | F57: 0.7
D58: Maximum Equity % possible | E58: % | F58: 0.3
B60: Ammonia - Haber Bosch
D61: Working Pressure | E61: Bar | F61: 150
D62: Operating Temperature | E62: Celsius | F62: 400
D63: Conversion Efficiency | E63: % | F63: 0.97
D64: Catalyst Lifetime | E64: Hours | F64: 80000
D65: Catalyst Replacement Cost as % of CapEx | E65: % | F65: 0.3
D66: H2:N2 Mass Ratio | E66: Ratio | F66: 6:28
D67: Power Consumption for the Haber Bosch Process | E67: MWh/TnNH3 | F67: 0.648
D68: Load Factor | E68: % | F68: 96%
D69: Spilled Energy | E69: % | F69: 0.4%
D70: Air Separation Unit CapEx | E70: USD/TnN2 | F70: 22.2
D71: Haber Bosch Reactor CapEx | E71: USD/TnNH3 | F71: 3018
D72: Air Separation Unit Power Consumption | E72: MWh/TnNH3 | F72: 0.90
D73: Minimum Load | E73: % | F73: 50%
B75: Compression
D76: Hydrogen Compression Efficiency | E76: % | F76: 70%
D77: Nitrogen Compression Efficiency | E77: % | F77: 0.85
D78: Nitrogen Amount in Air for Every Tonne | E78: Tn | F78: 0.756
D79: Oxygen Amount in Air for Every Tonne | E79: Tn | F79: 0.231
D80: CapEx | E80: USD/kW | F80: 200
D81: Power Consumption | E81: MWh/TnNH3 | F81: 1
D82: Nitrogen Compression Stages | E82: Stages | F82: 5
D83: Final Pressure For N2 and H2 | E83: Bar | F83: 150
B85: Cooling Unit
D86: Water Consumption | E86: TnH20/TnNH3 | F86: 170
B88: Additional
D89: EPC as % of CapEx | E89: % | F89: 0.28
D90: Cost of Services and Civil Work as % of TCI | E90: % | F90: 0.1
B92: Accronyms
D93: PEC = Purchased Equipment Cost
D94: TCI = Total Capitasl Invested
D95: ASU = Air Separation Unit
D96: LCOE = Levelized Cost of Energy
D97: OpEx = Operating Expenditures
D98: WACC = Weighted Average Cost of Capital
D99: p.a. = Per Annum
D100: CapEx = Capital Expenditures
D101: LCOA = Levelized Cost of Ammonia
D102: LCOH = Levelized Cost of Hydrogen
B104: Benchmark Prices
D105: Target Electricity Price | E105: USD/MWh | F105: 20
D106: Maximum Electricity Price | E106: USD/MWh | F106: 35
D107: Levelized cost of Hydrogen | E107: USD/kg | F107: 2
D108: Minimum Ammonia Price in Spot Market | E108: USD/TnNH3 | F108: 300
D109: Maximum Ammonia Price in Spot Market | E109: USD/TnNH3 | F109: 500
B111: Carbon Footprint
D112: Natural Gas Required for Ammonia production Formula | E112: = 25000 * X / 200
D113: Emissions Mitigated Only for the Haber Bosch | E113: = 68000 * X / 25000
B115: Storage Unit
D116: Storage Pressure | E116: Bar | F116: 18
D117: Double Isolation | E117: m | F117: 1
D118: Suggested Storage Limit | E118: Days | F118: 30
D119: Freeboard | E119: % | F119: 0.1
D120: Height for 9000 Tn | E120: m | F120: 22
D121: Widht for 9000 Tn | E121: m | F121: 29
D122: Boil-Off | E122: % p.day | F122: 0.0003
D123: CapEx | E123: USD/TnNH3 | F123: 728
D124: Fix OpEx as % of CapEx | E124: % p.a. | F124: 4
D125: OpEx Variable | E125: USD/TnNH3 | F125: 0.0012
D126: Lifetime | E126: Years | F126: 30
B128: Stoichiomestry
D129: Multiplying Factor Calculating N2 from H2 | E129: Factor | F129: 4.6
D130: Multiplying Factor to Calculate NH3 from H2 | E130: Factor | F130: 5.6
D132: Nitrogen Density | E132: kg/m3 | F132: 1.15
D133: Hydrogen Density | E133: kg/m3 | F133: 0.082
B135: Equations Based on Economies of Scale for Haber Bosch based on Brown
D136: CAPEX synthesis loop = 23850000 * Capacity (TnNH3/day)^-1.340 + 173500
D138: CAPEX asu = 1606000 * Capacity (TnN2/day)^-0.6249 + 9318
D140: CAPEX nh3 storage = 46600 * Capacity (TnNH3)^-0.8636 + 536.9
B142: PV Information from Vendors
C143: Fixed Titled
D144: Maximum CapEx | E144: USD/kWp | F144: 678 | J144: kWp | L144: 1
D145: Minimum CapEx | E145: USD/kWp | F145: 505 | J145: kWh | L145: 0.28 | M145: =L145*8760 -> 2452.8
D146: Fix OpEx Max | E146: USD/kWp p.a. | F146: 15.44 | J146: Cost Cap | L146: 0.035
D147: Fix OpEx Min | E147: USD/kWp p.a. | F147: 9.08 | J147: Capital | L147: =L144*F152 -> 555
D148: Lifetime | E148: Years | F148: 30 | J148: Recovery | L148: =PMT(L146,F155,-1) -> 0.05437133161
J149: CCR | L149: =L147*L148 -> 30.17608904
C150: Single Axis Tracking | G150: vs Tilted | J150: O&M | L150: =F154 -> 9.99
D151: Maximum CapEx | E151: USD/kWp | F151: 746 | G151: =F151/F144 -> 1.100294985 | J151: Total Cost | L151: =L149+L150 -> 40.16608904
D152: Minimum CapEx | E152: USD/kWp | F152: 555 | G152: =F152/F145 -> 1.099009901 | J152: Cost/kWh | L152: =L151/M145 -> 0.01637560708
D153: Fix OpEx Max | E153: USD/kWp p.a. | F153: 17.55 | G153: =F153/F146 -> 1.136658031 | J153: Cost/MWH | L153: =L152*1000 -> 16.37560708
D154: Fix OpEx Min | E154: USD/kWp p.a. | F154: 9.99 | G154: =F154/F147 -> 1.100220264
D155: Lifetime | E155: Years | F155: 30
D157: Degradation | E157: % p.a. | F157: 0.005
B159: Wind Onshore from Vestas
D160: CapEx | E160: USD/kWp | F160: 1345
D161: Fix OpEx as % of CapEx | E161: % p.a. | F161: 0.02
D162: Lifetime | E162: Year | F162: 25

Sheet Basic Flow Diagram
B1: Power to Ammonia configuration. Commercially available today, Hydrogen compression can be done in one cycle vs the one from nitrgoen in 5 stages. LT = Low Temperature <100. HT = High Temperature >150
B2: Green Arrows mean Electricity Flow
B3: Blue arrows mean the hydrogen ammonia flow.
B4: Orange arrows are waste heat.
B5: Red arrows are for the ammonia.

Sheet Diagrams
B39: Nitrogen Cost | D39: ='Levelized Cost'!F166 -> 5684984.853
B40: Hydrogen Cost | D40: ='Levelized Cost'!F159 -> 129286648.1
G59: Ammonia LCOA | I59: ='Levelized Cost'!F143 -> 477.7701839

Sheet Levelized Cost
A1: Green Ammonia Pre-Feasibility | F1: Cost of Electricity | G1: USD/MWH | H1: =F13 -> 21
F2: Cost of Hydrogen | G2: USD/kg | H2: =F70 -> 2.052183334
F3: Cost of Compression | G3: USD/kg | H3: =F90 -> 0.1224767399
F4: Cost of Air Separation | G4: USD/NH3 | H4: =F111 -> 20.78783138
F5: Cost of Ammonia | G5: USD/NH3 | H5: =F143 -> 477.7701839
B9: Electrolyzer Project
D10: Project Lifetime | E10: Years | F10: 25
C12: Power Scenarios
D13: Power Cost Selected | E13: USD/MWh | F13: =INDEX(F15:F17,K13) -> 21 | K13: 3
D15: Regulated Market | E15: USD/MWh | F15: 11.02
D16: Unregulated Market | E16: USD/MWh | F16: 34.88
D17: Ownership | E17: USD/MWh | F17: 21
D18: Total Power Required for the Project | E18: MWh/Yr | F18: =F42+F84+(F121*F116) -> 3907908.864
C20: Electrolysis Plant
D21: Electrolyser Capacity | E21: MW | F21: 400
D22: Stack Weight - % of CapEx | E22: % | F22: 0.46
D23: Load Factor | E23: % | F23: 0.96
D24: Efficiency | E24: kWh/kgH2 | F24: 56 | K24: Power Schedule
D25: Learning Curve | E25: % p.a. | F25: 0.01 | J25: Period | L25: 0 | M25: 1 | N25: 2 | O25: 3 | P25: 4 | Q25: 5 | R25: 6 | S25: 7 | T25: 8 | U25: 9 | V25: 10 | W25: 11 | X25: 12 | Y25: 13 | Z25: 14 | AA25: 15 | AB25: 16 | AC25: 17 | AD25: 18 | AE25: 19 | AF25: 20 | AG25: 21 | AH25: 22 | AI25: 23 | AJ25: 24 | AK25: 25 | AL25: 26 | AM25: 27 | AN25: 28 | AO25: 29 | AP25: 30
D26: Degradation of the Stack | E26: % p.a. | F26: 0.01 | J26: Flag | M26: =M37 -> TRUE | N26: =N37 -> TRUE | O26: TRUE | P26: TRUE | Q26: TRUE | R26: TRUE | S26: TRUE | T26: TRUE | U26: TRUE | V26: TRUE | W26: TRUE | X26: TRUE | Y26: TRUE | Z26: TRUE | AA26: TRUE | AB26: TRUE | AC26: TRUE | AD26: TRUE | AE26: TRUE | AF26: TRUE | AG26: TRUE | AH26: TRUE | AI26: TRUE | AJ26: TRUE | AK26: TRUE | AL26: FALSE | AM26: FALSE | AN26: FALSE | AO26: FALSE | AP26: FALSE
D27: Water Requirement | E27: L/m3 | F27: 1 | J27: Energy Consumption | M27: =$F$42 -> 3329280 | N27: =$F$42 -> 3329280 | O27: 3329280 | P27: 3329280 | Q27: 3329280 | R27: 3329280 | S27: 3329280 | T27: 3329280 | U27: 3329280 | V27: 3329280 | W27: 3329280 | X27: 3329280 | Y27: 3329280 | Z27: 3329280 | AA27: 3329280 | AB27: 3329280 | AC27: 3329280 | AD27: 3329280 | AE27: 3329280 | AF27: 3329280 | AG27: 3329280 | AH27: 3329280 | AI27: 3329280 | AJ27: 3329280 | AK27: 3329280 | AL27: 3329280 | AM27: 3329280 | AN27: 3329280 | AO27: 3329280 | AP27: 3329280
D28: Water Requirement Conversion | E28: L/kg | F28: 11 | J28: Degradation Index | L28: =F26 -> 0.01 | M28: =1*(1+L28) -> 1.01 | N28: =M28*(1+$L$28) -> 1.0201 | O28: =N28*(1+$L$28) -> 1.030301 | P28: 1.04060401 | Q28: 1.05101005 | R28: 1.061520151 | S28: 1.072135352 | T28: 1.082856706 | U28: 1.093685273 | V28: 1.104622125 | W28: 1.115668347 | X28: 1.12682503 | Y28: 1.13809328 | Z28: 1.149474213 | AA28: 1.160968955 | AB28: 1.172578645 | AC28: 1.184304431 | AD28: 1.196147476 | AE28: 1.20810895 | AF28: 1.22019004 | AG28: 1.23239194 | AH28: 1.24471586 | AI28: 1.257163018 | AJ28: 1.269734649 | AK28: 1.282431995 | AL28: 1.295256315 | AM28: 1.308208878 | AN28: 1.321290967 | AO28: 1.334503877 | AP28: 1.347848915
D29: Area | E29: km2 | F29: 30 | J29: Real Energy Required | M29: =M28*M27 -> 3362572.8 | N29: =N28*N27 -> 3396198.528 | O29: 3430160.513 | P29: 3464462.118 | Q29: 3499106.74 | R29: 3534097.807 | S29: 3569438.785 | T29: 3605133.173 | U29: 3641184.505 | V29: 3677596.35 | W29: 3714372.313 | X29: 3751516.036 | Y29: 3789031.197 | Z29: 3826921.509 | AA29: 3865190.724 | AB29: 3903842.631 | AC29: 3942881.057 | AD29: 3982309.868 | AE29: 4022132.967 | AF29: 4062354.296 | AG29: 4102977.839 | AH29: 4144007.618 | AI29: 4185447.694 | AJ29: 4227302.171 | AK29: 4269575.192 | AL29: 4312270.944 | AM29: 4355393.654 | AN29: 4398947.59 | AO29: 4442937.066 | AP29: 4487366.437
D30: Unit Size | E30: MW | F30: 20 | J30: PPA price | M30: =F13 -> 21 | N30: =M30 -> 21 | O30: =N30 -> 21 | P30: 21 | Q30: 21 | R30: 21 | S30: 21 | T30: 21 | U30: 21 | V30: 21 | W30: 21 | X30: 21 | Y30: 21 | Z30: 21 | AA30: 21 | AB30: 21 | AC30: 21 | AD30: 21 | AE30: 21 | AF30: 21 | AG30: 21 | AH30: 21 | AI30: 21 | AJ30: 21 | AK30: 21 | AL30: 21 | AM30: 21 | AN30: 21 | AO30: 21 | AP30: 21
D31: Stack Lifetime | E31: Hours | F31: 67500 | J31: Electricity Cost | M31: =M29*M30 -> 70614028.8 | N31: =N29*N30 -> 71320169.09 | O31: 72033370.78 | P31: 72753704.49 | Q31: 73481241.53 | R31: 74216053.95 | S31: 74958214.49 | T31: 75707796.63 | U31: 76464874.6 | V31: 77229523.34 | W31: 78001818.58 | X31: 78781836.76 | Y31: 79569655.13 | Z31: 80365351.68 | AA31: 81169005.2 | AB31: 81980695.25 | AC31: 82800502.2 | AD31: 83628507.22 | AE31: 84464792.3 | AF31: 85309440.22 | AG31: 86162534.62 | AH31: 87024159.97 | AI31: 87894401.57 | AJ31: 88773345.58 | AK31: 89661079.04 | AL31: 90557689.83 | AM31: 91463266.73 | AN31: 92377899.4 | AO31: 93301678.39 | AP31: 94234695.17
D33: System CapEx | E33: USD/kW | F33: 630
D34: Plant OpEx as % of CapEx | E34: % p.a. | F34: 0.015
K35: Replacement Schedule
D36: Water Cost | E36: USD/m3 | F36: 0.5 | J36: Period | L36: 0 | M36: 1 | N36: 2 | O36: 3 | P36: 4 | Q36: 5 | R36: 6 | S36: 7 | T36: 8 | U36: 9 | V36: 10 | W36: 11 | X36: 12 | Y36: 13 | Z36: 14 | AA36: 15 | AB36: 16 | AC36: 17 | AD36: 18 | AE36: 19 | AF36: 20 | AG36: 21 | AH36: 22 | AI36: 23 | AJ36: 24 | AK36: 25 | AL36: 26 | AM36: 27 | AN36: 28 | AO36: 29 | AP36: 30
J37: Flag | M37: =IF(M36<=$F$10,TRUE,FALSE) -> TRUE | N37: TRUE | O37: TRUE | P37: TRUE | Q37: TRUE | R37: TRUE | S37: TRUE | T37: TRUE | U37: TRUE | V37: TRUE | W37: TRUE | X37: TRUE | Y37: TRUE | Z37: TRUE | AA37: TRUE | AB37: TRUE | AC37: TRUE | AD37: TRUE | AE37: TRUE | AF37: TRUE | AG37: TRUE | AH37: TRUE | AI37: TRUE | AJ37: TRUE | AK37: TRUE | AL37: FALSE | AM37: FALSE | AN37: FALSE | AO37: FALSE | AP37: FALSE
D38: Operational Hours | E38: Hours/Yr | F38: =8670*F23 -> 8323.2 | J38: Operating Hours | M38: =$F$38*M37 -> 8323.2 | N38: =$F$38*N37 -> 8323.2 | O38: 8323.2 | P38: 8323.2 | Q38: 8323.2 | R38: 8323.2 | S38: 8323.2 | T38: 8323.2 | U38: 8323.2 | V38: 8323.2 | W38: 8323.2 | X38: 8323.2 | Y38: 8323.2 | Z38: 8323.2 | AA38: 8323.2 | AB38: 8323.2 | AC38: 8323.2 | AD38: 8323.2 | AE38: 8323.2 | AF38: 8323.2 | AG38: 8323.2 | AH38: 8323.2 | AI38: 8323.2 | AJ38: 8323.2 | AK38: 8323.2 | AL38: 0 | AM38: 0 | AN38: 0 | AO38: 0 | AP38: 0
D39: Stack Lifetime | E39: Years | F39: =F31/F38 -> 8.109861592 | J39: Accumulated Hours | M39: =L39+M38 -> 8323.2 | N39: =M39+N38 -> 16646.4 | O39: 24969.6 | P39: 33292.8 | Q39: 41616 | R39: 49939.2 | S39: 58262.4 | T39: 66585.6 | U39: 74908.8 | V39: 83232 | W39: 91555.2 | X39: 99878.4 | Y39: 108201.6 | Z39: 116524.8 | AA39: 124848 | AB39: 133171.2 | AC39: 141494.4 | AD39: 149817.6 | AE39: 158140.8 | AF39: 166464 | AG39: 174787.2 | AH39: 183110.4 | AI39: 191433.6 | AJ39: 199756.8 | AK39: 208080 | AL39: 208080 | AM39: 208080 | AN39: 208080 | AO39: 208080 | AP39: 208080
D40: Stack Replacements | E40: # | F40: =ROUNDUP(F10/F39,0) -> 4 | J40: Opening Hours | M40: =L44 -> 0 | N40: =M44 -> 8323.2 | O40: 16646.4 | P40: 24969.6 | Q40: 33292.8 | R40: 41616 | S40: 49939.2 | T40: 58262.4 | U40: 66585.6 | V40: 7408.8 | W40: 15732 | X40: 24055.2 | Y40: 32378.4 | Z40: 40701.6 | AA40: 49024.8 | AB40: 57348 | AC40: 65671.2 | AD40: 6494.4 | AE40: 14817.6 | AF40: 23140.8 | AG40: 31464 | AH40: 39787.2 | AI40: 48110.4 | AJ40: 56433.6 | AK40: 64756.8 | AL40: 5580 | AM40: 5580 | AN40: 5580 | AO40: 5580 | AP40: 5580
J41: Hours Used | M41: =M38 -> 8323.2 | N41: =N38 -> 8323.2 | O41: 8323.2 | P41: 8323.2 | Q41: 8323.2 | R41: 8323.2 | S41: 8323.2 | T41: 8323.2 | U41: 8323.2 | V41: 8323.2 | W41: 8323.2 | X41: 8323.2 | Y41: 8323.2 | Z41: 8323.2 | AA41: 8323.2 | AB41: 8323.2 | AC41: 8323.2 | AD41: 8323.2 | AE41: 8323.2 | AF41: 8323.2 | AG41: 8323.2 | AH41: 8323.2 | AI41: 8323.2 | AJ41: 8323.2 | AK41: 8323.2 | AL41: 0 | AM41: 0 | AN41: 0 | AO41: 0 | AP41: 0
D42: Total Power Consumption | E42: MWh/Yr | F42: =F21*F38 -> 3329280 | J42: Stack Replacement | M42: =(M41+M40)>$F$31 -> FALSE | N42: =(N41+N40)>$F$31 -> FALSE | O42: FALSE | P42: FALSE | Q42: FALSE | R42: FALSE | S42: FALSE | T42: FALSE | U42: TRUE | V42: FALSE | W42: FALSE | X42: FALSE | Y42: FALSE | Z42: FALSE | AA42: FALSE | AB42: FALSE | AC42: TRUE | AD42: FALSE | AE42: FALSE | AF42: FALSE | AG42: FALSE | AH42: FALSE | AI42: FALSE | AJ42: FALSE | AK42: TRUE | AL42: FALSE | AM42: FALSE | AN42: FALSE | AO42: FALSE | AP42: FALSE
D43: Total Water Consumption | E43: L/Yr | F43: =F46*F28 -> 653965714.3 | J43: Lifetime Reset | M43: =$F$31*M42 -> 0 | N43: =$F$31*N42 -> 0 | O43: 0 | P43: 0 | Q43: 0 | R43: 0 | S43: 0 | T43: 0 | U43: 67500 | V43: 0 | W43: 0 | X43: 0 | Y43: 0 | Z43: 0 | AA43: 0 | AB43: 0 | AC43: 67500 | AD43: 0 | AE43: 0 | AF43: 0 | AG43: 0 | AH43: 0 | AI43: 0 | AJ43: 0 | AK43: 67500 | AL43: 0 | AM43: 0 | AN43: 0 | AO43: 0 | AP43: 0
D44: Total Water Consumption Conversion | E44: m3/Yr | F44: =F43/1000 -> 653965.7143 | J44: Closing Balance | M44: =SUM(M40:M41)-M43 -> 8323.2 | N44: =SUM(N40:N41)-N43 -> 16646.4 | O44: 24969.6 | P44: 33292.8 | Q44: 41616 | R44: 49939.2 | S44: 58262.4 | T44: 66585.6 | U44: 7408.8 | V44: 15732 | W44: 24055.2 | X44: 32378.4 | Y44: 40701.6 | Z44: 49024.8 | AA44: 57348 | AB44: 65671.2 | AC44: 6494.4 | AD44: 14817.6 | AE44: 23140.8 | AF44: 31464 | AG44: 39787.2 | AH44: 48110.4 | AI44: 56433.6 | AJ44: 64756.8 | AK44: 5580 | AL44: 5580 | AM44: 5580 | AN44: 5580 | AO44: 5580 | AP44: 5580
D46: Total Hydrogen Production | E46: kg/Yr | F46: =F42*1000/F24 -> 59451428.57 | J46: Economies of Scale | L46: =F25 -> 0.01 | M46: =1-L46 -> 0.99 | N46: =M46-$L$46 -> 0.98 | O46: =N46-$L$46 -> 0.97 | P46: 0.96 | Q46: 0.95 | R46: 0.94 | S46: 0.93 | T46: 0.92 | U46: 0.91 | V46: 0.9 | W46: 0.89 | X46: 0.88 | Y46: 0.87 | Z46: 0.86 | AA46: 0.85 | AB46: 0.84 | AC46: 0.83 | AD46: 0.82 | AE46: 0.81 | AF46: 0.8 | AG46: 0.79 | AH46: 0.78 | AI46: 0.77 | AJ46: 0.76 | AK46: 0.75 | AL46: 0.74 | AM46: 0.73 | AN46: 0.72 | AO46: 0.71 | AP46: 0.7
J47: Replacement CapEx | M47: =($F$48*$F$22)*M46*M42 -> 0 | N47: =($F$48*$F$22)*N46*N42 -> 0 | O47: 0 | P47: 0 | Q47: 0 | R47: 0 | S47: 0 | T47: 0 | U47: =($F$48*$F$22)*U46*U42 -> 105487200 | V47: 0 | W47: 0 | X47: 0 | Y47: 0 | Z47: 0 | AA47: 0 | AB47: 0 | AC47: 96213600 | AD47: 0 | AE47: 0 | AF47: 0 | AG47: 0 | AH47: 0 | AI47: 0 | AJ47: 0 | AK47: 86940000 | AL47: 0 | AM47: 0 | AN47: 0 | AO47: 0 | AP47: 0
D48: Total UpFront Electrolyser Cost | E48: USD | F48: =F33*1000*F21 -> 252000000 | J48: Total Investment | L48: =SUM(M47:AP47) -> 288640800
D49: Total Cost of Stack Replacements | E49: USD | F49: =L49 -> 103855432.8 | J49: NPV at IRR | L49: =NPV(F63,M47:AP47) -> 103855432.8
C51: Operational Costs | J51: D&Tax-Shield W/O Rep | M51: =M36 -> 1 | N51: =N36 -> 2 | O51: 3 | P51: 4 | Q51: 5 | R51: 6 | S51: 7 | T51: 8 | U51: 9 | V51: 10 | W51: 11 | X51: 12 | Y51: 13 | Z51: 14 | AA51: 15 | AB51: 16 | AC51: 17 | AD51: 18 | AE51: 19 | AF51: 20 | AG51: 21 | AH51: 22 | AI51: 23 | AJ51: 24 | AK51: 25 | AL51: 26 | AM51: 27 | AN51: 28 | AO51: 29 | AP51: 30
D52: NPV of Power Expense | E52: USD | F52: =NPV(F63,M31:AP31) -> 968514919.3 | J52: Electrolyzer | L52: Flag | M52: =M37 -> TRUE | N52: =N37 -> TRUE | O52: TRUE | P52: TRUE | Q52: TRUE | R52: TRUE | S52: TRUE | T52: TRUE | U52: TRUE | V52: TRUE | W52: TRUE | X52: TRUE | Y52: TRUE | Z52: TRUE | AA52: TRUE | AB52: TRUE | AC52: TRUE | AD52: TRUE | AE52: TRUE | AF52: TRUE | AG52: TRUE | AH52: TRUE | AI52: TRUE | AJ52: TRUE | AK52: TRUE | AL52: FALSE | AM52: FALSE | AN52: FALSE | AO52: FALSE | AP52: FALSE
D53: Water Expense | E53: USD | F53: =F36*F44*F10 -> 8174571.429 | J53: Year | L53: =F10 -> 25
D54: Total Project OpEx W/O Inflation | E54: USD | F54: =F48*F34 -> 3780000 | J54: Depreciation Rate | L54: 1 | M54: =IFERROR(VDB(1,0,$L$53,L51,M51,$L$54),0) -> 0.04 | N54: =IFERROR(VDB(1,0,$L$53,M51,N51,$L$54),0) -> 0.04 | O54: 0.04 | P54: 0.04 | Q54: 0.04 | R54: 0.04 | S54: 0.04 | T54: 0.04 | U54: 0.04 | V54: 0.04 | W54: 0.04 | X54: 0.04 | Y54: 0.04 | Z54: 0.04 | AA54: 0.04 | AB54: 0.04 | AC54: 0.04 | AD54: 0.04 | AE54: 0.04 | AF54: 0.04 | AG54: 0.04 | AH54: 0.04 | AI54: 0.04 | AJ54: 0.04 | AK54: 0.04 | AL54: 0 | AM54: 0 | AN54: 0 | AO54: 0 | AP54: 0
D55: TOTAL OPEX OF THE PROJECT | E55: USD | F55: =SUM(F52:F54) -> 980469490.7 | J55: NPV | L55: =NPV(F63,M54:AP54) -> 0.4661433271
J56: Tax Rate | L56: 0
J57: Depreciation Exp. | L57: =L55*L56 -> 0 | M57: =M54*M52*SUM($F$48:$F$49) -> 14234217.31 | N57: =N54*N52*SUM($F$48:$F$49) -> 14234217.31 | O57: 14234217.31 | P57: 14234217.31 | Q57: 14234217.31 | R57: 14234217.31 | S57: 14234217.31 | T57: 14234217.31 | U57: 14234217.31 | V57: 14234217.31 | W57: 14234217.31 | X57: 14234217.31 | Y57: 14234217.31 | Z57: 14234217.31 | AA57: 14234217.31 | AB57: 14234217.31 | AC57: 14234217.31 | AD57: 14234217.31 | AE57: 14234217.31 | AF57: 14234217.31 | AG57: 14234217.31 | AH57: 14234217.31 | AI57: 14234217.31 | AJ57: 14234217.31 | AK57: 14234217.31 | AL57: 0 | AM57: 0 | AN57: 0 | AO57: 0 | AP57: 0
C58: LCOH
D59: Total CapEx Recovery W/Tax Shield & D&A | E59: USD/Yr | F59: =PMT(F63,F10,-F48)/(1-25%)*(1-L57) -> 28832333.79
D60: Total Stack Recovery W/Tax Shield & D&A | E60: USD/Yr | F60: =PMT(F63,F10,-F49)/(1-L56)*(1-L57) -> 8911888.401
D61: Total OpEx Fix Recovery | E61: USD/Yr | F61: =PMT(F63,F10,-(F53+F52)) -> 83810230.36
D63: WACC | E63: % | F63: 0.07
D64: Real Required IRR | E64: % | F64: =(1+F63)/(1+3.22%)-1 -> 0.03662080992
D65: Inflation Adjustment Factor only for opex | E65: Factor | F65: =PV(F64,F10,-1)/PV(F63,F10,-1) -> 1.389730956
D66: OpEx Adjusted by Inflation | E66: USD/Yr | F66: =PMT(F63,F10,-F54)*F65 -> 450778.3514
D68: Total Hydrogen Production | E68: kg/Yr | F68: =F46 -> 59451428.57
D70: Levelized Cost of Hydrogen | E70: USD/kg | F70: =(SUM(F59:F61)+F66)/F68 -> 2.052183334
B72: Inputs for Compression
C73: Compression Unit | J73: D&Tax-Shield W/O Rep | M73: =M51 -> 1 | N73: =N51 -> 2 | O73: 3 | P73: 4 | Q73: 5 | R73: 6 | S73: 7 | T73: 8 | U73: 9 | V73: 10 | W73: 11 | X73: 12 | Y73: 13 | Z73: 14 | AA73: 15 | AB73: 16 | AC73: 17 | AD73: 18 | AE73: 19 | AF73: 20 | AG73: 21 | AH73: 22 | AI73: 23 | AJ73: 24 | AK73: 25 | AL73: 26 | AM73: 27 | AN73: 28 | AO73: 29 | AP73: 30
D74: Inlet Flow of Hydrogen | E74: kgH2/Hr | F74: =F68/F38 -> 7142.857143 | J74: Compressor | L74: Flag | M74: =M52 -> TRUE | N74: =N52 -> TRUE | O74: TRUE | P74: TRUE | Q74: TRUE | R74: TRUE | S74: TRUE | T74: TRUE | U74: TRUE | V74: TRUE | W74: TRUE | X74: TRUE | Y74: TRUE | Z74: TRUE | AA74: TRUE | AB74: TRUE | AC74: TRUE | AD74: TRUE | AE74: TRUE | AF74: TRUE | AG74: TRUE | AH74: TRUE | AI74: TRUE | AJ74: TRUE | AK74: TRUE | AL74: FALSE | AM74: FALSE | AN74: FALSE | AO74: FALSE | AP74: FALSE
D75: Inlet Flow of Nitrogen | E75: kgN2/Hr | F75: =F74*4.6 -> 32857.14286 | J75: Years | L75: =F79 -> 25
D76: Nominal Power | E76: MW | F76: 14.372 | J76: Depreciation Rate | L76: 1 | M76: =IFERROR(VDB(1,0,$L$75,L73,M73,$L$76),0) -> 0.04 | N76: =IFERROR(VDB(1,0,$L$75,M73,N73,$L$76),0) -> 0.04 | O76: 0.04 | P76: 0.04 | Q76: 0.04 | R76: 0.04 | S76: 0.04 | T76: 0.04 | U76: 0.04 | V76: 0.04 | W76: 0.04 | X76: 0.04 | Y76: 0.04 | Z76: 0.04 | AA76: 0.04 | AB76: 0.04 | AC76: 0.04 | AD76: 0.04 | AE76: 0.04 | AF76: 0.04 | AG76: 0.04 | AH76: 0.04 | AI76: 0.04 | AJ76: 0.04 | AK76: 0.04 | AL76: 0 | AM76: 0 | AN76: 0 | AO76: 0 | AP76: 0
D77: Unitary Cost | E77: USD/kW | F77: 235.09 | J77: NPV | L77: =NPV(F63,M76:AP76) -> 0.4661433271
D78: CapEx | E78: USD | F78: =F77*1000*F76 -> 3378713.48 | J78: Tax Rate | L78: =L56 -> 0
D79: Lifetime of Compressor | E79: Years | F79: 25 | J79: Depreciation Exp. | L79: =L77*L78 -> 0 | M79: =M74*M76*$F$78 -> 135148.5392 | N79: =N74*N76*$F$78 -> 135148.5392 | O79: 135148.5392 | P79: 135148.5392 | Q79: 135148.5392 | R79: 135148.5392 | S79: 135148.5392 | T79: 135148.5392 | U79: 135148.5392 | V79: 135148.5392 | W79: 135148.5392 | X79: 135148.5392 | Y79: 135148.5392 | Z79: 135148.5392 | AA79: 135148.5392 | AB79: 135148.5392 | AC79: 135148.5392 | AD79: 135148.5392 | AE79: 135148.5392 | AF79: 135148.5392 | AG79: 135148.5392 | AH79: 135148.5392 | AI79: 135148.5392 | AJ79: 135148.5392 | AK79: 135148.5392 | AL79: 0 | AM79: 0 | AN79: 0 | AO79: 0 | AP79: 0
D80: Amount of Ammonia Produced | E80: Tn/Yr | F80: =(F74+F75)*F38/1000 -> 332928
D81: Hydrogen per Year | E81: kg/yr | F81: =F74*F38 -> 59451428.57
D83: Power Required for the Compression | E83: MWh/TnNH3 | F83: 1
D84: Total Power Required for the Compression | E84: MWHh/Yr | F84: =F83*F80 -> 332928
D85: Total Electricity Cost | E85: USD/Yr | F85: =F84*F13 -> 6991488
D86: Capital Recovery for the Compressor W/Tax Shield & D&A | E86: USD/Yr | F86: =PMT(F63,F79,-F78)/(1-L78)*(1-L79) -> 289929.1513
D87: Total Cost to Be Recived | E87: USD/Yr | F87: =F85+F86 -> 7281417.151
D89: Levelized cost of Compression | E89: USD/TnNH3 | F89: =SUM(F85:F86)/F80 -> 21.8708464
D90: Levelized cost of Compression | E90: USD/kg | F90: =F87/F81 -> 0.1224767399
B92: Inputs for Air Separation
C93: Compression Unit | J93: D&Tax-Shield W/O Rep | M93: 1 | N93: 2 | O93: 3 | P93: 4 | Q93: 5 | R93: 6 | S93: 7 | T93: 8 | U93: 9 | V93: 10 | W93: 11 | X93: 12 | Y93: 13 | Z93: 14 | AA93: 15 | AB93: 16 | AC93: 17 | AD93: 18 | AE93: 19 | AF93: 20 | AG93: 21 | AH93: 22 | AI93: 23 | AJ93: 24 | AK93: 25 | AL93: 26 | AM93: 27 | AN93: 28 | AO93: 29 | AP93: 30
J94: Compressor | L94: Flag | M94: =M93<=$F$100 -> TRUE | N94: TRUE | O94: TRUE | P94: TRUE | Q94: TRUE | R94: TRUE | S94: TRUE | T94: TRUE | U94: TRUE | V94: TRUE | W94: TRUE | X94: TRUE | Y94: TRUE | Z94: TRUE | AA94: TRUE | AB94: TRUE | AC94: TRUE | AD94: TRUE | AE94: TRUE | AF94: TRUE | AG94: TRUE | AH94: TRUE | AI94: TRUE | AJ94: TRUE | AK94: TRUE | AL94: FALSE | AM94: FALSE | AN94: FALSE | AO94: FALSE | AP94: FALSE
D95: Production of Nitrogen | E95: kgN2/Hr | F95: =F75 -> 32857.14286 | J95: Years | L95: =F100 -> 25
D96: Tons of Nitrogen per Year | E96: Tons/yr | F96: =F95/1000*F38 -> 273476.5714 | J96: Depreciation Rate | L96: 1 | M96: =IFERROR(VDB(1,0,$F$100,L93,M93,$L$76),0) -> 0.04 | N96: 0.04 | O96: 0.04 | P96: 0.04 | Q96: 0.04 | R96: 0.04 | S96: 0.04 | T96: 0.04 | U96: 0.04 | V96: 0.04 | W96: 0.04 | X96: 0.04 | Y96: 0.04 | Z96: 0.04 | AA96: 0.04 | AB96: 0.04 | AC96: 0.04 | AD96: 0.04 | AE96: 0.04 | AF96: 0.04 | AG96: 0.04 | AH96: 0.04 | AI96: 0.04 | AJ96: 0.04 | AK96: 0.04 | AL96: 0 | AM96: 0 | AN96: 0 | AO96: 0 | AP96: 0
D97: Nominal Power | E97: MWH/Ton | F97: 0.9 | J97: NPV | L97: =NPV(F63,M96:AP96) -> 0.4661433271
D98: Unitary Cost (Cap Exp/Ton-yr) | E98: USD/Tn N2-yr | F98: 22 | J98: Tax Rate | L98: =L78 -> 0
D99: CapEx | E99: USD | F99: =F96*F98 -> 6016484.571 | J99: Depreciation Exp. | L99: =L97*L98 -> 0 | M99: =M94*M96*$F$78 -> 135148.5392 | N99: =N94*N96*$F$78 -> 135148.5392 | O99: 135148.5392 | P99: 135148.5392 | Q99: 135148.5392 | R99: 135148.5392 | S99: 135148.5392 | T99: 135148.5392 | U99: 135148.5392 | V99: 135148.5392 | W99: 135148.5392 | X99: 135148.5392 | Y99: 135148.5392 | Z99: 135148.5392 | AA99: 135148.5392 | AB99: 135148.5392 | AC99: 135148.5392 | AD99: 135148.5392 | AE99: 135148.5392 | AF99: 135148.5392 | AG99: 135148.5392 | AH99: 135148.5392 | AI99: 135148.5392 | AJ99: 135148.5392 | AK99: 135148.5392 | AL99: 0 | AM99: 0 | AN99: 0 | AO99: 0 | AP99: 0
D100: Lifetime of Air Separation Unit | E100: Years | F100: 25
D101: Amount of Ammonia Produced | E101: Tn/Yr | F101: =F95*F38/1000 -> 273476.5714
J102: Dep Factor | L102: =dep_factor(F100,F63,L56) -> 0
D103: Power Required for the Compression | E103: MWh/TnNH3 | F103: =F97 -> 0.9
D104: Total Power Required for the Compression | E104: MWHh/Yr | F104: =F103*F101 -> 246128.9143
D105: Cost/MWH | E105: USD/MWH | F105: =F13 -> 21
D106: Total Electricity Cost =Total O&M | E106: USD/Yr | F106: =F104*F105 -> 5168707.2 | G106: =F106/F109 -> 0.909185747
D107: Capital Recovery Factor | E107: % | F107: =PMT(F63,F100,-1)/(1-L98)*(1-L99) -> 0.08581051722
D108: Capital Recovery | E108: USD | F108: =F107*F99 -> 516277.6529 | G108: =F108/F109 -> 0.09081425303
D109: Total Cost | E109: USD | F109: =F108+F106 -> 5684984.853
D111: Levelized cost of Air Separation to Get Nitrogen | E111: USD/TnNH3 | F111: =F109/F96 -> 20.78783138
B113: Inputs for Amonia
C114: Haber Bosch Process | K114: Replacement Schedule
D115: Conversion Efficiency | E115: % | F115: 0.97 | J115: Period | L115: 0 | M115: 1 | N115: 2 | O115: 3 | P115: 4 | Q115: 5 | R115: 6 | S115: 7 | T115: 8 | U115: 9 | V115: 10 | W115: 11 | X115: 12 | Y115: 13 | Z115: 14 | AA115: 15 | AB115: 16 | AC115: 17 | AD115: 18 | AE115: 19 | AF115: 20 | AG115: 21 | AH115: 22 | AI115: 23 | AJ115: 24 | AK115: 25 | AL115: 26 | AM115: 27 | AN115: 28 | AO115: 29 | AP115: 30
D116: Ammount of Ammonia Produced | E116: Tn/Yr | F116: =F80 -> 332928 | J116: Flag | L116: Flag | M116: =M74 -> TRUE | N116: =N74 -> TRUE | O116: TRUE | P116: TRUE | Q116: TRUE | R116: TRUE | S116: TRUE | T116: TRUE | U116: TRUE | V116: TRUE | W116: TRUE | X116: TRUE | Y116: TRUE | Z116: TRUE | AA116: TRUE | AB116: TRUE | AC116: TRUE | AD116: TRUE | AE116: TRUE | AF116: TRUE | AG116: TRUE | AH116: TRUE | AI116: TRUE | AJ116: TRUE | AK116: TRUE | AL116: FALSE | AM116: FALSE | AN116: FALSE | AO116: FALSE | AP116: FALSE
D117: Catalyst Lifetime | E117: Hr | F117: 80000 | J117: Operating Hours | M117: =M38 -> 8323.2 | N117: =N38 -> 8323.2 | O117: 8323.2 | P117: 8323.2 | Q117: 8323.2 | R117: 8323.2 | S117: 8323.2 | T117: 8323.2 | U117: 8323.2 | V117: 8323.2 | W117: 8323.2 | X117: 8323.2 | Y117: 8323.2 | Z117: 8323.2 | AA117: 8323.2 | AB117: 8323.2 | AC117: 8323.2 | AD117: 8323.2 | AE117: 8323.2 | AF117: 8323.2 | AG117: 8323.2 | AH117: 8323.2 | AI117: 8323.2 | AJ117: 8323.2 | AK117: 8323.2 | AL117: 0 | AM117: 0 | AN117: 0 | AO117: 0 | AP117: 0
D118: Catalyst Lifetime in Years | E118: Years | F118: =F117/F38 -> 9.611687812 | J118: Accumulated Hours | M118: =L118+M117 -> 8323.2 | N118: =M118+N117 -> 16646.4 | O118: 24969.6 | P118: 33292.8 | Q118: 41616 | R118: 49939.2 | S118: 58262.4 | T118: 66585.6 | U118: 74908.8 | V118: 83232 | W118: 91555.2 | X118: 99878.4 | Y118: 108201.6 | Z118: 116524.8 | AA118: 124848 | AB118: 133171.2 | AC118: 141494.4 | AD118: 149817.6 | AE118: 158140.8 | AF118: 166464 | AG118: 174787.2 | AH118: 183110.4 | AI118: 191433.6 | AJ118: 199756.8 | AK118: 208080 | AL118: 208080 | AM118: 208080 | AN118: 208080 | AO118: 208080 | AP118: 208080
D119: Replacement Cost as % of CapEx | E119: % | F119: 0.3 | J119: Opening Hours | M119: =L123 -> 0 | N119: =M123 -> 8323.2 | O119: 16646.4 | P119: 24969.6 | Q119: 33292.8 | R119: 41616 | S119: 49939.2 | T119: 58262.4 | U119: 66585.6 | V119: 74908.8 | W119: 3232 | X119: 11555.2 | Y119: 19878.4 | Z119: 28201.6 | AA119: 36524.8 | AB119: 44848 | AC119: 53171.2 | AD119: 61494.4 | AE119: 69817.6 | AF119: 78140.8 | AG119: 6464 | AH119: 14787.2 | AI119: 23110.4 | AJ119: 31433.6 | AK119: 39756.8 | AL119: 48080 | AM119: 48080 | AN119: 48080 | AO119: 48080 | AP119: 48080
D120: OpEx as % of CapEx | E120: % | F120: 0.015 | J120: Hours Used | M120: =M117 -> 8323.2 | N120: =N117 -> 8323.2 | O120: 8323.2 | P120: 8323.2 | Q120: 8323.2 | R120: 8323.2 | S120: 8323.2 | T120: 8323.2 | U120: 8323.2 | V120: 8323.2 | W120: 8323.2 | X120: 8323.2 | Y120: 8323.2 | Z120: 8323.2 | AA120: 8323.2 | AB120: 8323.2 | AC120: 8323.2 | AD120: 8323.2 | AE120: 8323.2 | AF120: 8323.2 | AG120: 8323.2 | AH120: 8323.2 | AI120: 8323.2 | AJ120: 8323.2 | AK120: 8323.2 | AL120: 0 | AM120: 0 | AN120: 0 | AO120: 0 | AP120: 0
D121: Power Consumption | E121: MWh/TnNH3 | F121: 0.738 | J121: Stack Replacement | M121: =SUM(M119:M120)>$F$117 -> FALSE | N121: =SUM(N119:N120)>$F$117 -> FALSE | O121: FALSE | P121: FALSE | Q121: FALSE | R121: FALSE | S121: FALSE | T121: FALSE | U121: FALSE | V121: TRUE | W121: FALSE | X121: FALSE | Y121: FALSE | Z121: FALSE | AA121: FALSE | AB121: FALSE | AC121: FALSE | AD121: FALSE | AE121: FALSE | AF121: TRUE | AG121: FALSE | AH121: FALSE | AI121: FALSE | AJ121: FALSE | AK121: FALSE | AL121: FALSE | AM121: FALSE | AN121: FALSE | AO121: FALSE | AP121: FALSE
D122: Load Factor | E122: % | F122: =F23 -> 0.96 | J122: Lifetime Reset | M122: =M121*$F$117 -> 0 | N122: =N121*$F$117 -> 0 | O122: 0 | P122: 0 | Q122: 0 | R122: 0 | S122: 0 | T122: 0 | U122: 0 | V122: 80000 | W122: 0 | X122: 0 | Y122: 0 | Z122: 0 | AA122: 0 | AB122: 0 | AC122: 0 | AD122: 0 | AE122: 0 | AF122: 80000 | AG122: 0 | AH122: 0 | AI122: 0 | AJ122: 0 | AK122: 0 | AL122: 0 | AM122: 0 | AN122: 0 | AO122: 0 | AP122: 0
D123: CapEx | E123: USD/kWe | F123: 487 | J123: Closing Balance | M123: =SUM(M119:M120)-M122 -> 8323.2 | N123: =SUM(N119:N120)-N122 -> 16646.4 | O123: 24969.6 | P123: 33292.8 | Q123: 41616 | R123: 49939.2 | S123: 58262.4 | T123: 66585.6 | U123: 74908.8 | V123: 3232 | W123: 11555.2 | X123: 19878.4 | Y123: 28201.6 | Z123: 36524.8 | AA123: 44848 | AB123: 53171.2 | AC123: 61494.4 | AD123: 69817.6 | AE123: 78140.8 | AF123: 6464 | AG123: 14787.2 | AH123: 23110.4 | AI123: 31433.6 | AJ123: 39756.8 | AK123: 48080 | AL123: 48080 | AM123: 48080 | AN123: 48080 | AO123: 48080 | AP123: 48080
D124: Total MW Installed | E124: MW | F124: =F21 -> 400
D125: System CapEx | E125: USD | F125: =F124*1000*F123 -> 194800000 | J125: Economies of Scale | L125: 0.0001 | M125: =1-L125 -> 0.9999 | N125: =M125-$L$125 -> 0.9998 | O125: =N125-$L$125 -> 0.9997 | P125: 0.9996 | Q125: 0.9995 | R125: 0.9994 | S125: 0.9993 | T125: 0.9992 | U125: 0.9991 | V125: 0.999 | W125: 0.9989 | X125: 0.9988 | Y125: 0.9987 | Z125: 0.9986 | AA125: 0.9985 | AB125: 0.9984 | AC125: 0.9983 | AD125: 0.9982 | AE125: 0.9981 | AF125: 0.998 | AG125: 0.9979 | AH125: 0.9978 | AI125: 0.9977 | AJ125: 0.9976 | AK125: 0.9975 | AL125: 0.9974 | AM125: 0.9973 | AN125: 0.9972 | AO125: 0.9971 | AP125: 0.997
D126: Replacement Cost | E126: USD | F126: =F125*F119 -> 58440000 | J126: Replacement CapEx | M126: =M121*M125*$F$126 -> 0 | N126: =N121*N125*$F$126 -> 0 | O126: 0 | P126: 0 | Q126: 0 | R126: 0 | S126: 0 | T126: 0 | U126: 0 | V126: 58381560 | W126: 0 | X126: 0 | Y126: 0 | Z126: 0 | AA126: 0 | AB126: 0 | AC126: 0 | AD126: 0 | AE126: 0 | AF126: 58323120 | AG126: 0 | AH126: 0 | AI126: 0 | AJ126: 0 | AK126: 0 | AL126: 0 | AM126: 0 | AN126: 0 | AO126: 0 | AP126: 0
J127: Total Investment | L127: =SUM(M126:AP126) -> 116704680
D128: Total CapEx | E128: USD | F128: =F125 -> 194800000 | J128: NPV at IRR | L128: =NPV(F63,M126:AP126) -> 44750027.21
D129: Replacement CapEx NPV | E129: USD | F129: =L128 -> 44750027.21
D130: Total System CapEx Rec + Replacement + Tax Shiel & D&A | E130: USD/Yr | F130: =PMT(F63,L132,-(SUM(F128:F129))/(1-L135)*(1-L136)) -> 20555911.74 | J130: D&Tax-Shield W/O Rep | M130: =M115 -> 1 | N130: 2 | O130: 3 | P130: 4 | Q130: 5 | R130: 6 | S130: 7 | T130: 8 | U130: 9 | V130: 10 | W130: 11 | X130: 12 | Y130: 13 | Z130: 14 | AA130: 15 | AB130: 16 | AC130: 17 | AD130: 18 | AE130: 19 | AF130: 20 | AG130: 21 | AH130: 22 | AI130: 23 | AJ130: 24 | AK130: 25 | AL130: 26 | AM130: 27 | AN130: 28 | AO130: 29 | AP130: 30
J131: Haber Bosch | L131: Flag | M131: =M116 -> TRUE | N131: =N116 -> TRUE | O131: TRUE | P131: TRUE | Q131: TRUE | R131: TRUE | S131: TRUE | T131: TRUE | U131: TRUE | V131: TRUE | W131: TRUE | X131: TRUE | Y131: TRUE | Z131: TRUE | AA131: TRUE | AB131: TRUE | AC131: TRUE | AD131: TRUE | AE131: TRUE | AF131: TRUE | AG131: TRUE | AH131: TRUE | AI131: TRUE | AJ131: TRUE | AK131: TRUE | AL131: FALSE | AM131: FALSE | AN131: FALSE | AO131: FALSE | AP131: FALSE
D132: Total Hydrogen Expense | E132: USD/Yr | F132: =F70*F46 -> 122005230.9 | J132: Year | L132: =F10 -> 25
D133: Total Power Expense | E133: USD/Yr | F133: =F121*F116*F13 -> 5159718.144 | J133: Depreciation Rate | L133: 1 | M133: =IFERROR(VDB(1,0,$L$132,L130,M130,$L$133),0) -> 0.04 | N133: =IFERROR(VDB(1,0,$L$132,M130,N130,$L$133),0) -> 0.04 | O133: 0.04 | P133: 0.04 | Q133: 0.04 | R133: 0.04 | S133: 0.04 | T133: 0.04 | U133: 0.04 | V133: 0.04 | W133: 0.04 | X133: 0.04 | Y133: 0.04 | Z133: 0.04 | AA133: 0.04 | AB133: 0.04 | AC133: 0.04 | AD133: 0.04 | AE133: 0.04 | AF133: 0.04 | AG133: 0.04 | AH133: 0.04 | AI133: 0.04 | AJ133: 0.04 | AK133: 0.04 | AL133: 0 | AM133: 0 | AN133: 0 | AO133: 0 | AP133: 0
D134: Total Compression Cost | E134: USD/Yr | F134: =F89*F116 -> 7281417.151 | J134: NPV | L134: =NPV(F63,M133:AP133) -> 0.4661433271
D135: Total Nitrogen Cost | E135: USD/Yr | F135: =F166 -> 5684984.853 | J135: Tax Rate | L135: =L98 -> 0
J136: Depreciation Exp. | L136: =L134*L135 -> 0 | M136: =SUM($F$128:$F$129)*M133*M131 -> 9582001.088 | N136: =SUM($F$128:$F$129)*N133*N131 -> 9582001.088 | O136: 9582001.088 | P136: 9582001.088 | Q136: 9582001.088 | R136: 9582001.088 | S136: 9582001.088 | T136: 9582001.088 | U136: 9582001.088 | V136: 9582001.088 | W136: 9582001.088 | X136: 9582001.088 | Y136: 9582001.088 | Z136: 9582001.088 | AA136: 9582001.088 | AB136: 9582001.088 | AC136: 9582001.088 | AD136: 9582001.088 | AE136: 9582001.088 | AF136: 9582001.088 | AG136: 9582001.088 | AH136: 9582001.088 | AI136: 9582001.088 | AJ136: 9582001.088 | AK136: 9582001.088 | AL136: 0 | AM136: 0 | AN136: 0 | AO136: 0 | AP136: 0
D138: Total OpEX | E138: USD/Yr | F138: =F120*F128 -> 2922000
D139: Total OpEx Adjusted by Inflation | E139: USD/Yr | F139: =F138*F65 -> 4060793.853
D141: Total Cost of Maintenance and Operation | E141: USD/Yr | F141: =SUM(F132:F134)+F139 -> 138507160
D143: Levelized cost of Ammonia | E143: USD/TnNH3 | F143: =(F141+F130)/F116 -> 477.7701839
D145: Total Operating Cost/Ton | F145: =F141/F116 -> 416.0273694
D146: Total Capital Recovery/Ton | F146: =F143-F145 -> 61.74281447
C148: O&M Verification - Hydrogen
D149: Ammonia Production | E149: Tons-yr | F149: =F116 -> 332928
D150: Hydrogen/Ammonia | E150: H2 Tons/Tons | F150: 5.6
D151: Required Hydrogen | E151: Tons | F151: =F149/F150 -> 59451.42857
D152: Density | E152: kg/Ton | F152: 1000
D153: Required Hydrogen | E153: kg | F153: =F151*F152 -> 59451428.57
D155: Cost of H2/kg without Compression | E155: USD/kg | F155: =F70 -> 2.052183334
D156: Cost of H2/kg Compression | E156: USD/kg | F156: =F90 -> 0.1224767399
D157: Total Cost of Hydrogen with Compression | E157: USD/kg | F157: =SUM(F155:F156) -> 2.174660074
D159: Cost of H2 | E159: USD | F159: =F157*F153 -> 129286648.1 | G159: =F159/$F$188 -> 0.9037652533
C161: O&M Verification - Nitrogen
D162: Nitrogen/Hydrogen | E162: N2 Tons/H2 Tons | F162: 4.6
D163: Total Hydrogen Tons | E163: Tons | F163: =F151 -> 59451.42857
D164: Required Nitrogen Tons | E164: N2 Tons | F164: =F162*F163 -> 273476.5714
D165: Cost/Ton | E165: USD/Ton | F165: =F111 -> 20.78783138
D166: Nitrogen Cost | E166: USD | F166: =F164*F165 -> 5684984.853 | G166: =F166/$F$188 -> 0.03974031235
C168: O&M Verification - Power
D169: Power/Ammonia | E169: MWH/Ton | F169: =F121 -> 0.738
D170: Ammonia | E170: Tons/Yr | F170: =F149 -> 332928
D171: Total Power Required | E171: MWH | F171: =F169*F170 -> 245700.864
D172: Cost of Power | E172: USD/MWH | F172: =F13 -> 21
D173: Total Cost of Power | E173: USD | F173: =F172*F171 -> 5159718.144 | G173: =F173/$F$188 -> 0.03606848848
C175: O&M Verification - Water
D176: Water/Ammonia | E176: Liters/Ton | F176: 0
D177: Ammonia | E177: Tons/Yr | F177: =F170 -> 332928
D178: Total Water Required | E178: Litres | F178: =F176*F177 -> 0
D179: Cost of Water | E179: USD/Litre | F179: 1
D180: Total Cost of Water | E180: USD | F180: =F179*F178 -> 0 | G180: =F180/$F$188 -> 0
C182: O&M Verification - Other
D183: Other Op Exp Percent | E183: % | F183: =F120 -> 0.015
D184: Ammonia | E184: Tons/Yr | F184: =F177 -> 332928
D185: Total Cap Exp | E185: USD | F185: =F128 -> 194800000
D186: Other Op Exp | E186: USD | F186: =F185*F183 -> 2922000 | G186: =F186/F188 -> 0.02042594583
D188: Grand Total Op Exp | E188: USD | F188: =F159+F166+F173+F180+F186 -> 143053351
B191: Financial Model of Ammonia
C192: Start Date | E192: Date | F192: 2023-01-01
C193: Months in Period | E193: Months | F193: 12

Sheet Financial Model
B2: Timing | F2: Goal | G2: =LCOA -> 380.613596
C3: Period | F3: LCOA | G3: ='Levelized Cost'!F143 -> 477.7701839 | J3: 1 | K3: 2 | L3: 3 | M3: 4 | N3: 5 | O3: 6 | P3: 7 | Q3: 8 | R3: 9 | S3: 10 | T3: 11 | U3: 12 | V3: 13 | W3: 14 | X3: 15 | Y3: 16 | Z3: 17 | AA3: 18 | AB3: 19 | AC3: 20 | AD3: 21 | AE3: 22 | AF3: 23 | AG3: 24 | AH3: 25 | AI3: 26 | AJ3: 27 | AK3: 28 | AL3: 29 | AM3: 30 | AN3: 31 | AO3: 32 | AP3: 33 | AQ3: 34 | AR3: 35 | AS3: 36 | AT3: 37 | AU3: 38 | AV3: 39 | AW3: 40 | AX3: 41 | AY3: 42 | AZ3: 43 | BA3: 44 | BB3: 45 | BC3: 46 | BD3: 47 | BE3: 48 | BF3: 49 | BG3: 50 | BH3: 51 | BI3: 52 | BJ3: 53 | BK3: 54 | BL3: 55 | BM3: 56 | BN3: 57 | BO3: 58 | BP3: 59 | BQ3: 60 | BR3: 61 | BS3: 62 | BT3: 63 | BU3: 64 | BV3: 65 | BW3: 66 | BX3: 67 | BY3: 68 | BZ3: 69 | CA3: 70 | CB3: 71 | CC3: 72 | CD3: 73 | CE3: 74 | CF3: 75 | CG3: 76 | CH3: 77 | CI3: 78 | CJ3: 79 | CK3: 80 | CL3: 81 | CM3: 82 | CN3: 83 | CO3: 84 | CP3: 85 | CQ3: 86 | CR3: 87 | CS3: 88 | CT3: 89 | CU3: 90 | CV3: 91 | CW3: 92 | CX3: 93 | CY3: 94 | CZ3: 95 | DA3: 96 | DB3: 97 | DC3: 98 | DD3: 99 | DE3: 100 | DF3: 101 | DG3: 102 | DH3: 103 | DI3: 104 | DJ3: 105 | DK3: 106 | DL3: 107 | DM3: 108 | DN3: 109 | DO3: 110 | DP3: 111 | DQ3: 112 | DR3: 113 | DS3: 114 | DT3: 115 | DU3: 116 | DV3: 117 | DW3: 118 | DX3: 119 | DY3: 120 | DZ3: 121 | EA3: 122 | EB3: 123 | EC3: 124 | ED3: 125 | EE3: 126 | EF3: 127 | EG3: 128 | EH3: 129 | EI3: 130 | EJ3: 131 | EK3: 132 | EL3: 133 | EM3: 134 | EN3: 135 | EO3: 136 | EP3: 137 | EQ3: 138 | ER3: 139 | ES3: 140 | ET3: 141 | EU3: 142 | EV3: 143 | EW3: 144 | EX3: 145 | EY3: 146 | EZ3: 147 | FA3: 148 | FB3: 149 | FC3: 150 | FD3: 151 | FE3: 152 | FF3: 153 | FG3: 154 | FH3: 155 | FI3: 156 | FJ3: 157 | FK3: 158 | FL3: 159 | FM3: 160 | FN3: 161 | FO3: 162 | FP3: 163 | FQ3: 164 | FR3: 165 | FS3: 166 | FT3: 167 | FU3: 168 | FV3: 169 | FW3: 170 | FX3: 171 | FY3: 172 | FZ3: 173 | GA3: 174 | GB3: 175 | GC3: 176 | GD3: 177 | GE3: 178 | GF3: 179 | GG3: 180 | GH3: 181 | GI3: 182 | GJ3: 183 | GK3: 184 | GL3: 185 | GM3: 186 | GN3: 187 | GO3: 188 | GP3: 189 | GQ3: 190 | GR3: 191 | GS3: 192 | GT3: 193 | GU3: 194 | GV3: 195 | GW3: 196 | GX3: 197 | GY3: 198 | GZ3: 199 | HA3: 200 | HB3: 201 | HC3: 202 | HD3: 203 | HE3: 204 | HF3: 205 | HG3: 206 | HH3: 207 | HI3: 208 | HJ3: 209 | HK3: 210 | HL3: 211 | HM3: 212 | HN3: 213 | HO3: 214 | HP3: 215 | HQ3: 216 | HR3: 217 | HS3: 218 | HT3: 219 | HU3: 220 | HV3: 221 | HW3: 222 | HX3: 223 | HY3: 224 | HZ3: 225 | IA3: 226 | IB3: 227 | IC3: 228 | ID3: 229 | IE3: 230 | IF3: 231 | IG3: 232 | IH3: 233 | II3: 234 | IJ3: 235 | IK3: 236 | IL3: 237 | IM3: 238 | IN3: 239 | IO3: 240 | IP3: 241 | IQ3: 242 | IR3: 243 | IS3: 244 | IT3: 245 | IU3: 246 | IV3: 247 | IW3: 248 | IX3: 249 | IY3: 250 | IZ3: 251 | JA3: 252 | JB3: 253 | JC3: 254 | JD3: 255 | JE3: 256 | JF3: 257 | JG3: 258 | JH3: 259 | JI3: 260 | JJ3: 261 | JK3: 262 | JL3: 263 | JM3: 264 | JN3: 265 | JO3: 266 | JP3: 267 | JQ3: 268 | JR3: 269 | JS3: 270 | JT3: 271 | JU3: 272 | JV3: 273 | JW3: 274 | JX3: 275 | JY3: 276 | JZ3: 277 | KA3: 278 | KB3: 279 | KC3: 280 | KD3: 281 | KE3: 282 | KF3: 283 | KG3: 284 | KH3: 285 | KI3: 286 | KJ3: 287 | KK3: 288 | KL3: 289 | KM3: 290 | KN3: 291 | KO3: 292 | KP3: 293 | KQ3: 294 | KR3: 295 | KS3: 296 | KT3: 297 | KU3: 298 | KV3: 299 | KW3: 300 | KX3: 300 | KY3: 300 | KZ3: 300 | LA3: 300 | LB3: 300 | LC3: 300 | LD3: 300 | LE3: 300 | LF3: 300 | LG3: 300 | LH3: 300 | LI3: 300 | LJ3: 300 | LK3: 300 | LL3: 300 | LM3: 300 | LN3: 300 | LO3: 300 | LP3: 300 | LQ3: 300 | LR3: 300 | LS3: 300 | LT3: 300 | LU3: 300 | LV3: 300 | LW3: 300 | LX3: 300 | LY3: 300 | LZ3: 300 | MA3: 300 | MB3: 300 | MC3: 300 | MD3: 300 | ME3: 300 | MF3: 300 | MG3: 300 | MH3: 300 | MI3: 300 | MJ3: 300 | MK3: 300 | ML3: 300 | MM3: 300 | MN3: 300 | MO3: 300 | MP3: 300 | MQ3: 300 | MR3: 300 | MS3: 300 | MT3: 300 | MU3: 300 | MV3: 300 | MW3: 300 | MX3: 300 | MY3: 300 | MZ3: 300 | NA3: 300 | NB3: 300 | NC3: 300 | ND3: 300 | NE3: 300 | NF3: 300 | NG3: 300 | NH3: 300 | NI3: 300 | NJ3: 300 | NK3: 300 | NL3: 300 | NM3: 300 | NN3: 300 | NO3: 300 | NP3: 300 | NQ3: 300 | NR3: 300 | NS3: 300 | NT3: 300 | NU3: 300 | NV3: 300
C4: Date | G4: =F10 -> 12 | J4: =F9 -> 2023-01-01 | K4: =EDATE(J4,$G$4) -> 2024-01-01 | L4: =EDATE(K4,$G$4) -> 2025-01-01 | M4: 2026-01-01 | N4: 2027-01-01 | O4: 2028-01-01 | P4: 2029-01-01 | Q4: 2030-01-01 | R4: 2031-01-01 | S4: 2032-01-01 | T4: 2033-01-01 | U4: 2034-01-01 | V4: 2035-01-01 | W4: 2036-01-01 | X4: 2037-01-01 | Y4: 2038-01-01 | Z4: 2039-01-01 | AA4: 2040-01-01 | AB4: 2041-01-01 | AC4: 2042-01-01 | AD4: 2043-01-01 | AE4: 2044-01-01 | AF4: 2045-01-01 | AG4: 2046-01-01 | AH4: 2047-01-01 | AI4: 2048-01-01 | AJ4: 2049-01-01 | AK4: 2050-01-01 | AL4: 2051-01-01 | AM4: 2052-01-01 | AN4: 2053-01-01 | AO4: 2054-01-01 | AP4: 2055-01-01 | AQ4: 2056-01-01 | AR4: 2057-01-01 | AS4: 2058-01-01 | AT4: 2059-01-01 | AU4: 2060-01-01 | AV4: 2061-01-01 | AW4: 2062-01-01 | AX4: 2063-01-01 | AY4: 2064-01-01 | AZ4: 2065-01-01 | BA4: 2066-01-01 | BB4: 2067-01-01 | BC4: 2068-01-01 | BD4: 2069-01-01 | BE4: 2070-01-01 | BF4: 2071-01-01 | BG4: 2072-01-01 | BH4: 2073-01-01 | BI4: 2074-01-01 | BJ4: 2075-01-01 | BK4: 2076-01-01 | BL4: 2077-01-01 | BM4: 2078-01-01 | BN4: 2079-01-01 | BO4: 2080-01-01 | BP4: 2081-01-01 | BQ4: 2082-01-01 | BR4: 2083-01-01 | BS4: 2084-01-01 | BT4: 2085-01-01 | BU4: 2086-01-01 | BV4: 2087-01-01 | BW4: 2088-01-01 | BX4: =EDATE(BW4,$G$4) -> 2089-01-01 | BY4: 2090-01-01 | BZ4: 2091-01-01 | CA4: 2092-01-01 | CB4: 2093-01-01 | CC4: 2094-01-01 | CD4: 2095-01-01 | CE4: 2096-01-01 | CF4: 2097-01-01 | CG4: 2098-01-01 | CH4: 2099-01-01 | CI4: 2100-01-01 | CJ4: 2101-01-01 | CK4: 2102-01-01 | CL4: 2103-01-01 | CM4: 2104-01-01 | CN4: 2105-01-01 | CO4: 2106-01-01 | CP4: 2107-01-01 | CQ4: 2108-01-01 | CR4: 2109-01-01 | CS4: 2110-01-01 | CT4: 2111-01-01 | CU4: 2112-01-01 | CV4: 2113-01-01 | CW4: 2114-01-01 | CX4: 2115-01-01 | CY4: 2116-01-01 | CZ4: 2117-01-01 | DA4: 2118-01-01 | DB4: 2119-01-01 | DC4: 2120-01-01 | DD4: 2121-01-01 | DE4: 2122-01-01 | DF4: 2123-01-01 | DG4: 2124-01-01 | DH4: 2125-01-01 | DI4: 2126-01-01 | DJ4: 2127-01-01 | DK4: 2128-01-01 | DL4: 2129-01-01 | DM4: 2130-01-01 | DN4: 2131-01-01 | DO4: 2132-01-01 | DP4: 2133-01-01 | DQ4: 2134-01-01 | DR4: 2135-01-01 | DS4: 2136-01-01 | DT4: 2137-01-01 | DU4: 2138-01-01 | DV4: 2139-01-01 | DW4: 2140-01-01 | DX4: 2141-01-01 | DY4: 2142-01-01 | DZ4: 2143-01-01 | EA4: 2144-01-01 | EB4: 2145-01-01 | EC4: 2146-01-01 | ED4: 2147-01-01 | EE4: 2148-01-01 | EF4: 2149-01-01 | EG4: 2150-01-01 | EH4: 2151-01-01 | EI4: 2152-01-01 | EJ4: =EDATE(EI4,$G$4) -> 2153-01-01 | EK4: 2154-01-01 | EL4: 2155-01-01 | EM4: 2156-01-01 | EN4: 2157-01-01 | EO4: 2158-01-01 | EP4: 2159-01-01 | EQ4: 2160-01-01 | ER4: 2161-01-01 | ES4: 2162-01-01 | ET4: 2163-01-01 | EU4: 2164-01-01 | EV4: 2165-01-01 | EW4: 2166-01-01 | EX4: 2167-01-01 | EY4: 2168-01-01 | EZ4: 2169-01-01 | FA4: 2170-01-01 | FB4: 2171-01-01 | FC4: 2172-01-01 | FD4: 2173-01-01 | FE4: 2174-01-01 | FF4: 2175-01-01 | FG4: 2176-01-01 | FH4: 2177-01-01 | FI4: 2178-01-01 | FJ4: 2179-01-01 | FK4: 2180-01-01 | FL4: 2181-01-01 | FM4: 2182-01-01 | FN4: 2183-01-01 | FO4: 2184-01-01 | FP4: 2185-01-01 | FQ4: 2186-01-01 | FR4: 2187-01-01 | FS4: 2188-01-01 | FT4: 2189-01-01 | FU4: 2190-01-01 | FV4: 2191-01-01 | FW4: 2192-01-01 | FX4: 2193-01-01 | FY4: 2194-01-01 | FZ4: 2195-01-01 | GA4: 2196-01-01 | GB4: 2197-01-01 | GC4: 2198-01-01 | GD4: 2199-01-01 | GE4: 2200-01-01 | GF4: 2201-01-01 | GG4: 2202-01-01 | GH4: 2203-01-01 | GI4: 2204-01-01 | GJ4: 2205-01-01 | GK4: 2206-01-01 | GL4: 2207-01-01 | GM4: 2208-01-01 | GN4: 2209-01-01 | GO4: 2210-01-01 | GP4: 2211-01-01 | GQ4: 2212-01-01 | GR4: 2213-01-01 | GS4: 2214-01-01 | GT4: 2215-01-01 | GU4: 2216-01-01 | GV4: =EDATE(GU4,$G$4) -> 2217-01-01 | GW4: 2218-01-01 | GX4: 2219-01-01 | GY4: 2220-01-01 | GZ4: 2221-01-01 | HA4: 2222-01-01 | HB4: 2223-01-01 | HC4: 2224-01-01 | HD4: 2225-01-01 | HE4: 2226-01-01 | HF4: 2227-01-01 | HG4: 2228-01-01 | HH4: 2229-01-01 | HI4: 2230-01-01 | HJ4: 2231-01-01 | HK4: 2232-01-01 | HL4: 2233-01-01 | HM4: 2234-01-01 | HN4: 2235-01-01 | HO4: 2236-01-01 | HP4: 2237-01-01 | HQ4: 2238-01-01 | HR4: 2239-01-01 | HS4: 2240-01-01 | HT4: 2241-01-01 | HU4: 2242-01-01 | HV4: 2243-01-01 | HW4: 2244-01-01 | HX4: 2245-01-01 | HY4: 2246-01-01 | HZ4: 2247-01-01 | IA4: 2248-01-01 | IB4: 2249-01-01 | IC4: 2250-01-01 | ID4: 2251-01-01 | IE4: 2252-01-01 | IF4: 2253-01-01 | IG4: 2254-01-01 | IH4: 2255-01-01 | II4: 2256-01-01 | IJ4: 2257-01-01 | IK4: 2258-01-01 | IL4: 2259-01-01 | IM4: 2260-01-01 | IN4: 2261-01-01 | IO4: 2262-01-01 | IP4: 2263-01-01 | IQ4: 2264-01-01 | IR4: 2265-01-01 | IS4: 2266-01-01 | IT4: 2267-01-01 | IU4: 2268-01-01 | IV4: 2269-01-01 | IW4: 2270-01-01 | IX4: 2271-01-01 | IY4: 2272-01-01 | IZ4: 2273-01-01 | JA4: 2274-01-01 | JB4: 2275-01-01 | JC4: 2276-01-01 | JD4: 2277-01-01 | JE4: 2278-01-01 | JF4: 2279-01-01 | JG4: 2280-01-01 | JH4: =EDATE(JG4,$G$4) -> 2281-01-01 | JI4: 2282-01-01 | JJ4: 2283-01-01 | JK4: 2284-01-01 | JL4: 2285-01-01 | JM4: 2286-01-01 | JN4: 2287-01-01 | JO4: 2288-01-01 | JP4: 2289-01-01 | JQ4: 2290-01-01 | JR4: 2291-01-01 | JS4: 2292-01-01 | JT4: 2293-01-01 | JU4: 2294-01-01 | JV4: 2295-01-01 | JW4: 2296-01-01 | JX4: 2297-01-01 | JY4: 2298-01-01 | JZ4: 2299-01-01 | KA4: 2300-01-01 | KB4: 2301-01-01 | KC4: 2302-01-01 | KD4: 2303-01-01 | KE4: 2304-01-01 | KF4: 2305-01-01 | KG4: 2306-01-01 | KH4: 2307-01-01 | KI4: 2308-01-01 | KJ4: 2309-01-01 | KK4: 2310-01-01 | KL4: 2311-01-01 | KM4: 2312-01-01 | KN4: 2313-01-01 | KO4: 2314-01-01 | KP4: 2315-01-01 | KQ4: 2316-01-01 | KR4: 2317-01-01 | KS4: 2318-01-01 | KT4: 2319-01-01 | KU4: 2320-01-01 | KV4: 2321-01-01 | KW4: 2322-01-01 | KX4: =EDATE(KW4,$G$4) -> 2323-01-01 | KY4: 2324-01-01 | KZ4: 2325-01-01 | LA4: 2326-01-01 | LB4: 2327-01-01 | LC4: 2328-01-01 | LD4: 2329-01-01 | LE4: 2330-01-01 | LF4: 2331-01-01 | LG4: 2332-01-01 | LH4: 2333-01-01 | LI4: 2334-01-01 | LJ4: 2335-01-01 | LK4: 2336-01-01 | LL4: 2337-01-01 | LM4: 2338-01-01 | LN4: 2339-01-01 | LO4: 2340-01-01 | LP4: 2341-01-01 | LQ4: 2342-01-01 | LR4: 2343-01-01 | LS4: 2344-01-01 | LT4: 2345-01-01 | LU4: 2346-01-01 | LV4: 2347-01-01 | LW4: 2348-01-01 | LX4: 2349-01-01 | LY4: 2350-01-01 | LZ4: 2351-01-01 | MA4: 2352-01-01 | MB4: 2353-01-01 | MC4: 2354-01-01 | MD4: 2355-01-01 | ME4: 2356-01-01 | MF4: 2357-01-01 | MG4: 2358-01-01 | MH4: 2359-01-01 | MI4: 2360-01-01 | MJ4: 2361-01-01 | MK4: 2362-01-01 | ML4: 2363-01-01 | MM4: 2364-01-01 | MN4: 2365-01-01 | MO4: 2366-01-01 | MP4: 2367-01-01 | MQ4: 2368-01-01 | MR4: 2369-01-01 | MS4: 2370-01-01 | MT4: 2371-01-01 | MU4: 2372-01-01 | MV4: 2373-01-01 | MW4: 2374-01-01 | MX4: 2375-01-01 | MY4: 2376-01-01 | MZ4: 2377-01-01 | NA4: 2378-01-01 | NB4: 2379-01-01 | NC4: 2380-01-01 | ND4: 2381-01-01 | NE4: 2382-01-01 | NF4: 2383-01-01 | NG4: 2384-01-01 | NH4: 2385-01-01 | NI4: 2386-01-01 | NJ4: =EDATE(NI4,$G$4) -> 2387-01-01 | NK4: 2388-01-01 | NL4: 2389-01-01 | NM4: 2390-01-01 | NN4: 2391-01-01 | NO4: 2392-01-01 | NP4: 2393-01-01 | NQ4: 2394-01-01 | NR4: 2395-01-01 | NS4: 2396-01-01 | NT4: 2397-01-01 | NU4: 2398-01-01 | NV4: 2399-01-01
C5: Construction Period | G5: =F12 -> 2024-01-01 | J5: =J4<$G$5 -> TRUE | K5: =K4<$G$5 -> FALSE | L5: FALSE | M5: FALSE | N5: FALSE | O5: FALSE | P5: FALSE | Q5: FALSE | R5: FALSE | S5: FALSE | T5: FALSE | U5: FALSE | V5: FALSE | W5: FALSE | X5: FALSE | Y5: FALSE | Z5: FALSE | AA5: FALSE | AB5: FALSE | AC5: FALSE | AD5: FALSE | AE5: FALSE | AF5: FALSE | AG5: FALSE | AH5: FALSE | AI5: FALSE | AJ5: FALSE | AK5: FALSE | AL5: FALSE | AM5: FALSE | AN5: FALSE | AO5: FALSE | AP5: FALSE | AQ5: FALSE | AR5: FALSE | AS5: FALSE | AT5: FALSE | AU5: FALSE | AV5: FALSE | AW5: FALSE | AX5: FALSE | AY5: FALSE | AZ5: FALSE | BA5: FALSE | BB5: FALSE | BC5: FALSE | BD5: FALSE | BE5: FALSE | BF5: FALSE | BG5: FALSE | BH5: FALSE | BI5: FALSE | BJ5: FALSE | BK5: FALSE | BL5: FALSE | BM5: FALSE | BN5: FALSE | BO5: FALSE | BP5: FALSE | BQ5: FALSE | BR5: FALSE | BS5: FALSE | BT5: FALSE | BU5: FALSE | BV5: FALSE | BW5: =BW4<$G$5 -> FALSE | BX5: FALSE | BY5: FALSE | BZ5: FALSE | CA5: FALSE | CB5: FALSE | CC5: FALSE | CD5: FALSE | CE5: FALSE | CF5: FALSE | CG5: FALSE | CH5: FALSE | CI5: FALSE | CJ5: FALSE | CK5: FALSE | CL5: FALSE | CM5: FALSE | CN5: FALSE | CO5: FALSE | CP5: FALSE | CQ5: FALSE | CR5: FALSE | CS5: FALSE | CT5: FALSE | CU5: FALSE | CV5: FALSE | CW5: FALSE | CX5: FALSE | CY5: FALSE | CZ5: FALSE | DA5: FALSE | DB5: FALSE | DC5: FALSE | DD5: FALSE | DE5: FALSE | DF5: FALSE | DG5: FALSE | DH5: FALSE | DI5: FALSE | DJ5: FALSE | DK5: FALSE | DL5: FALSE | DM5: FALSE | DN5: FALSE | DO5: FALSE | DP5: FALSE | DQ5: FALSE | DR5: FALSE | DS5: FALSE | DT5: FALSE | DU5: FALSE | DV5: FALSE | DW5: FALSE | DX5: FALSE | DY5: FALSE | DZ5: FALSE | EA5: FALSE | EB5: FALSE | EC5: FALSE | ED5: FALSE | EE5: FALSE | EF5: FALSE | EG5: FALSE | EH5: FALSE | EI5: =EI4<$G$5 -> FALSE | EJ5: FALSE | EK5: FALSE | EL5: FALSE | EM5: FALSE | EN5: FALSE | EO5: FALSE | EP5: FALSE | EQ5: FALSE | ER5: FALSE | ES5: FALSE | ET5: FALSE | EU5: FALSE | EV5: FALSE | EW5: FALSE | EX5: FALSE | EY5: FALSE | EZ5: FALSE | FA5: FALSE | FB5: FALSE | FC5: FALSE | FD5: FALSE | FE5: FALSE | FF5: FALSE | FG5: FALSE | FH5: FALSE | FI5: FALSE | FJ5: FALSE | FK5: FALSE | FL5: FALSE | FM5: FALSE | FN5: FALSE | FO5: FALSE | FP5: FALSE | FQ5: FALSE | FR5: FALSE | FS5: FALSE | FT5: FALSE | FU5: FALSE | FV5: FALSE | FW5: FALSE | FX5: FALSE | FY5: FALSE | FZ5: FALSE | GA5: FALSE | GB5: FALSE | GC5: FALSE | GD5: FALSE | GE5: FALSE | GF5: FALSE | GG5: FALSE | GH5: FALSE | GI5: FALSE | GJ5: FALSE | GK5: FALSE | GL5: FALSE | GM5: FALSE | GN5: FALSE | GO5: FALSE | GP5: FALSE | GQ5: FALSE | GR5: FALSE | GS5: FALSE | GT5: FALSE | GU5: =GU4<$G$5 -> FALSE | GV5: FALSE | GW5: FALSE | GX5: FALSE | GY5: FALSE | GZ5: FALSE | HA5: FALSE | HB5: FALSE | HC5: FALSE | HD5: FALSE | HE5: FALSE | HF5: FALSE | HG5: FALSE | HH5: FALSE | HI5: FALSE | HJ5: FALSE | HK5: FALSE | HL5: FALSE | HM5: FALSE | HN5: FALSE | HO5: FALSE | HP5: FALSE | HQ5: FALSE | HR5: FALSE | HS5: FALSE | HT5: FALSE | HU5: FALSE | HV5: FALSE | HW5: FALSE | HX5: FALSE | HY5: FALSE | HZ5: FALSE | IA5: FALSE | IB5: FALSE | IC5: FALSE | ID5: FALSE | IE5: FALSE | IF5: FALSE | IG5: FALSE | IH5: FALSE | II5: FALSE | IJ5: FALSE | IK5: FALSE | IL5: FALSE | IM5: FALSE | IN5: FALSE | IO5: FALSE | IP5: FALSE | IQ5: FALSE | IR5: FALSE | IS5: FALSE | IT5: FALSE | IU5: FALSE | IV5: FALSE | IW5: FALSE | IX5: FALSE | IY5: FALSE | IZ5: FALSE | JA5: FALSE | JB5: FALSE | JC5: FALSE | JD5: FALSE | JE5: FALSE | JF5: FALSE | JG5: =JG4<$G$5 -> FALSE | JH5: FALSE | JI5: FALSE | JJ5: FALSE | JK5: FALSE | JL5: FALSE | JM5: FALSE | JN5: FALSE | JO5: FALSE | JP5: FALSE | JQ5: FALSE | JR5: FALSE | JS5: FALSE | JT5: FALSE | JU5: FALSE | JV5: FALSE | JW5: FALSE | JX5: FALSE | JY5: FALSE | JZ5: FALSE | KA5: FALSE | KB5: FALSE | KC5: FALSE | KD5: FALSE | KE5: FALSE | KF5: FALSE | KG5: FALSE | KH5: FALSE | KI5: FALSE | KJ5: FALSE | KK5: FALSE | KL5: FALSE | KM5: FALSE | KN5: FALSE | KO5: FALSE | KP5: FALSE | KQ5: FALSE | KR5: FALSE | KS5: FALSE | KT5: FALSE | KU5: FALSE | KV5: FALSE | KW5: FALSE | KX5: =KX4<$G$5 -> FALSE | KY5: =KY4<$G$5 -> FALSE | KZ5: =KZ4<$G$5 -> FALSE | LA5: =LA4<$G$5 -> FALSE | LB5: =LB4<$G$5 -> FALSE | LC5: =LC4<$G$5 -> FALSE | LD5: =LD4<$G$5 -> FALSE | LE5: =LE4<$G$5 -> FALSE | LF5: =LF4<$G$5 -> FALSE | LG5: =LG4<$G$5 -> FALSE | LH5: =LH4<$G$5 -> FALSE | LI5: =LI4<$G$5 -> FALSE | LJ5: =LJ4<$G$5 -> FALSE | LK5: =LK4<$G$5 -> FALSE | LL5: =LL4<$G$5 -> FALSE | LM5: =LM4<$G$5 -> FALSE | LN5: =LN4<$G$5 -> FALSE | LO5: =LO4<$G$5 -> FALSE | LP5: =LP4<$G$5 -> FALSE | LQ5: =LQ4<$G$5 -> FALSE | LR5: =LR4<$G$5 -> FALSE | LS5: =LS4<$G$5 -> FALSE | LT5: =LT4<$G$5 -> FALSE | LU5: =LU4<$G$5 -> FALSE | LV5: =LV4<$G$5 -> FALSE | LW5: =LW4<$G$5 -> FALSE | LX5: =LX4<$G$5 -> FALSE | LY5: =LY4<$G$5 -> FALSE | LZ5: =LZ4<$G$5 -> FALSE | MA5: =MA4<$G$5 -> FALSE | MB5: =MB4<$G$5 -> FALSE | MC5: =MC4<$G$5 -> FALSE | MD5: =MD4<$G$5 -> FALSE | ME5: =ME4<$G$5 -> FALSE | MF5: =MF4<$G$5 -> FALSE | MG5: =MG4<$G$5 -> FALSE | MH5: =MH4<$G$5 -> FALSE | MI5: =MI4<$G$5 -> FALSE | MJ5: =MJ4<$G$5 -> FALSE | MK5: =MK4<$G$5 -> FALSE | ML5: =ML4<$G$5 -> FALSE | MM5: =MM4<$G$5 -> FALSE | MN5: =MN4<$G$5 -> FALSE | MO5: =MO4<$G$5 -> FALSE | MP5: =MP4<$G$5 -> FALSE | MQ5: =MQ4<$G$5 -> FALSE | MR5: =MR4<$G$5 -> FALSE | MS5: =MS4<$G$5 -> FALSE | MT5: =MT4<$G$5 -> FALSE | MU5: =MU4<$G$5 -> FALSE | MV5: =MV4<$G$5 -> FALSE | MW5: =MW4<$G$5 -> FALSE | MX5: =MX4<$G$5 -> FALSE | MY5: =MY4<$G$5 -> FALSE | MZ5: =MZ4<$G$5 -> FALSE | NA5: =NA4<$G$5 -> FALSE | NB5: =NB4<$G$5 -> FALSE | NC5: =NC4<$G$5 -> FALSE | ND5: =ND4<$G$5 -> FALSE | NE5: =NE4<$G$5 -> FALSE | NF5: =NF4<$G$5 -> FALSE | NG5: =NG4<$G$5 -> FALSE | NH5: =NH4<$G$5 -> FALSE | NI5: =NI4<$G$5 -> FALSE | NJ5: =NJ4<$G$5 -> FALSE | NK5: =NK4<$G$5 -> FALSE | NL5: =NL4<$G$5 -> FALSE | NM5: =NM4<$G$5 -> FALSE | NN5: =NN4<$G$5 -> FALSE | NO5: =NO4<$G$5 -> FALSE | NP5: =NP4<$G$5 -> FALSE | NQ5: =NQ4<$G$5 -> FALSE | NR5: =NR4<$G$5 -> FALSE | NS5: =NS4<$G$5 -> FALSE | NT5: =NT4<$G$5 -> FALSE | NU5: =NU4<$G$5 -> FALSE | NV5: =NV4<$G$5 -> FALSE
C6: Operation Period | G6: =F12 -> 2024-01-01 | H6: =F15 -> 2049-01-01 | J6: =AND(J4>=$G$6,J4<$H$6) -> FALSE | K6: =AND(K4>=$G$6,K4<$H$6) -> TRUE | L6: TRUE | M6: TRUE | N6: TRUE | O6: TRUE | P6: TRUE | Q6: TRUE | R6: TRUE | S6: TRUE | T6: TRUE | U6: TRUE | V6: TRUE | W6: TRUE | X6: TRUE | Y6: TRUE | Z6: TRUE | AA6: TRUE | AB6: TRUE | AC6: TRUE | AD6: TRUE | AE6: TRUE | AF6: TRUE | AG6: TRUE | AH6: TRUE | AI6: TRUE | AJ6: FALSE | AK6: FALSE | AL6: FALSE | AM6: FALSE | AN6: FALSE | AO6: FALSE | AP6: FALSE | AQ6: FALSE | AR6: FALSE | AS6: FALSE | AT6: FALSE | AU6: FALSE | AV6: FALSE | AW6: FALSE | AX6: FALSE | AY6: FALSE | AZ6: FALSE | BA6: FALSE | BB6: FALSE | BC6: FALSE | BD6: FALSE | BE6: FALSE | BF6: FALSE | BG6: FALSE | BH6: FALSE | BI6: FALSE | BJ6: FALSE | BK6: FALSE | BL6: FALSE | BM6: FALSE | BN6: FALSE | BO6: FALSE | BP6: FALSE | BQ6: FALSE | BR6: FALSE | BS6: FALSE | BT6: FALSE | BU6: FALSE | BV6: FALSE | BW6: =AND(BW4>=$G$6,BW4<$H$6) -> FALSE | BX6: FALSE | BY6: FALSE | BZ6: FALSE | CA6: FALSE | CB6: FALSE | CC6: FALSE | CD6: FALSE | CE6: FALSE | CF6: FALSE | CG6: FALSE | CH6: FALSE | CI6: FALSE | CJ6: FALSE | CK6: FALSE | CL6: FALSE | CM6: FALSE | CN6: FALSE | CO6: FALSE | CP6: FALSE | CQ6: FALSE | CR6: FALSE | CS6: FALSE | CT6: FALSE | CU6: FALSE | CV6: FALSE | CW6: FALSE | CX6: FALSE | CY6: FALSE | CZ6: FALSE | DA6: FALSE | DB6: FALSE | DC6: FALSE | DD6: FALSE | DE6: FALSE | DF6: FALSE | DG6: FALSE | DH6: FALSE | DI6: FALSE | DJ6: FALSE | DK6: FALSE | DL6: FALSE | DM6: FALSE | DN6: FALSE | DO6: FALSE | DP6: FALSE | DQ6: FALSE | DR6: FALSE | DS6: FALSE | DT6: FALSE | DU6: FALSE | DV6: FALSE | DW6: FALSE | DX6: FALSE | DY6: FALSE | DZ6: FALSE | EA6: FALSE | EB6: FALSE | EC6: FALSE | ED6: FALSE | EE6: FALSE | EF6: FALSE | EG6: FALSE | EH6: FALSE | EI6: =AND(EI4>=$G$6,EI4<$H$6) -> FALSE | EJ6: FALSE | EK6: FALSE | EL6: FALSE | EM6: FALSE | EN6: FALSE | EO6: FALSE | EP6: FALSE | EQ6: FALSE | ER6: FALSE | ES6: FALSE | ET6: FALSE | EU6: FALSE | EV6: FALSE | EW6: FALSE | EX6: FALSE | EY6: FALSE | EZ6: FALSE | FA6: FALSE | FB6: FALSE | FC6: FALSE | FD6: FALSE | FE6: FALSE | FF6: FALSE | FG6: FALSE | FH6: FALSE | FI6: FALSE | FJ6: FALSE | FK6: FALSE | FL6: FALSE | FM6: FALSE | FN6: FALSE | FO6: FALSE | FP6: FALSE | FQ6: FALSE | FR6: FALSE | FS6: FALSE | FT6: FALSE | FU6: FALSE | FV6: FALSE | FW6: FALSE | FX6: FALSE | FY6: FALSE | FZ6: FALSE | GA6: FALSE | GB6: FALSE | GC6: FALSE | GD6: FALSE | GE6: FALSE | GF6: FALSE | GG6: FALSE | GH6: FALSE | GI6: FALSE | GJ6: FALSE | GK6: FALSE | GL6: FALSE | GM6: FALSE | GN6: FALSE | GO6: FALSE | GP6: FALSE | GQ6: FALSE | GR6: FALSE | GS6: FALSE | GT6: FALSE | GU6: =AND(GU4>=$G$6,GU4<$H$6) -> FALSE | GV6: FALSE | GW6: FALSE | GX6: FALSE | GY6: FALSE | GZ6: FALSE | HA6: FALSE | HB6: FALSE | HC6: FALSE | HD6: FALSE | HE6: FALSE | HF6: FALSE | HG6: FALSE | HH6: FALSE | HI6: FALSE | HJ6: FALSE | HK6: FALSE | HL6: FALSE | HM6: FALSE | HN6: FALSE | HO6: FALSE | HP6: FALSE | HQ6: FALSE | HR6: FALSE | HS6: FALSE | HT6: FALSE | HU6: FALSE | HV6: FALSE | HW6: FALSE | HX6: FALSE | HY6: FALSE | HZ6: FALSE | IA6: FALSE | IB6: FALSE | IC6: FALSE | ID6: FALSE | IE6: FALSE | IF6: FALSE | IG6: FALSE | IH6: FALSE | II6: FALSE | IJ6: FALSE | IK6: FALSE | IL6: FALSE | IM6: FALSE | IN6: FALSE | IO6: FALSE | IP6: FALSE | IQ6: FALSE | IR6: FALSE | IS6: FALSE | IT6: FALSE | IU6: FALSE | IV6: FALSE | IW6: FALSE | IX6: FALSE | IY6: FALSE | IZ6: FALSE | JA6: FALSE | JB6: FALSE | JC6: FALSE | JD6: FALSE | JE6: FALSE | JF6: FALSE | JG6: =AND(JG4>=$G$6,JG4<$H$6) -> FALSE | JH6: FALSE | JI6: FALSE | JJ6: FALSE | JK6: FALSE | JL6: FALSE | JM6: FALSE | JN6: FALSE | JO6: FALSE | JP6: FALSE | JQ6: FALSE | JR6: FALSE | JS6: FALSE | JT6: FALSE | JU6: FALSE | JV6: FALSE | JW6: FALSE | JX6: FALSE | JY6: FALSE | JZ6: FALSE | KA6: FALSE | KB6: FALSE | KC6: FALSE | KD6: FALSE | KE6: FALSE | KF6: FALSE | KG6: FALSE | KH6: FALSE | KI6: FALSE | KJ6: FALSE | KK6: FALSE | KL6: FALSE | KM6: FALSE | KN6: FALSE | KO6: FALSE | KP6: FALSE | KQ6: FALSE | KR6: FALSE | KS6: FALSE | KT6: FALSE | KU6: FALSE | KV6: FALSE | KW6: FALSE | KX6: FALSE | KY6: FALSE | KZ6: FALSE | LA6: FALSE | LB6: FALSE | LC6: FALSE | LD6: FALSE | LE6: FALSE | LF6: FALSE | LG6: FALSE | LH6: FALSE | LI6: FALSE | LJ6: FALSE | LK6: FALSE | LL6: FALSE | LM6: FALSE | LN6: FALSE | LO6: FALSE | LP6: FALSE | LQ6: FALSE | LR6: FALSE | LS6: =AND(LS4>=$G$6,LS4<$H$6) -> FALSE | LT6: FALSE | LU6: FALSE | LV6: FALSE | LW6: FALSE | LX6: FALSE | LY6: FALSE | LZ6: FALSE | MA6: FALSE | MB6: FALSE | MC6: FALSE | MD6: FALSE | ME6: FALSE | MF6: FALSE | MG6: FALSE | MH6: FALSE | MI6: FALSE | MJ6: FALSE | MK6: FALSE | ML6: FALSE | MM6: FALSE | MN6: FALSE | MO6: FALSE | MP6: FALSE | MQ6: FALSE | MR6: FALSE | MS6: FALSE | MT6: FALSE | MU6: FALSE | MV6: FALSE | MW6: FALSE | MX6: FALSE | MY6: FALSE | MZ6: FALSE | NA6: FALSE | NB6: FALSE | NC6: FALSE | ND6: FALSE | NE6: FALSE | NF6: FALSE | NG6: FALSE | NH6: FALSE | NI6: FALSE | NJ6: FALSE | NK6: FALSE | NL6: FALSE | NM6: FALSE | NN6: FALSE | NO6: FALSE | NP6: FALSE | NQ6: FALSE | NR6: FALSE | NS6: FALSE | NT6: FALSE | NU6: FALSE | NV6: FALSE
B8: Timing Assumptions
C9: Start Date | E9: Date | F9: 2023-01-01
C10: Months in Period | E10: Months | F10: 12
C11: Construction Period | E11: Years | F11: 1
C12: Start of Operations | E12: Date | F12: =EDATE(F9,F10*F11) -> 2024-01-01
C14: Operating Period | E14: Years | F14: ='Levelized Cost'!F100 -> 25
C15: End of Operations | E15: Date | F15: =EDATE(F12,F14*F10) -> 2049-01-01
C17: Replacement Period | E17: Years | F17: 10
B19: Operating Assumptions
C20: Capacity of Ammonia | E20: Tons/yr | F20: 346800
C21: Capacity of Ammonia | E21: Tons/hr | F21: =F20/8760 -> 39.5890411
C22: Load Factor | E22: % | F22: ='Levelized Cost'!F23 -> 0.96
C24: Hydrogen Input /Ammonia | E24: A Tons/H2Tons | F24: 5.6
C25: Nitrogen/Hydrogen | E25: N2 Tons/H2 Tons | F25: 4.6
C26: Power Input/Ammonia | E26: MWH/A Ton | F26: 0.738
C27: Water Input/Ammonia | E27: Litres/Ton | F27: 0
B29: Reveues and Costs
C30: Price =LCOA | E30: USD/Ton A | F30: 380.613596 | G30: LCOA
C31: Hydrogen Electrolyzer Cost | E31: USD/kg | F31: ='Levelized Cost'!F70 -> 2.052183334
C32: Hyrogen Compression Cost | E32: USD/kg | F32: ='Levelized Cost'!F90 -> 0.1224767399
C33: Nitrogen Air Separation | E33: USD/Ton A | F33: ='Levelized Cost'!F111 -> 20.78783138
C34: Power Cost | E34: USD/MWH | F34: ='Levelized Cost'!F13 -> 21
C35: Water Cost | E35: USD/Litre | F35: 0
C38: Capacity in Tons | E38: Ton A | F38: =F21 -> 39.5890411
C39: Required H2 | E39: kg | F39: =F38/F24*1000 -> 7069.471624
C40: Electrolyzer Efficiency | E40: kWe/kg | F40: ='Levelized Cost'!F24 -> 56
C41: Required kW | E41: kW | F41: =F39*F40 -> 395890.411
C42: Required MW | E42: MW | F42: =F41/1000 -> 395.890411
C43: Applied MW | E43: MW | F43: ='Levelized Cost'!F21 -> 400
C45: Up Front Cap Exp | E45: USD/kWe | F45: ='Levelized Cost'!F123 -> 487
C46: Total Up-Front Cost | E46: USD | F46: =F45*F43*1000 -> 194800000
C48: Operating Cost % of Cap Exp | E48: % | F48: ='Levelized Cost'!F120 -> 0.015
C49: Operating Cost/Year | F49: =F46*F48 -> 2922000
C51: Replacement Schedule
D52: Years Between Replacement | E52: Years | H52: 10 | I52: 10 | J52: 10 | K52: 10
D53: Replacement Periods | E53: Date | F53: =J4 -> 2023-01-01 | G53: =F12 -> 2024-01-01 | H53: =EDATE(G53,H52*12) -> 2034-01-01 | I53: =EDATE(H53,I52*12) -> 2044-01-01 | J53: =EDATE(I53,J52*12) -> 2054-01-01 | K53: =EDATE(J53,K52*12) -> 2064-01-01
D54: Replacement Cap Exp | E54: USD | H54: ='Levelized Cost'!V126 -> 58381560 | I54: ='Levelized Cost'!AF126 -> 58323120
B56: Operations
C57: Capacity | E57: Tons/Hour | F57: =F21 -> 39.5890411 | G57: Tons | J57: =$F$57*J6 -> 0 | K57: 39.5890411 | L57: 39.5890411 | M57: 39.5890411 | N57: 39.5890411 | O57: 39.5890411 | P57: 39.5890411 | Q57: 39.5890411 | R57: 39.5890411 | S57: 39.5890411 | T57: 39.5890411 | U57: 39.5890411 | V57: 39.5890411 | W57: 39.5890411 | X57: 39.5890411 | Y57: 39.5890411 | Z57: 39.5890411 | AA57: 39.5890411 | AB57: 39.5890411 | AC57: 39.5890411 | AD57: 39.5890411 | AE57: 39.5890411 | AF57: 39.5890411 | AG57: 39.5890411 | AH57: 39.5890411 | AI57: 39.5890411 | AJ57: 0 | AK57: 0 | AL57: 0 | AM57: 0 | AN57: 0 | AO57: 0 | AP57: 0 | AQ57: 0 | AR57: 0 | AS57: 0 | AT57: 0 | AU57: 0 | AV57: 0 | AW57: 0 | AX57: 0 | AY57: 0 | AZ57: 0 | BA57: 0 | BB57: 0 | BC57: 0 | BD57: 0 | BE57: 0 | BF57: 0 | BG57: 0 | BH57: 0 | BI57: 0 | BJ57: 0 | BK57: 0 | BL57: 0 | BM57: 0 | BN57: 0 | BO57: 0 | BP57: 0 | BQ57: 0 | BR57: 0 | BS57: 0 | BT57: 0 | BU57: 0 | BV57: =$F$57*BV6 -> 0 | BW57: 0 | BX57: 0 | BY57: 0 | BZ57: 0 | CA57: 0 | CB57: 0 | CC57: 0 | CD57: 0 | CE57: 0 | CF57: 0 | CG57: 0 | CH57: 0 | CI57: 0 | CJ57: 0 | CK57: 0 | CL57: 0 | CM57: 0 | CN57: 0 | CO57: 0 | CP57: 0 | CQ57: 0 | CR57: 0 | CS57: 0 | CT57: 0 | CU57: 0 | CV57: 0 | CW57: 0 | CX57: 0 | CY57: 0 | CZ57: 0 | DA57: 0 | DB57: 0 | DC57: 0 | DD57: 0 | DE57: 0 | DF57: 0 | DG57: 0 | DH57: 0 | DI57: 0 | DJ57: 0 | DK57: 0 | DL57: 0 | DM57: 0 | DN57: 0 | DO57: 0 | DP57: 0 | DQ57: 0 | DR57: 0 | DS57: 0 | DT57: 0 | DU57: 0 | DV57: 0 | DW57: 0 | DX57: 0 | DY57: 0 | DZ57: 0 | EA57: 0 | EB57: 0 | EC57: 0 | ED57: 0 | EE57: 0 | EF57: 0 | EG57: 0 | EH57: =$F$57*EH6 -> 0 | EI57: 0 | EJ57: 0 | EK57: 0 | EL57: 0 | EM57: 0 | EN57: 0 | EO57: 0 | EP57: 0 | EQ57: 0 | ER57: 0 | ES57: 0 | ET57: 0 | EU57: 0 | EV57: 0 | EW57: 0 | EX57: 0 | EY57: 0 | EZ57: 0 | FA57: 0 | FB57: 0 | FC57: 0 | FD57: 0 | FE57: 0 | FF57: 0 | FG57: 0 | FH57: 0 | FI57: 0 | FJ57: 0 | FK57: 0 | FL57: 0 | FM57: 0 | FN57: 0 | FO57: 0 | FP57: 0 | FQ57: 0 | FR57: 0 | FS57: 0 | FT57: 0 | FU57: 0 | FV57: 0 | FW57: 0 | FX57: 0 | FY57: 0 | FZ57: 0 | GA57: 0 | GB57: 0 | GC57: 0 | GD57: 0 | GE57: 0 | GF57: 0 | GG57: 0 | GH57: 0 | GI57: 0 | GJ57: 0 | GK57: 0 | GL57: 0 | GM57: 0 | GN57: 0 | GO57: 0 | GP57: 0 | GQ57: 0 | GR57: 0 | GS57: 0 | GT57: =$F$57*GT6 -> 0 | GU57: 0 | GV57: 0 | GW57: 0 | GX57: 0 | GY57: 0 | GZ57: 0 | HA57: 0 | HB57: 0 | HC57: 0 | HD57: 0 | HE57: 0 | HF57: 0 | HG57: 0 | HH57: 0 | HI57: 0 | HJ57: 0 | HK57: 0 | HL57: 0 | HM57: 0 | HN57: 0 | HO57: 0 | HP57: 0 | HQ57: 0 | HR57: 0 | HS57: 0 | HT57: 0 | HU57: 0 | HV57: 0 | HW57: 0 | HX57: 0 | HY57: 0 | HZ57: 0 | IA57: 0 | IB57: 0 | IC57: 0 | ID57: 0 | IE57: 0 | IF57: 0 | IG57: 0 | IH57: 0 | II57: 0 | IJ57: 0 | IK57: 0 | IL57: 0 | IM57: 0 | IN57: 0 | IO57: 0 | IP57: 0 | IQ57: 0 | IR57: 0 | IS57: 0 | IT57: 0 | IU57: 0 | IV57: 0 | IW57: 0 | IX57: 0 | IY57: 0 | IZ57: 0 | JA57: 0 | JB57: 0 | JC57: 0 | JD57: 0 | JE57: 0 | JF57: =$F$57*JF6 -> 0 | JG57: 0 | JH57: 0 | JI57: 0 | JJ57: 0 | JK57: 0 | JL57: 0 | JM57: 0 | JN57: 0 | JO57: 0 | JP57: 0 | JQ57: 0 | JR57: 0 | JS57: 0 | JT57: 0 | JU57: 0 | JV57: 0 | JW57: 0 | JX57: 0 | JY57: 0 | JZ57: 0 | KA57: 0 | KB57: 0 | KC57: 0 | KD57: 0 | KE57: 0 | KF57: 0 | KG57: 0 | KH57: 0 | KI57: 0 | KJ57: 0 | KK57: 0 | KL57: 0 | KM57: 0 | KN57: 0 | KO57: 0 | KP57: 0 | KQ57: 0 | KR57: 0 | KS57: 0 | KT57: 0 | KU57: 0 | KV57: 0 | KW57: 0 | KX57: 0 | KY57: 0 | KZ57: 0 | LA57: 0 | LB57: 0 | LC57: 0 | LD57: 0 | LE57: 0 | LF57: 0 | LG57: 0 | LH57: 0 | LI57: 0 | LJ57: 0 | LK57: 0 | LL57: 0 | LM57: 0 | LN57: 0 | LO57: 0 | LP57: 0 | LQ57: 0 | LR57: =$F$57*LR6 -> 0 | LS57: 0 | LT57: 0 | LU57: 0 | LV57: 0 | LW57: 0 | LX57: 0 | LY57: 0 | LZ57: 0 | MA57: 0 | MB57: 0 | MC57: 0 | MD57: 0 | ME57: 0 | MF57: 0 | MG57: 0 | MH57: 0 | MI57: 0 | MJ57: 0 | MK57: 0 | ML57: 0 | MM57: 0 | MN57: 0 | MO57: 0 | MP57: 0 | MQ57: 0 | MR57: 0 | MS57: 0 | MT57: 0 | MU57: 0 | MV57: 0 | MW57: 0 | MX57: 0 | MY57: 0 | MZ57: 0 | NA57: 0 | NB57: 0 | NC57: 0 | ND57: 0 | NE57: 0 | NF57: 0 | NG57: 0 | NH57: 0 | NI57: 0 | NJ57: 0 | NK57: 0 | NL57: 0 | NM57: 0 | NN57: 0 | NO57: 0 | NP57: 0 | NQ57: 0 | NR57: 0 | NS57: 0 | NT57: 0 | NU57: 0 | NV57: 0
C58: Load Factor | E58: % | F58: =F22 -> 0.96 | J58: =$F$58*J6 -> 0 | K58: 0.96 | L58: 0.96 | M58: 0.96 | N58: 0.96 | O58: 0.96 | P58: 0.96 | Q58: 0.96 | R58: 0.96 | S58: 0.96 | T58: 0.96 | U58: 0.96 | V58: 0.96 | W58: 0.96 | X58: 0.96 | Y58: 0.96 | Z58: 0.96 | AA58: 0.96 | AB58: 0.96 | AC58: 0.96 | AD58: 0.96 | AE58: 0.96 | AF58: 0.96 | AG58: 0.96 | AH58: 0.96 | AI58: 0.96 | AJ58: 0 | AK58: 0 | AL58: 0 | AM58: 0 | AN58: 0 | AO58: 0 | AP58: 0 | AQ58: 0 | AR58: 0 | AS58: 0 | AT58: 0 | AU58: 0 | AV58: 0 | AW58: 0 | AX58: 0 | AY58: 0 | AZ58: 0 | BA58: 0 | BB58: 0 | BC58: 0 | BD58: 0 | BE58: 0 | BF58: 0 | BG58: 0 | BH58: 0 | BI58: 0 | BJ58: 0 | BK58: 0 | BL58: 0 | BM58: 0 | BN58: 0 | BO58: 0 | BP58: 0 | BQ58: 0 | BR58: 0 | BS58: 0 | BT58: 0 | BU58: 0 | BV58: =$F$58*BV6 -> 0 | BW58: 0 | BX58: 0 | BY58: 0 | BZ58: 0 | CA58: 0 | CB58: 0 | CC58: 0 | CD58: 0 | CE58: 0 | CF58: 0 | CG58: 0 | CH58: 0 | CI58: 0 | CJ58: 0 | CK58: 0 | CL58: 0 | CM58: 0 | CN58: 0 | CO58: 0 | CP58: 0 | CQ58: 0 | CR58: 0 | CS58: 0 | CT58: 0 | CU58: 0 | CV58: 0 | CW58: 0 | CX58: 0 | CY58: 0 | CZ58: 0 | DA58: 0 | DB58: 0 | DC58: 0 | DD58: 0 | DE58: 0 | DF58: 0 | DG58: 0 | DH58: 0 | DI58: 0 | DJ58: 0 | DK58: 0 | DL58: 0 | DM58: 0 | DN58: 0 | DO58: 0 | DP58: 0 | DQ58: 0 | DR58: 0 | DS58: 0 | DT58: 0 | DU58: 0 | DV58: 0 | DW58: 0 | DX58: 0 | DY58: 0 | DZ58: 0 | EA58: 0 | EB58: 0 | EC58: 0 | ED58: 0 | EE58: 0 | EF58: 0 | EG58: 0 | EH58: =$F$58*EH6 -> 0 | EI58: 0 | EJ58: 0 | EK58: 0 | EL58: 0 | EM58: 0 | EN58: 0 | EO58: 0 | EP58: 0 | EQ58: 0 | ER58: 0 | ES58: 0 | ET58: 0 | EU58: 0 | EV58: 0 | EW58: 0 | EX58: 0 | EY58: 0 | EZ58: 0 | FA58: 0 | FB58: 0 | FC58: 0 | FD58: 0 | FE58: 0 | FF58: 0 | FG58: 0 | FH58: 0 | FI58: 0 | FJ58: 0 | FK58: 0 | FL58: 0 | FM58: 0 | FN58: 0 | FO58: 0 | FP58: 0 | FQ58: 0 | FR58: 0 | FS58: 0 | FT58: 0 | FU58: 0 | FV58: 0 | FW58: 0 | FX58: 0 | FY58: 0 | FZ58: 0 | GA58: 0 | GB58: 0 | GC58: 0 | GD58: 0 | GE58: 0 | GF58: 0 | GG58: 0 | GH58: 0 | GI58: 0 | GJ58: 0 | GK58: 0 | GL58: 0 | GM58: 0 | GN58: 0 | GO58: 0 | GP58: 0 | GQ58: 0 | GR58: 0 | GS58: 0 | GT58: =$F$58*GT6 -> 0 | GU58: 0 | GV58: 0 | GW58: 0 | GX58: 0 | GY58: 0 | GZ58: 0 | HA58: 0 | HB58: 0 | HC58: 0 | HD58: 0 | HE58: 0 | HF58: 0 | HG58: 0 | HH58: 0 | HI58: 0 | HJ58: 0 | HK58: 0 | HL58: 0 | HM58: 0 | HN58: 0 | HO58: 0 | HP58: 0 | HQ58: 0 | HR58: 0 | HS58: 0 | HT58: 0 | HU58: 0 | HV58: 0 | HW58: 0 | HX58: 0 | HY58: 0 | HZ58: 0 | IA58: 0 | IB58: 0 | IC58: 0 | ID58: 0 | IE58: 0 | IF58: 0 | IG58: 0 | IH58: 0 | II58: 0 | IJ58: 0 | IK58: 0 | IL58: 0 | IM58: 0 | IN58: 0 | IO58: 0 | IP58: 0 | IQ58: 0 | IR58: 0 | IS58: 0 | IT58: 0 | IU58: 0 | IV58: 0 | IW58: 0 | IX58: 0 | IY58: 0 | IZ58: 0 | JA58: 0 | JB58: 0 | JC58: 0 | JD58: 0 | JE58: 0 | JF58: =$F$58*JF6 -> 0 | JG58: 0 | JH58: 0 | JI58: 0 | JJ58: 0 | JK58: 0 | JL58: 0 | JM58: 0 | JN58: 0 | JO58: 0 | JP58: 0 | JQ58: 0 | JR58: 0 | JS58: 0 | JT58: 0 | JU58: 0 | JV58: 0 | JW58: 0 | JX58: 0 | JY58: 0 | JZ58: 0 | KA58: 0 | KB58: 0 | KC58: 0 | KD58: 0 | KE58: 0 | KF58: 0 | KG58: 0 | KH58: 0 | KI58: 0 | KJ58: 0 | KK58: 0 | KL58: 0 | KM58: 0 | KN58: 0 | KO58: 0 | KP58: 0 | KQ58: 0 | KR58: 0 | KS58: 0 | KT58: 0 | KU58: 0 | KV58: 0 | KW58: 0 | KX58: 0 | KY58: 0 | KZ58: 0 | LA58: 0 | LB58: 0 | LC58: 0 | LD58: 0 | LE58: 0 | LF58: 0 | LG58: 0 | LH58: 0 | LI58: 0 | LJ58: 0 | LK58: 0 | LL58: 0 | LM58: 0 | LN58: 0 | LO58: 0 | LP58: 0 | LQ58: 0 | LR58: =$F$58*LR6 -> 0 | LS58: 0 | LT58: 0 | LU58: 0 | LV58: 0 | LW58: 0 | LX58: 0 | LY58: 0 | LZ58: 0 | MA58: 0 | MB58: 0 | MC58: 0 | MD58: 0 | ME58: 0 | MF58: 0 | MG58: 0 | MH58: 0 | MI58: 0 | MJ58: 0 | MK58: 0 | ML58: 0 | MM58: 0 | MN58: 0 | MO58: 0 | MP58: 0 | MQ58: 0 | MR58: 0 | MS58: 0 | MT58: 0 | MU58: 0 | MV58: 0 | MW58: 0 | MX58: 0 | MY58: 0 | MZ58: 0 | NA58: 0 | NB58: 0 | NC58: 0 | ND58: 0 | NE58: 0 | NF58: 0 | NG58: 0 | NH58: 0 | NI58: 0 | NJ58: 0 | NK58: 0 | NL58: 0 | NM58: 0 | NN58: 0 | NO58: 0 | NP58: 0 | NQ58: 0 | NR58: 0 | NS58: 0 | NT58: 0 | NU58: 0 | NV58: 0
C59: Hours in Period | E59: Hours | J59: =(K4-J4)*24 -> 8760 | K59: 8784 | L59: 8760 | M59: 8760 | N59: 8760 | O59: 8784 | P59: 8760 | Q59: 8760 | R59: 8760 | S59: 8784 | T59: 8760 | U59: 8760 | V59: 8760 | W59: 8784 | X59: 8760 | Y59: 8760 | Z59: 8760 | AA59: 8784 | AB59: 8760 | AC59: 8760 | AD59: 8760 | AE59: 8784 | AF59: 8760 | AG59: 8760 | AH59: 8760 | AI59: 8784 | AJ59: 8760 | AK59: 8760 | AL59: 8760 | AM59: 8784 | AN59: 8760 | AO59: 8760 | AP59: 8760 | AQ59: 8784 | AR59: 8760 | AS59: 8760 | AT59: 8760 | AU59: 8784 | AV59: 8760 | AW59: 8760 | AX59: 8760 | AY59: 8784 | AZ59: 8760 | BA59: 8760 | BB59: 8760 | BC59: 8784 | BD59: 8760 | BE59: 8760 | BF59: 8760 | BG59: 8784 | BH59: 8760 | BI59: 8760 | BJ59: 8760 | BK59: 8784 | BL59: 8760 | BM59: 8760 | BN59: 8760 | BO59: 8784 | BP59: 8760 | BQ59: 8760 | BR59: 8760 | BS59: 8784 | BT59: 8760 | BU59: 8760 | BV59: =(BW4-BV4)*24 -> 8760 | BW59: 8784 | BX59: 8760 | BY59: 8760 | BZ59: 8760 | CA59: 8784 | CB59: 8760 | CC59: 8760 | CD59: 8760 | CE59: 8784 | CF59: 8760 | CG59: 8760 | CH59: 8760 | CI59: 8760 | CJ59: 8760 | CK59: 8760 | CL59: 8760 | CM59: 8784 | CN59: 8760 | CO59: 8760 | CP59: 8760 | CQ59: 8784 | CR59: 8760 | CS59: 8760 | CT59: 8760 | CU59: 8784 | CV59: 8760 | CW59: 8760 | CX59: 8760 | CY59: 8784 | CZ59: 8760 | DA59: 8760 | DB59: 8760 | DC59: 8784 | DD59: 8760 | DE59: 8760 | DF59: 8760 | DG59: 8784 | DH59: 8760 | DI59: 8760 | DJ59: 8760 | DK59: 8784 | DL59: 8760 | DM59: 8760 | DN59: 8760 | DO59: 8784 | DP59: 8760 | DQ59: 8760 | DR59: 8760 | DS59: 8784 | DT59: 8760 | DU59: 8760 | DV59: 8760 | DW59: 8784 | DX59: 8760 | DY59: 8760 | DZ59: 8760 | EA59: 8784 | EB59: 8760 | EC59: 8760 | ED59: 8760 | EE59: 8784 | EF59: 8760 | EG59: 8760 | EH59: =(EI4-EH4)*24 -> 8760 | EI59: 8784 | EJ59: 8760 | EK59: 8760 | EL59: 8760 | EM59: 8784 | EN59: 8760 | EO59: 8760 | EP59: 8760 | EQ59: 8784 | ER59: 8760 | ES59: 8760 | ET59: 8760 | EU59: 8784 | EV59: 8760 | EW59: 8760 | EX59: 8760 | EY59: 8784 | EZ59: 8760 | FA59: 8760 | FB59: 8760 | FC59: 8784 | FD59: 8760 | FE59: 8760 | FF59: 8760 | FG59: 8784 | FH59: 8760 | FI59: 8760 | FJ59: 8760 | FK59: 8784 | FL59: 8760 | FM59: 8760 | FN59: 8760 | FO59: 8784 | FP59: 8760 | FQ59: 8760 | FR59: 8760 | FS59: 8784 | FT59: 8760 | FU59: 8760 | FV59: 8760 | FW59: 8784 | FX59: 8760 | FY59: 8760 | FZ59: 8760 | GA59: 8784 | GB59: 8760 | GC59: 8760 | GD59: 8760 | GE59: 8760 | GF59: 8760 | GG59: 8760 | GH59: 8760 | GI59: 8784 | GJ59: 8760 | GK59: 8760 | GL59: 8760 | GM59: 8784 | GN59: 8760 | GO59: 8760 | GP59: 8760 | GQ59: 8784 | GR59: 8760 | GS59: 8760 | GT59: =(GU4-GT4)*24 -> 8760 | GU59: 8784 | GV59: 8760 | GW59: 8760 | GX59: 8760 | GY59: 8784 | GZ59: 8760 | HA59: 8760 | HB59: 8760 | HC59: 8784 | HD59: 8760 | HE59: 8760 | HF59: 8760 | HG59: 8784 | HH59: 8760 | HI59: 8760 | HJ59: 8760 | HK59: 8784 | HL59: 8760 | HM59: 8760 | HN59: 8760 | HO59: 8784 | HP59: 8760 | HQ59: 8760 | HR59: 8760 | HS59: 8784 | HT59: 8760 | HU59: 8760 | HV59: 8760 | HW59: 8784 | HX59: 8760 | HY59: 8760 | HZ59: 8760 | IA59: 8784 | IB59: 8760 | IC59: 8760 | ID59: 8760 | IE59: 8784 | IF59: 8760 | IG59: 8760 | IH59: 8760 | II59: 8784 | IJ59: 8760 | IK59: 8760 | IL59: 8760 | IM59: 8784 | IN59: 8760 | IO59: 8760 | IP59: 8760 | IQ59: 8784 | IR59: 8760 | IS59: 8760 | IT59: 8760 | IU59: 8784 | IV59: 8760 | IW59: 8760 | IX59: 8760 | IY59: 8784 | IZ59: 8760 | JA59: 8760 | JB59: 8760 | JC59: 8784 | JD59: 8760 | JE59: 8760 | JF59: =(JG4-JF4)*24 -> 8760 | JG59: 8784 | JH59: 8760 | JI59: 8760 | JJ59: 8760 | JK59: 8784 | JL59: 8760 | JM59: 8760 | JN59: 8760 | JO59: 8784 | JP59: 8760 | JQ59: 8760 | JR59: 8760 | JS59: 8784 | JT59: 8760 | JU59: 8760 | JV59: 8760 | JW59: 8784 | JX59: 8760 | JY59: 8760 | JZ59: 8760 | KA59: 8760 | KB59: 8760 | KC59: 8760 | KD59: 8760 | KE59: 8784 | KF59: 8760 | KG59: 8760 | KH59: 8760 | KI59: 8784 | KJ59: 8760 | KK59: 8760 | KL59: 8760 | KM59: 8784 | KN59: 8760 | KO59: 8760 | KP59: 8760 | KQ59: 8784 | KR59: 8760 | KS59: 8760 | KT59: 8760 | KU59: 8784 | KV59: 8760 | KW59: 8760 | KX59: 8760 | KY59: 8784 | KZ59: 8760 | LA59: 8760 | LB59: 8760 | LC59: 8784 | LD59: 8760 | LE59: 8760 | LF59: 8760 | LG59: 8784 | LH59: 8760 | LI59: 8760 | LJ59: 8760 | LK59: 8784 | LL59: 8760 | LM59: 8760 | LN59: 8760 | LO59: 8784 | LP59: 8760 | LQ59: 8760 | LR59: =(LS4-LR4)*24 -> 8760 | LS59: 8784 | LT59: 8760 | LU59: 8760 | LV59: 8760 | LW59: 8784 | LX59: 8760 | LY59: 8760 | LZ59: 8760 | MA59: 8784 | MB59: 8760 | MC59: 8760 | MD59: 8760 | ME59: 8784 | MF59: 8760 | MG59: 8760 | MH59: 8760 | MI59: 8784 | MJ59: 8760 | MK59: 8760 | ML59: 8760 | MM59: 8784 | MN59: 8760 | MO59: 8760 | MP59: 8760 | MQ59: 8784 | MR59: 8760 | MS59: 8760 | MT59: 8760 | MU59: 8784 | MV59: 8760 | MW59: 8760 | MX59: 8760 | MY59: 8784 | MZ59: 8760 | NA59: 8760 | NB59: 8760 | NC59: 8784 | ND59: 8760 | NE59: 8760 | NF59: 8760 | NG59: 8784 | NH59: 8760 | NI59: 8760 | NJ59: 8760 | NK59: 8784 | NL59: 8760 | NM59: 8760 | NN59: 8760 | NO59: 8784 | NP59: 8760 | NQ59: 8760 | NR59: 8760 | NS59: 8784 | NT59: 8760 | NU59: 8760
C60: Period Production | E60: Tons/Period | G60: Ton A | J60: =J57*J59 -> 0 | K60: =K57*K59 -> 347750.137 | L60: 346800 | M60: 346800 | N60: 346800 | O60: 347750.137 | P60: 346800 | Q60: 346800 | R60: 346800 | S60: 347750.137 | T60: 346800 | U60: 346800 | V60: 346800 | W60: 347750.137 | X60: 346800 | Y60: 346800 | Z60: 346800 | AA60: 347750.137 | AB60: 346800 | AC60: 346800 | AD60: 346800 | AE60: 347750.137 | AF60: 346800 | AG60: 346800 | AH60: 346800 | AI60: 347750.137 | AJ60: 0 | AK60: 0 | AL60: 0 | AM60: 0 | AN60: 0 | AO60: 0 | AP60: 0 | AQ60: 0 | AR60: 0 | AS60: 0 | AT60: 0 | AU60: 0 | AV60: 0 | AW60: 0 | AX60: 0 | AY60: 0 | AZ60: 0 | BA60: 0 | BB60: 0 | BC60: 0 | BD60: 0 | BE60: 0 | BF60: 0 | BG60: 0 | BH60: 0 | BI60: 0 | BJ60: 0 | BK60: 0 | BL60: 0 | BM60: 0 | BN60: 0 | BO60: 0 | BP60: 0 | BQ60: 0 | BR60: 0 | BS60: 0 | BT60: 0 | BU60: 0 | BV60: 0 | BW60: =BW57*BW59 -> 0 | BX60: 0 | BY60: 0 | BZ60: 0 | CA60: 0 | CB60: 0 | CC60: 0 | CD60: 0 | CE60: 0 | CF60: 0 | CG60: 0 | CH60: 0 | CI60: 0 | CJ60: 0 | CK60: 0 | CL60: 0 | CM60: 0 | CN60: 0 | CO60: 0 | CP60: 0 | CQ60: 0 | CR60: 0 | CS60: 0 | CT60: 0 | CU60: 0 | CV60: 0 | CW60: 0 | CX60: 0 | CY60: 0 | CZ60: 0 | DA60: 0 | DB60: 0 | DC60: 0 | DD60: 0 | DE60: 0 | DF60: 0 | DG60: 0 | DH60: 0 | DI60: 0 | DJ60: 0 | DK60: 0 | DL60: 0 | DM60: 0 | DN60: 0 | DO60: 0 | DP60: 0 | DQ60: 0 | DR60: 0 | DS60: 0 | DT60: 0 | DU60: 0 | DV60: 0 | DW60: 0 | DX60: 0 | DY60: 0 | DZ60: 0 | EA60: 0 | EB60: 0 | EC60: 0 | ED60: 0 | EE60: 0 | EF60: 0 | EG60: 0 | EH60: 0 | EI60: =EI57*EI59 -> 0 | EJ60: 0 | EK60: 0 | EL60: 0 | EM60: 0 | EN60: 0 | EO60: 0 | EP60: 0 | EQ60: 0 | ER60: 0 | ES60: 0 | ET60: 0 | EU60: 0 | EV60: 0 | EW60: 0 | EX60: 0 | EY60: 0 | EZ60: 0 | FA60: 0 | FB60: 0 | FC60: 0 | FD60: 0 | FE60: 0 | FF60: 0 | FG60: 0 | FH60: 0 | FI60: 0 | FJ60: 0 | FK60: 0 | FL60: 0 | FM60: 0 | FN60: 0 | FO60: 0 | FP60: 0 | FQ60: 0 | FR60: 0 | FS60: 0 | FT60: 0 | FU60: 0 | FV60: 0 | FW60: 0 | FX60: 0 | FY60: 0 | FZ60: 0 | GA60: 0 | GB60: 0 | GC60: 0 | GD60: 0 | GE60: 0 | GF60: 0 | GG60: 0 | GH60: 0 | GI60: 0 | GJ60: 0 | GK60: 0 | GL60: 0 | GM60: 0 | GN60: 0 | GO60: 0 | GP60: 0 | GQ60: 0 | GR60: 0 | GS60: 0 | GT60: 0 | GU60: =GU57*GU59 -> 0 | GV60: 0 | GW60: 0 | GX60: 0 | GY60: 0 | GZ60: 0 | HA60: 0 | HB60: 0 | HC60: 0 | HD60: 0 | HE60: 0 | HF60: 0 | HG60: 0 | HH60: 0 | HI60: 0 | HJ60: 0 | HK60: 0 | HL60: 0 | HM60: 0 | HN60: 0 | HO60: 0 | HP60: 0 | HQ60: 0 | HR60: 0 | HS60: 0 | HT60: 0 | HU60: 0 | HV60: 0 | HW60: 0 | HX60: 0 | HY60: 0 | HZ60: 0 | IA60: 0 | IB60: 0 | IC60: 0 | ID60: 0 | IE60: 0 | IF60: 0 | IG60: 0 | IH60: 0 | II60: 0 | IJ60: 0 | IK60: 0 | IL60: 0 | IM60: 0 | IN60: 0 | IO60: 0 | IP60: 0 | IQ60: 0 | IR60: 0 | IS60: 0 | IT60: 0 | IU60: 0 | IV60: 0 | IW60: 0 | IX60: 0 | IY60: 0 | IZ60: 0 | JA60: 0 | JB60: 0 | JC60: 0 | JD60: 0 | JE60: 0 | JF60: 0 | JG60: =JG57*JG59 -> 0 | JH60: 0 | JI60: 0 | JJ60: 0 | JK60: 0 | JL60: 0 | JM60: 0 | JN60: 0 | JO60: 0 | JP60: 0 | JQ60: 0 | JR60: 0 | JS60: 0 | JT60: 0 | JU60: 0 | JV60: 0 | JW60: 0 | JX60: 0 | JY60: 0 | JZ60: 0 | KA60: 0 | KB60: 0 | KC60: 0 | KD60: 0 | KE60: 0 | KF60: 0 | KG60: 0 | KH60: 0 | KI60: 0 | KJ60: 0 | KK60: 0 | KL60: 0 | KM60: 0 | KN60: 0 | KO60: 0 | KP60: 0 | KQ60: 0 | KR60: 0 | KS60: 0 | KT60: 0 | KU60: 0 | KV60: 0 | KW60: 0 | KX60: 0 | KY60: 0 | KZ60: 0 | LA60: 0 | LB60: 0 | LC60: 0 | LD60: 0 | LE60: 0 | LF60: 0 | LG60: 0 | LH60: 0 | LI60: 0 | LJ60: 0 | LK60: 0 | LL60: 0 | LM60: 0 | LN60: 0 | LO60: 0 | LP60: 0 | LQ60: 0 | LR60: 0 | LS60: =LS57*LS59 -> 0 | LT60: 0 | LU60: 0 | LV60: 0 | LW60: 0 | LX60: 0 | LY60: 0 | LZ60: 0 | MA60: 0 | MB60: 0 | MC60: 0 | MD60: 0 | ME60: 0 | MF60: 0 | MG60: 0 | MH60: 0 | MI60: 0 | MJ60: 0 | MK60: 0 | ML60: 0 | MM60: 0 | MN60: 0 | MO60: 0 | MP60: 0 | MQ60: 0 | MR60: 0 | MS60: 0 | MT60: 0 | MU60: 0 | MV60: 0 | MW60: 0 | MX60: 0 | MY60: 0 | MZ60: 0 | NA60: 0 | NB60: 0 | NC60: 0 | ND60: 0 | NE60: 0 | NF60: 0 | NG60: 0 | NH60: 0 | NI60: 0 | NJ60: 0 | NK60: 0 | NL60: 0 | NM60: 0 | NN60: 0 | NO60: 0 | NP60: 0 | NQ60: 0 | NR60: 0 | NS60: 0 | NT60: 0 | NU60: 0 | NV60: 0
C62: Hydrogen Required | E62: H2/Ton Ammonia | F62: =1/F24 -> 0.1785714286 | G62: H2 Tons | J62: =$F$62*J60 -> 0 | K62: =$F$62*K60 -> 62098.23875 | L62: 61928.57143 | M62: 61928.57143 | N62: 61928.57143 | O62: 62098.23875 | P62: 61928.57143 | Q62: 61928.57143 | R62: 61928.57143 | S62: 62098.23875 | T62: 61928.57143 | U62: 61928.57143 | V62: 61928.57143 | W62: 62098.23875 | X62: 61928.57143 | Y62: 61928.57143 | Z62: 61928.57143 | AA62: 62098.23875 | AB62: 61928.57143 | AC62: 61928.57143 | AD62: 61928.57143 | AE62: 62098.23875 | AF62: 61928.57143 | AG62: 61928.57143 | AH62: 61928.57143 | AI62: 62098.23875 | AJ62: 0 | AK62: 0 | AL62: 0 | AM62: 0 | AN62: 0 | AO62: 0 | AP62: 0 | AQ62: 0 | AR62: 0 | AS62: 0 | AT62: 0 | AU62: 0 | AV62: 0 | AW62: 0 | AX62: 0 | AY62: 0 | AZ62: 0 | BA62: 0 | BB62: 0 | BC62: 0 | BD62: 0 | BE62: 0 | BF62: 0 | BG62: 0 | BH62: 0 | BI62: 0 | BJ62: 0 | BK62: 0 | BL62: 0 | BM62: 0 | BN62: 0 | BO62: 0 | BP62: 0 | BQ62: 0 | BR62: 0 | BS62: 0 | BT62: 0 | BU62: 0 | BV62: 0 | BW62: =$F$62*BW60 -> 0 | BX62: 0 | BY62: 0 | BZ62: 0 | CA62: 0 | CB62: 0 | CC62: 0 | CD62: 0 | CE62: 0 | CF62: 0 | CG62: 0 | CH62: 0 | CI62: 0 | CJ62: 0 | CK62: 0 | CL62: 0 | CM62: 0 | CN62: 0 | CO62: 0 | CP62: 0 | CQ62: 0 | CR62: 0 | CS62: 0 | CT62: 0 | CU62: 0 | CV62: 0 | CW62: 0 | CX62: 0 | CY62: 0 | CZ62: 0 | DA62: 0 | DB62: 0 | DC62: 0 | DD62: 0 | DE62: 0 | DF62: 0 | DG62: 0 | DH62: 0 | DI62: 0 | DJ62: 0 | DK62: 0 | DL62: 0 | DM62: 0 | DN62: 0 | DO62: 0 | DP62: 0 | DQ62: 0 | DR62: 0 | DS62: 0 | DT62: 0 | DU62: 0 | DV62: 0 | DW62: 0 | DX62: 0 | DY62: 0 | DZ62: 0 | EA62: 0 | EB62: 0 | EC62: 0 | ED62: 0 | EE62: 0 | EF62: 0 | EG62: 0 | EH62: 0 | EI62: =$F$62*EI60 -> 0 | EJ62: 0 | EK62: 0 | EL62: 0 | EM62: 0 | EN62: 0 | EO62: 0 | EP62: 0 | EQ62: 0 | ER62: 0 | ES62: 0 | ET62: 0 | EU62: 0 | EV62: 0 | EW62: 0 | EX62: 0 | EY62: 0 | EZ62: 0 | FA62: 0 | FB62: 0 | FC62: 0 | FD62: 0 | FE62: 0 | FF62: 0 | FG62: 0 | FH62: 0 | FI62: 0 | FJ62: 0 | FK62: 0 | FL62: 0 | FM62: 0 | FN62: 0 | FO62: 0 | FP62: 0 | FQ62: 0 | FR62: 0 | FS62: 0 | FT62: 0 | FU62: 0 | FV62: 0 | FW62: 0 | FX62: 0 | FY62: 0 | FZ62: 0 | GA62: 0 | GB62: 0 | GC62: 0 | GD62: 0 | GE62: 0 | GF62: 0 | GG62: 0 | GH62: 0 | GI62: 0 | GJ62: 0 | GK62: 0 | GL62: 0 | GM62: 0 | GN62: 0 | GO62: 0 | GP62: 0 | GQ62: 0 | GR62: 0 | GS62: 0 | GT62: 0 | GU62: =$F$62*GU60 -> 0 | GV62: 0 | GW62: 0 | GX62: 0 | GY62: 0 | GZ62: 0 | HA62: 0 | HB62: 0 | HC62: 0 | HD62: 0 | HE62: 0 | HF62: 0 | HG62: 0 | HH62: 0 | HI62: 0 | HJ62: 0 | HK62: 0 | HL62: 0 | HM62: 0 | HN62: 0 | HO62: 0 | HP62: 0 | HQ62: 0 | HR62: 0 | HS62: 0 | HT62: 0 | HU62: 0 | HV62: 0 | HW62: 0 | HX62: 0 | HY62: 0 | HZ62: 0 | IA62: 0 | IB62: 0 | IC62: 0 | ID62: 0 | IE62: 0 | IF62: 0 | IG62: 0 | IH62: 0 | II62: 0 | IJ62: 0 | IK62: 0 | IL62: 0 | IM62: 0 | IN62: 0 | IO62: 0 | IP62: 0 | IQ62: 0 | IR62: 0 | IS62: 0 | IT62: 0 | IU62: 0 | IV62: 0 | IW62: 0 | IX62: 0 | IY62: 0 | IZ62: 0 | JA62: 0 | JB62: 0 | JC62: 0 | JD62: 0 | JE62: 0 | JF62: 0 | JG62: =$F$62*JG60 -> 0 | JH62: 0 | JI62: 0 | JJ62: 0 | JK62: 0 | JL62: 0 | JM62: 0 | JN62: 0 | JO62: 0 | JP62: 0 | JQ62: 0 | JR62: 0 | JS62: 0 | JT62: 0 | JU62: 0 | JV62: 0 | JW62: 0 | JX62: 0 | JY62: 0 | JZ62: 0 | KA62: 0 | KB62: 0 | KC62: 0 | KD62: 0 | KE62: 0 | KF62: 0 | KG62: 0 | KH62: 0 | KI62: 0 | KJ62: 0 | KK62: 0 | KL62: 0 | KM62: 0 | KN62: 0 | KO62: 0 | KP62: 0 | KQ62: 0 | KR62: 0 | KS62: 0 | KT62: 0 | KU62: 0 | KV62: 0 | KW62: 0 | KX62: 0 | KY62: 0 | KZ62: 0 | LA62: 0 | LB62: 0 | LC62: 0 | LD62: 0 | LE62: 0 | LF62: 0 | LG62: 0 | LH62: 0 | LI62: 0 | LJ62: 0 | LK62: 0 | LL62: 0 | LM62: 0 | LN62: 0 | LO62: 0 | LP62: 0 | LQ62: 0 | LR62: 0 | LS62: =$F$62*LS60 -> 0 | LT62: 0 | LU62: 0 | LV62: 0 | LW62: 0 | LX62: 0 | LY62: 0 | LZ62: 0 | MA62: 0 | MB62: 0 | MC62: 0 | MD62: 0 | ME62: 0 | MF62: 0 | MG62: 0 | MH62: 0 | MI62: 0 | MJ62: 0 | MK62: 0 | ML62: 0 | MM62: 0 | MN62: 0 | MO62: 0 | MP62: 0 | MQ62: 0 | MR62: 0 | MS62: 0 | MT62: 0 | MU62: 0 | MV62: 0 | MW62: 0 | MX62: 0 | MY62: 0 | MZ62: 0 | NA62: 0 | NB62: 0 | NC62: 0 | ND62: 0 | NE62: 0 | NF62: 0 | NG62: 0 | NH62: 0 | NI62: 0 | NJ62: 0 | NK62: 0 | NL62: 0 | NM62: 0 | NN62: 0 | NO62: 0 | NP62: 0 | NQ62: 0 | NR62: 0 | NS62: 0 | NT62: 0 | NU62: 0 | NV62: 0
C63: Hydrogen Required | E63: H2 kg/Ton | F63: 1000 | G63: H2 kg | J63: =J62*$F$63 -> 0 | K63: =K62*$F$63 -> 62098238.75 | L63: 61928571.43 | M63: 61928571.43 | N63: 61928571.43 | O63: 62098238.75 | P63: 61928571.43 | Q63: 61928571.43 | R63: 61928571.43 | S63: 62098238.75 | T63: 61928571.43 | U63: 61928571.43 | V63: 61928571.43 | W63: 62098238.75 | X63: 61928571.43 | Y63: 61928571.43 | Z63: 61928571.43 | AA63: 62098238.75 | AB63: 61928571.43 | AC63: 61928571.43 | AD63: 61928571.43 | AE63: 62098238.75 | AF63: 61928571.43 | AG63: 61928571.43 | AH63: 61928571.43 | AI63: 62098238.75 | AJ63: 0 | AK63: 0 | AL63: 0 | AM63: 0 | AN63: 0 | AO63: 0 | AP63: 0 | AQ63: 0 | AR63: 0 | AS63: 0 | AT63: 0 | AU63: 0 | AV63: 0 | AW63: 0 | AX63: 0 | AY63: 0 | AZ63: 0 | BA63: 0 | BB63: 0 | BC63: 0 | BD63: 0 | BE63: 0 | BF63: 0 | BG63: 0 | BH63: 0 | BI63: 0 | BJ63: 0 | BK63: 0 | BL63: 0 | BM63: 0 | BN63: 0 | BO63: 0 | BP63: 0 | BQ63: 0 | BR63: 0 | BS63: 0 | BT63: 0 | BU63: 0 | BV63: 0 | BW63: =BW62*$F$63 -> 0 | BX63: 0 | BY63: 0 | BZ63: 0 | CA63: 0 | CB63: 0 | CC63: 0 | CD63: 0 | CE63: 0 | CF63: 0 | CG63: 0 | CH63: 0 | CI63: 0 | CJ63: 0 | CK63: 0 | CL63: 0 | CM63: 0 | CN63: 0 | CO63: 0 | CP63: 0 | CQ63: 0 | CR63: 0 | CS63: 0 | CT63: 0 | CU63: 0 | CV63: 0 | CW63: 0 | CX63: 0 | CY63: 0 | CZ63: 0 | DA63: 0 | DB63: 0 | DC63: 0 | DD63: 0 | DE63: 0 | DF63: 0 | DG63: 0 | DH63: 0 | DI63: 0 | DJ63: 0 | DK63: 0 | DL63: 0 | DM63: 0 | DN63: 0 | DO63: 0 | DP63: 0 | DQ63: 0 | DR63: 0 | DS63: 0 | DT63: 0 | DU63: 0 | DV63: 0 | DW63: 0 | DX63: 0 | DY63: 0 | DZ63: 0 | EA63: 0 | EB63: 0 | EC63: 0 | ED63: 0 | EE63: 0 | EF63: 0 | EG63: 0 | EH63: 0 | EI63: =EI62*$F$63 -> 0 | EJ63: 0 | EK63: 0 | EL63: 0 | EM63: 0 | EN63: 0 | EO63: 0 | EP63: 0 | EQ63: 0 | ER63: 0 | ES63: 0 | ET63: 0 | EU63: 0 | EV63: 0 | EW63: 0 | EX63: 0 | EY63: 0 | EZ63: 0 | FA63: 0 | FB63: 0 | FC63: 0 | FD63: 0 | FE63: 0 | FF63: 0 | FG63: 0 | FH63: 0 | FI63: 0 | FJ63: 0 | FK63: 0 | FL63: 0 | FM63: 0 | FN63: 0 | FO63: 0 | FP63: 0 | FQ63: 0 | FR63: 0 | FS63: 0 | FT63: 0 | FU63: 0 | FV63: 0 | FW63: 0 | FX63: 0 | FY63: 0 | FZ63: 0 | GA63: 0 | GB63: 0 | GC63: 0 | GD63: 0 | GE63: 0 | GF63: 0 | GG63: 0 | GH63: 0 | GI63: 0 | GJ63: 0 | GK63: 0 | GL63: 0 | GM63: 0 | GN63: 0 | GO63: 0 | GP63: 0 | GQ63: 0 | GR63: 0 | GS63: 0 | GT63: 0 | GU63: =GU62*$F$63 -> 0 | GV63: 0 | GW63: 0 | GX63: 0 | GY63: 0 | GZ63: 0 | HA63: 0 | HB63: 0 | HC63: 0 | HD63: 0 | HE63: 0 | HF63: 0 | HG63: 0 | HH63: 0 | HI63: 0 | HJ63: 0 | HK63: 0 | HL63: 0 | HM63: 0 | HN63: 0 | HO63: 0 | HP63: 0 | HQ63: 0 | HR63: 0 | HS63: 0 | HT63: 0 | HU63: 0 | HV63: 0 | HW63: 0 | HX63: 0 | HY63: 0 | HZ63: 0 | IA63: 0 | IB63: 0 | IC63: 0 | ID63: 0 | IE63: 0 | IF63: 0 | IG63: 0 | IH63: 0 | II63: 0 | IJ63: 0 | IK63: 0 | IL63: 0 | IM63: 0 | IN63: 0 | IO63: 0 | IP63: 0 | IQ63: 0 | IR63: 0 | IS63: 0 | IT63: 0 | IU63: 0 | IV63: 0 | IW63: 0 | IX63: 0 | IY63: 0 | IZ63: 0 | JA63: 0 | JB63: 0 | JC63: 0 | JD63: 0 | JE63: 0 | JF63: 0 | JG63: =JG62*$F$63 -> 0 | JH63: 0 | JI63: 0 | JJ63: 0 | JK63: 0 | JL63: 0 | JM63: 0 | JN63: 0 | JO63: 0 | JP63: 0 | JQ63: 0 | JR63: 0 | JS63: 0 | JT63: 0 | JU63: 0 | JV63: 0 | JW63: 0 | JX63: 0 | JY63: 0 | JZ63: 0 | KA63: 0 | KB63: 0 | KC63: 0 | KD63: 0 | KE63: 0 | KF63: 0 | KG63: 0 | KH63: 0 | KI63: 0 | KJ63: 0 | KK63: 0 | KL63: 0 | KM63: 0 | KN63: 0 | KO63: 0 | KP63: 0 | KQ63: 0 | KR63: 0 | KS63: 0 | KT63: 0 | KU63: 0 | KV63: 0 | KW63: 0 | KX63: 0 | KY63: 0 | KZ63: 0 | LA63: 0 | LB63: 0 | LC63: 0 | LD63: 0 | LE63: 0 | LF63: 0 | LG63: 0 | LH63: 0 | LI63: 0 | LJ63: 0 | LK63: 0 | LL63: 0 | LM63: 0 | LN63: 0 | LO63: 0 | LP63: 0 | LQ63: 0 | LR63: 0 | LS63: =LS62*$F$63 -> 0 | LT63: 0 | LU63: 0 | LV63: 0 | LW63: 0 | LX63: 0 | LY63: 0 | LZ63: 0 | MA63: 0 | MB63: 0 | MC63: 0 | MD63: 0 | ME63: 0 | MF63: 0 | MG63: 0 | MH63: 0 | MI63: 0 | MJ63: 0 | MK63: 0 | ML63: 0 | MM63: 0 | MN63: 0 | MO63: 0 | MP63: 0 | MQ63: 0 | MR63: 0 | MS63: 0 | MT63: 0 | MU63: 0 | MV63: 0 | MW63: 0 | MX63: 0 | MY63: 0 | MZ63: 0 | NA63: 0 | NB63: 0 | NC63: 0 | ND63: 0 | NE63: 0 | NF63: 0 | NG63: 0 | NH63: 0 | NI63: 0 | NJ63: 0 | NK63: 0 | NL63: 0 | NM63: 0 | NN63: 0 | NO63: 0 | NP63: 0 | NQ63: 0 | NR63: 0 | NS63: 0 | NT63: 0 | NU63: 0 | NV63: 0
C64: Nitrogen Required | E64: N2 Tons/H2 Tons | F64: =F25 -> 4.6 | G64: N2 Tons | J64: =J62*$F$64 -> 0 | K64: =K62*$F$64 -> 285651.8982 | L64: 284871.4286 | M64: 284871.4286 | N64: 284871.4286 | O64: 285651.8982 | P64: 284871.4286 | Q64: 284871.4286 | R64: 284871.4286 | S64: 285651.8982 | T64: 284871.4286 | U64: 284871.4286 | V64: 284871.4286 | W64: 285651.8982 | X64: 284871.4286 | Y64: 284871.4286 | Z64: 284871.4286 | AA64: 285651.8982 | AB64: 284871.4286 | AC64: 284871.4286 | AD64: 284871.4286 | AE64: 285651.8982 | AF64: 284871.4286 | AG64: 284871.4286 | AH64: 284871.4286 | AI64: 285651.8982 | AJ64: 0 | AK64: 0 | AL64: 0 | AM64: 0 | AN64: 0 | AO64: 0 | AP64: 0 | AQ64: 0 | AR64: 0 | AS64: 0 | AT64: 0 | AU64: 0 | AV64: 0 | AW64: 0 | AX64: 0 | AY64: 0 | AZ64: 0 | BA64: 0 | BB64: 0 | BC64: 0 | BD64: 0 | BE64: 0 | BF64: 0 | BG64: 0 | BH64: 0 | BI64: 0 | BJ64: 0 | BK64: 0 | BL64: 0 | BM64: 0 | BN64: 0 | BO64: 0 | BP64: 0 | BQ64: 0 | BR64: 0 | BS64: 0 | BT64: 0 | BU64: 0 | BV64: 0 | BW64: =BW62*$F$64 -> 0 | BX64: 0 | BY64: 0 | BZ64: 0 | CA64: 0 | CB64: 0 | CC64: 0 | CD64: 0 | CE64: 0 | CF64: 0 | CG64: 0 | CH64: 0 | CI64: 0 | CJ64: 0 | CK64: 0 | CL64: 0 | CM64: 0 | CN64: 0 | CO64: 0 | CP64: 0 | CQ64: 0 | CR64: 0 | CS64: 0 | CT64: 0 | CU64: 0 | CV64: 0 | CW64: 0 | CX64: 0 | CY64: 0 | CZ64: 0 | DA64: 0 | DB64: 0 | DC64: 0 | DD64: 0 | DE64: 0 | DF64: 0 | DG64: 0 | DH64: 0 | DI64: 0 | DJ64: 0 | DK64: 0 | DL64: 0 | DM64: 0 | DN64: 0 | DO64: 0 | DP64: 0 | DQ64: 0 | DR64: 0 | DS64: 0 | DT64: 0 | DU64: 0 | DV64: 0 | DW64: 0 | DX64: 0 | DY64: 0 | DZ64: 0 | EA64: 0 | EB64: 0 | EC64: 0 | ED64: 0 | EE64: 0 | EF64: 0 | EG64: 0 | EH64: 0 | EI64: =EI62*$F$64 -> 0 | EJ64: 0 | EK64: 0 | EL64: 0 | EM64: 0 | EN64: 0 | EO64: 0 | EP64: 0 | EQ64: 0 | ER64: 0 | ES64: 0 | ET64: 0 | EU64: 0 | EV64: 0 | EW64: 0 | EX64: 0 | EY64: 0 | EZ64: 0 | FA64: 0 | FB64: 0 | FC64: 0 | FD64: 0 | FE64: 0 | FF64: 0 | FG64: 0 | FH64: 0 | FI64: 0 | FJ64: 0 | FK64: 0 | FL64: 0 | FM64: 0 | FN64: 0 | FO64: 0 | FP64: 0 | FQ64: 0 | FR64: 0 | FS64: 0 | FT64: 0 | FU64: 0 | FV64: 0 | FW64: 0 | FX64: 0 | FY64: 0 | FZ64: 0 | GA64: 0 | GB64: 0 | GC64: 0 | GD64: 0 | GE64: 0 | GF64: 0 | GG64: 0 | GH64: 0 | GI64: 0 | GJ64: 0 | GK64: 0 | GL64: 0 | GM64: 0 | GN64: 0 | GO64: 0 | GP64: 0 | GQ64: 0 | GR64: 0 | GS64: 0 | GT64: 0 | GU64: =GU62*$F$64 -> 0 | GV64: 0 | GW64: 0 | GX64: 0 | GY64: 0 | GZ64: 0 | HA64: 0 | HB64: 0 | HC64: 0 | HD64: 0 | HE64: 0 | HF64: 0 | HG64: 0 | HH64: 0 | HI64: 0 | HJ64: 0 | HK64: 0 | HL64: 0 | HM64: 0 | HN64: 0 | HO64: 0 | HP64: 0 | HQ64: 0 | HR64: 0 | HS64: 0 | HT64: 0 | HU64: 0 | HV64: 0 | HW64: 0 | HX64: 0 | HY64: 0 | HZ64: 0 | IA64: 0 | IB64: 0 | IC64: 0 | ID64: 0 | IE64: 0 | IF64: 0 | IG64: 0 | IH64: 0 | II64: 0 | IJ64: 0 | IK64: 0 | IL64: 0 | IM64: 0 | IN64: 0 | IO64: 0 | IP64: 0 | IQ64: 0 | IR64: 0 | IS64: 0 | IT64: 0 | IU64: 0 | IV64: 0 | IW64: 0 | IX64: 0 | IY64: 0 | IZ64: 0 | JA64: 0 | JB64: 0 | JC64: 0 | JD64: 0 | JE64: 0 | JF64: 0 | JG64: =JG62*$F$64 -> 0 | JH64: 0 | JI64: 0 | JJ64: 0 | JK64: 0 | JL64: 0 | JM64: 0 | JN64: 0 | JO64: 0 | JP64: 0 | JQ64: 0 | JR64: 0 | JS64: 0 | JT64: 0 | JU64: 0 | JV64: 0 | JW64: 0 | JX64: 0 | JY64: 0 | JZ64: 0 | KA64: 0 | KB64: 0 | KC64: 0 | KD64: 0 | KE64: 0 | KF64: 0 | KG64: 0 | KH64: 0 | KI64: 0 | KJ64: 0 | KK64: 0 | KL64: 0 | KM64: 0 | KN64: 0 | KO64: 0 | KP64: 0 | KQ64: 0 | KR64: 0 | KS64: 0 | KT64: 0 | KU64: 0 | KV64: 0 | KW64: 0 | KX64: 0 | KY64: 0 | KZ64: 0 | LA64: 0 | LB64: 0 | LC64: 0 | LD64: 0 | LE64: 0 | LF64: 0 | LG64: 0 | LH64: 0 | LI64: 0 | LJ64: 0 | LK64: 0 | LL64: 0 | LM64: 0 | LN64: 0 | LO64: 0 | LP64: 0 | LQ64: 0 | LR64: 0 | LS64: =LS62*$F$64 -> 0 | LT64: 0 | LU64: 0 | LV64: 0 | LW64: 0 | LX64: 0 | LY64: 0 | LZ64: 0 | MA64: 0 | MB64: 0 | MC64: 0 | MD64: 0 | ME64: 0 | MF64: 0 | MG64: 0 | MH64: 0 | MI64: 0 | MJ64: 0 | MK64: 0 | ML64: 0 | MM64: 0 | MN64: 0 | MO64: 0 | MP64: 0 | MQ64: 0 | MR64: 0 | MS64: 0 | MT64: 0 | MU64: 0 | MV64: 0 | MW64: 0 | MX64: 0 | MY64: 0 | MZ64: 0 | NA64: 0 | NB64: 0 | NC64: 0 | ND64: 0 | NE64: 0 | NF64: 0 | NG64: 0 | NH64: 0 | NI64: 0 | NJ64: 0 | NK64: 0 | NL64: 0 | NM64: 0 | NN64: 0 | NO64: 0 | NP64: 0 | NQ64: 0 | NR64: 0 | NS64: 0 | NT64: 0 | NU64: 0 | NV64: 0
C66: Power Required | E66: MWH/Ton A | F66: =F26 -> 0.738 | G66: MWH | J66: =$F$66*J60 -> 0 | K66: =$F$66*K60 -> 256639.6011 | L66: 255938.4 | M66: 255938.4 | N66: 255938.4 | O66: 256639.6011 | P66: 255938.4 | Q66: 255938.4 | R66: 255938.4 | S66: 256639.6011 | T66: 255938.4 | U66: 255938.4 | V66: 255938.4 | W66: 256639.6011 | X66: 255938.4 | Y66: 255938.4 | Z66: 255938.4 | AA66: 256639.6011 | AB66: 255938.4 | AC66: 255938.4 | AD66: 255938.4 | AE66: 256639.6011 | AF66: 255938.4 | AG66: 255938.4 | AH66: 255938.4 | AI66: 256639.6011 | AJ66: 0 | AK66: 0 | AL66: 0 | AM66: 0 | AN66: 0 | AO66: 0 | AP66: 0 | AQ66: 0 | AR66: 0 | AS66: 0 | AT66: 0 | AU66: 0 | AV66: 0 | AW66: 0 | AX66: 0 | AY66: 0 | AZ66: 0 | BA66: 0 | BB66: 0 | BC66: 0 | BD66: 0 | BE66: 0 | BF66: 0 | BG66: 0 | BH66: 0 | BI66: 0 | BJ66: 0 | BK66: 0 | BL66: 0 | BM66: 0 | BN66: 0 | BO66: 0 | BP66: 0 | BQ66: 0 | BR66: 0 | BS66: 0 | BT66: 0 | BU66: 0 | BV66: 0 | BW66: =$F$66*BW60 -> 0 | BX66: 0 | BY66: 0 | BZ66: 0 | CA66: 0 | CB66: 0 | CC66: 0 | CD66: 0 | CE66: 0 | CF66: 0 | CG66: 0 | CH66: 0 | CI66: 0 | CJ66: 0 | CK66: 0 | CL66: 0 | CM66: 0 | CN66: 0 | CO66: 0 | CP66: 0 | CQ66: 0 | CR66: 0 | CS66: 0 | CT66: 0 | CU66: 0 | CV66: 0 | CW66: 0 | CX66: 0 | CY66: 0 | CZ66: 0 | DA66: 0 | DB66: 0 | DC66: 0 | DD66: 0 | DE66: 0 | DF66: 0 | DG66: 0 | DH66: 0 | DI66: 0 | DJ66: 0 | DK66: 0 | DL66: 0 | DM66: 0 | DN66: 0 | DO66: 0 | DP66: 0 | DQ66: 0 | DR66: 0 | DS66: 0 | DT66: 0 | DU66: 0 | DV66: 0 | DW66: 0 | DX66: 0 | DY66: 0 | DZ66: 0 | EA66: 0 | EB66: 0 | EC66: 0 | ED66: 0 | EE66: 0 | EF66: 0 | EG66: 0 | EH66: 0 | EI66: =$F$66*EI60 -> 0 | EJ66: 0 | EK66: 0 | EL66: 0 | EM66: 0 | EN66: 0 | EO66: 0 | EP66: 0 | EQ66: 0 | ER66: 0 | ES66: 0 | ET66: 0 | EU66: 0 | EV66: 0 | EW66: 0 | EX66: 0 | EY66: 0 | EZ66: 0 | FA66: 0 | FB66: 0 | FC66: 0 | FD66: 0 | FE66: 0 | FF66: 0 | FG66: 0 | FH66: 0 | FI66: 0 | FJ66: 0 | FK66: 0 | FL66: 0 | FM66: 0 | FN66: 0 | FO66: 0 | FP66: 0 | FQ66: 0 | FR66: 0 | FS66: 0 | FT66: 0 | FU66: 0 | FV66: 0 | FW66: 0 | FX66: 0 | FY66: 0 | FZ66: 0 | GA66: 0 | GB66: 0 | GC66: 0 | GD66: 0 | GE66: 0 | GF66: 0 | GG66: 0 | GH66: 0 | GI66: 0 | GJ66: 0 | GK66: 0 | GL66: 0 | GM66: 0 | GN66: 0 | GO66: 0 | GP66: 0 | GQ66: 0 | GR66: 0 | GS66: 0 | GT66: 0 | GU66: =$F$66*GU60 -> 0 | GV66: 0 | GW66: 0 | GX66: 0 | GY66: 0 | GZ66: 0 | HA66: 0 | HB66: 0 | HC66: 0 | HD66: 0 | HE66: 0 | HF66: 0 | HG66: 0 | HH66: 0 | HI66: 0 | HJ66: 0 | HK66: 0 | HL66: 0 | HM66: 0 | HN66: 0 | HO66: 0 | HP66: 0 | HQ66: 0 | HR66: 0 | HS66: 0 | HT66: 0 | HU66: 0 | HV66: 0 | HW66: 0 | HX66: 0 | HY66: 0 | HZ66: 0 | IA66: 0 | IB66: 0 | IC66: 0 | ID66: 0 | IE66: 0 | IF66: 0 | IG66: 0 | IH66: 0 | II66: 0 | IJ66: 0 | IK66: 0 | IL66: 0 | IM66: 0 | IN66: 0 | IO66: 0 | IP66: 0 | IQ66: 0 | IR66: 0 | IS66: 0 | IT66: 0 | IU66: 0 | IV66: 0 | IW66: 0 | IX66: 0 | IY66: 0 | IZ66: 0 | JA66: 0 | JB66: 0 | JC66: 0 | JD66: 0 | JE66: 0 | JF66: 0 | JG66: =$F$66*JG60 -> 0 | JH66: 0 | JI66: 0 | JJ66: 0 | JK66: 0 | JL66: 0 | JM66: 0 | JN66: 0 | JO66: 0 | JP66: 0 | JQ66: 0 | JR66: 0 | JS66: 0 | JT66: 0 | JU66: 0 | JV66: 0 | JW66: 0 | JX66: 0 | JY66: 0 | JZ66: 0 | KA66: 0 | KB66: 0 | KC66: 0 | KD66: 0 | KE66: 0 | KF66: 0 | KG66: 0 | KH66: 0 | KI66: 0 | KJ66: 0 | KK66: 0 | KL66: 0 | KM66: 0 | KN66: 0 | KO66: 0 | KP66: 0 | KQ66: 0 | KR66: 0 | KS66: 0 | KT66: 0 | KU66: 0 | KV66: 0 | KW66: 0 | KX66: 0 | KY66: 0 | KZ66: 0 | LA66: 0 | LB66: 0 | LC66: 0 | LD66: 0 | LE66: 0 | LF66: 0 | LG66: 0 | LH66: 0 | LI66: 0 | LJ66: 0 | LK66: 0 | LL66: 0 | LM66: 0 | LN66: 0 | LO66: 0 | LP66: 0 | LQ66: 0 | LR66: 0 | LS66: =$F$66*LS60 -> 0 | LT66: 0 | LU66: 0 | LV66: 0 | LW66: 0 | LX66: 0 | LY66: 0 | LZ66: 0 | MA66: 0 | MB66: 0 | MC66: 0 | MD66: 0 | ME66: 0 | MF66: 0 | MG66: 0 | MH66: 0 | MI66: 0 | MJ66: 0 | MK66: 0 | ML66: 0 | MM66: 0 | MN66: 0 | MO66: 0 | MP66: 0 | MQ66: 0 | MR66: 0 | MS66: 0 | MT66: 0 | MU66: 0 | MV66: 0 | MW66: 0 | MX66: 0 | MY66: 0 | MZ66: 0 | NA66: 0 | NB66: 0 | NC66: 0 | ND66: 0 | NE66: 0 | NF66: 0 | NG66: 0 | NH66: 0 | NI66: 0 | NJ66: 0 | NK66: 0 | NL66: 0 | NM66: 0 | NN66: 0 | NO66: 0 | NP66: 0 | NQ66: 0 | NR66: 0 | NS66: 0 | NT66: 0 | NU66: 0 | NV66: 0
C67: Water Required | E67: Litres/Ton A | F67: =F27 -> 0 | G67: Litres | J67: =J60*$F$67 -> 0 | K67: =K60*$F$67 -> 0 | L67: 0 | M67: 0 | N67: 0 | O67: 0 | P67: 0 | Q67: 0 | R67: 0 | S67: 0 | T67: 0 | U67: 0 | V67: 0 | W67: 0 | X67: 0 | Y67: 0 | Z67: 0 | AA67: 0 | AB67: 0 | AC67: 0 | AD67: 0 | AE67: 0 | AF67: 0 | AG67: 0 | AH67: 0 | AI67: 0 | AJ67: 0 | AK67: 0 | AL67: 0 | AM67: 0 | AN67: 0 | AO67: 0 | AP67: 0 | AQ67: 0 | AR67: 0 | AS67: 0 | AT67: 0 | AU67: 0 | AV67: 0 | AW67: 0 | AX67: 0 | AY67: 0 | AZ67: 0 | BA67: 0 | BB67: 0 | BC67: 0 | BD67: 0 | BE67: 0 | BF67: 0 | BG67: 0 | BH67: 0 | BI67: 0 | BJ67: 0 | BK67: 0 | BL67: 0 | BM67: 0 | BN67: 0 | BO67: 0 | BP67: 0 | BQ67: 0 | BR67: 0 | BS67: 0 | BT67: 0 | BU67: 0 | BV67: 0 | BW67: =BW60*$F$67 -> 0 | BX67: 0 | BY67: 0 | BZ67: 0 | CA67: 0 | CB67: 0 | CC67: 0 | CD67: 0 | CE67: 0 | CF67: 0 | CG67: 0 | CH67: 0 | CI67: 0 | CJ67: 0 | CK67: 0 | CL67: 0 | CM67: 0 | CN67: 0 | CO67: 0 | CP67: 0 | CQ67: 0 | CR67: 0 | CS67: 0 | CT67: 0 | CU67: 0 | CV67: 0 | CW67: 0 | CX67: 0 | CY67: 0 | CZ67: 0 | DA67: 0 | DB67: 0 | DC67: 0 | DD67: 0 | DE67: 0 | DF67: 0 | DG67: 0 | DH67: 0 | DI67: 0 | DJ67: 0 | DK67: 0 | DL67: 0 | DM67: 0 | DN67: 0 | DO67: 0 | DP67: 0 | DQ67: 0 | DR67: 0 | DS67: 0 | DT67: 0 | DU67: 0 | DV67: 0 | DW67: 0 | DX67: 0 | DY67: 0 | DZ67: 0 | EA67: 0 | EB67: 0 | EC67: 0 | ED67: 0 | EE67: 0 | EF67: 0 | EG67: 0 | EH67: 0 | EI67: =EI60*$F$67 -> 0 | EJ67: 0 | EK67: 0 | EL67: 0 | EM67: 0 | EN67: 0 | EO67: 0 | EP67: 0 | EQ67: 0 | ER67: 0 | ES67: 0 | ET67: 0 | EU67: 0 | EV67: 0 | EW67: 0 | EX67: 0 | EY67: 0 | EZ67: 0 | FA67: 0 | FB67: 0 | FC67: 0 | FD67: 0 | FE67: 0 | FF67: 0 | FG67: 0 | FH67: 0 | FI67: 0 | FJ67: 0 | FK67: 0 | FL67: 0 | FM67: 0 | FN67: 0 | FO67: 0 | FP67: 0 | FQ67: 0 | FR67: 0 | FS67: 0 | FT67: 0 | FU67: 0 | FV67: 0 | FW67: 0 | FX67: 0 | FY67: 0 | FZ67: 0 | GA67: 0 | GB67: 0 | GC67: 0 | GD67: 0 | GE67: 0 | GF67: 0 | GG67: 0 | GH67: 0 | GI67: 0 | GJ67: 0 | GK67: 0 | GL67: 0 | GM67: 0 | GN67: 0 | GO67: 0 | GP67: 0 | GQ67: 0 | GR67: 0 | GS67: 0 | GT67: 0 | GU67: =GU60*$F$67 -> 0 | GV67: 0 | GW67: 0 | GX67: 0 | GY67: 0 | GZ67: 0 | HA67: 0 | HB67: 0 | HC67: 0 | HD67: 0 | HE67: 0 | HF67: 0 | HG67: 0 | HH67: 0 | HI67: 0 | HJ67: 0 | HK67: 0 | HL67: 0 | HM67: 0 | HN67: 0 | HO67: 0 | HP67: 0 | HQ67: 0 | HR67: 0 | HS67: 0 | HT67: 0 | HU67: 0 | HV67: 0 | HW67: 0 | HX67: 0 | HY67: 0 | HZ67: 0 | IA67: 0 | IB67: 0 | IC67: 0 | ID67: 0 | IE67: 0 | IF67: 0 | IG67: 0 | IH67: 0 | II67: 0 | IJ67: 0 | IK67: 0 | IL67: 0 | IM67: 0 | IN67: 0 | IO67: 0 | IP67: 0 | IQ67: 0 | IR67: 0 | IS67: 0 | IT67: 0 | IU67: 0 | IV67: 0 | IW67: 0 | IX67: 0 | IY67: 0 | IZ67: 0 | JA67: 0 | JB67: 0 | JC67: 0 | JD67: 0 | JE67: 0 | JF67: 0 | JG67: =JG60*$F$67 -> 0 | JH67: 0 | JI67: 0 | JJ67: 0 | JK67: 0 | JL67: 0 | JM67: 0 | JN67: 0 | JO67: 0 | JP67: 0 | JQ67: 0 | JR67: 0 | JS67: 0 | JT67: 0 | JU67: 0 | JV67: 0 | JW67: 0 | JX67: 0 | JY67: 0 | JZ67: 0 | KA67: 0 | KB67: 0 | KC67: 0 | KD67: 0 | KE67: 0 | KF67: 0 | KG67: 0 | KH67: 0 | KI67: 0 | KJ67: 0 | KK67: 0 | KL67: 0 | KM67: 0 | KN67: 0 | KO67: 0 | KP67: 0 | KQ67: 0 | KR67: 0 | KS67: 0 | KT67: 0 | KU67: 0 | KV67: 0 | KW67: 0 | KX67: 0 | KY67: 0 | KZ67: 0 | LA67: 0 | LB67: 0 | LC67: 0 | LD67: 0 | LE67: 0 | LF67: 0 | LG67: 0 | LH67: 0 | LI67: 0 | LJ67: 0 | LK67: 0 | LL67: 0 | LM67: 0 | LN67: 0 | LO67: 0 | LP67: 0 | LQ67: 0 | LR67: 0 | LS67: =LS60*$F$67 -> 0 | LT67: 0 | LU67: 0 | LV67: 0 | LW67: 0 | LX67: 0 | LY67: 0 | LZ67: 0 | MA67: 0 | MB67: 0 | MC67: 0 | MD67: 0 | ME67: 0 | MF67: 0 | MG67: 0 | MH67: 0 | MI67: 0 | MJ67: 0 | MK67: 0 | ML67: 0 | MM67: 0 | MN67: 0 | MO67: 0 | MP67: 0 | MQ67: 0 | MR67: 0 | MS67: 0 | MT67: 0 | MU67: 0 | MV67: 0 | MW67: 0 | MX67: 0 | MY67: 0 | MZ67: 0 | NA67: 0 | NB67: 0 | NC67: 0 | ND67: 0 | NE67: 0 | NF67: 0 | NG67: 0 | NH67: 0 | NI67: 0 | NJ67: 0 | NK67: 0 | NL67: 0 | NM67: 0 | NN67: 0 | NO67: 0 | NP67: 0 | NQ67: 0 | NR67: 0 | NS67: 0 | NT67: 0 | NU67: 0 | NV67: 0
B69: Operating Cash Flow
C70: Price of Ammonia | E70: USD/Ammonia | F70: =F30 -> 380.613596 | J70: =$F$70 -> 380.613596 | K70: =$F$70 -> 380.613596 | L70: 380.613596 | M70: 380.613596 | N70: 380.613596 | O70: 380.613596 | P70: 380.613596 | Q70: 380.613596 | R70: 380.613596 | S70: 380.613596 | T70: 380.613596 | U70: 380.613596 | V70: 380.613596 | W70: 380.613596 | X70: 380.613596 | Y70: 380.613596 | Z70: 380.613596 | AA70: 380.613596 | AB70: 380.613596 | AC70: 380.613596 | AD70: 380.613596 | AE70: 380.613596 | AF70: 380.613596 | AG70: 380.613596 | AH70: 380.613596 | AI70: 380.613596 | AJ70: 380.613596 | AK70: 380.613596 | AL70: 380.613596 | AM70: 380.613596 | AN70: 380.613596 | AO70: 380.613596 | AP70: 380.613596 | AQ70: 380.613596 | AR70: 380.613596 | AS70: 380.613596 | AT70: 380.613596 | AU70: 380.613596 | AV70: 380.613596 | AW70: 380.613596 | AX70: 380.613596 | AY70: 380.613596 | AZ70: 380.613596 | BA70: 380.613596 | BB70: 380.613596 | BC70: 380.613596 | BD70: 380.613596 | BE70: 380.613596 | BF70: 380.613596 | BG70: 380.613596 | BH70: 380.613596 | BI70: 380.613596 | BJ70: 380.613596 | BK70: 380.613596 | BL70: 380.613596 | BM70: 380.613596 | BN70: 380.613596 | BO70: 380.613596 | BP70: 380.613596 | BQ70: 380.613596 | BR70: 380.613596 | BS70: 380.613596 | BT70: 380.613596 | BU70: 380.613596 | BV70: 380.613596 | BW70: =$F$70 -> 380.613596 | BX70: 380.613596 | BY70: 380.613596 | BZ70: 380.613596 | CA70: 380.613596 | CB70: 380.613596 | CC70: 380.613596 | CD70: 380.613596 | CE70: 380.613596 | CF70: 380.613596 | CG70: 380.613596 | CH70: 380.613596 | CI70: 380.613596 | CJ70: 380.613596 | CK70: 380.613596 | CL70: 380.613596 | CM70: 380.613596 | CN70: 380.613596 | CO70: 380.613596 | CP70: 380.613596 | CQ70: 380.613596 | CR70: 380.613596 | CS70: 380.613596 | CT70: 380.613596 | CU70: 380.613596 | CV70: 380.613596 | CW70: 380.613596 | CX70: 380.613596 | CY70: 380.613596 | CZ70: 380.613596 | DA70: 380.613596 | DB70: 380.613596 | DC70: 380.613596 | DD70: 380.613596 | DE70: 380.613596 | DF70: 380.613596 | DG70: 380.613596 | DH70: 380.613596 | DI70: 380.613596 | DJ70: 380.613596 | DK70: 380.613596 | DL70: 380.613596 | DM70: 380.613596 | DN70: 380.613596 | DO70: 380.613596 | DP70: 380.613596 | DQ70: 380.613596 | DR70: 380.613596 | DS70: 380.613596 | DT70: 380.613596 | DU70: 380.613596 | DV70: 380.613596 | DW70: 380.613596 | DX70: 380.613596 | DY70: 380.613596 | DZ70: 380.613596 | EA70: 380.613596 | EB70: 380.613596 | EC70: 380.613596 | ED70: 380.613596 | EE70: 380.613596 | EF70: 380.613596 | EG70: 380.613596 | EH70: 380.613596 | EI70: =$F$70 -> 380.613596 | EJ70: 380.613596 | EK70: 380.613596 | EL70: 380.613596 | EM70: 380.613596 | EN70: 380.613596 | EO70: 380.613596 | EP70: 380.613596 | EQ70: 380.613596 | ER70: 380.613596 | ES70: 380.613596 | ET70: 380.613596 | EU70: 380.613596 | EV70: 380.613596 | EW70: 380.613596 | EX70: 380.613596 | EY70: 380.613596 | EZ70: 380.613596 | FA70: 380.613596 | FB70: 380.613596 | FC70: 380.613596 | FD70: 380.613596 | FE70: 380.613596 | FF70: 380.613596 | FG70: 380.613596 | FH70: 380.613596 | FI70: 380.613596 | FJ70: 380.613596 | FK70: 380.613596 | FL70: 380.613596 | FM70: 380.613596 | FN70: 380.613596 | FO70: 380.613596 | FP70: 380.613596 | FQ70: 380.613596 | FR70: 380.613596 | FS70: 380.613596 | FT70: 380.613596 | FU70: 380.613596 | FV70: 380.613596 | FW70: 380.613596 | FX70: 380.613596 | FY70: 380.613596 | FZ70: 380.613596 | GA70: 380.613596 | GB70: 380.613596 | GC70: 380.613596 | GD70: 380.613596 | GE70: 380.613596 | GF70: 380.613596 | GG70: 380.613596 | GH70: 380.613596 | GI70: 380.613596 | GJ70: 380.613596 | GK70: 380.613596 | GL70: 380.613596 | GM70: 380.613596 | GN70: 380.613596 | GO70: 380.613596 | GP70: 380.613596 | GQ70: 380.613596 | GR70: 380.613596 | GS70: 380.613596 | GT70: 380.613596 | GU70: =$F$70 -> 380.613596 | GV70: 380.613596 | GW70: 380.613596 | GX70: 380.613596 | GY70: 380.613596 | GZ70: 380.613596 | HA70: 380.613596 | HB70: 380.613596 | HC70: 380.613596 | HD70: 380.613596 | HE70: 380.613596 | HF70: 380.613596 | HG70: 380.613596 | HH70: 380.613596 | HI70: 380.613596 | HJ70: 380.613596 | HK70: 380.613596 | HL70: 380.613596 | HM70: 380.613596 | HN70: 380.613596 | HO70: 380.613596 | HP70: 380.613596 | HQ70: 380.613596 | HR70: 380.613596 | HS70: 380.613596 | HT70: 380.613596 | HU70: 380.613596 | HV70: 380.613596 | HW70: 380.613596 | HX70: 380.613596 | HY70: 380.613596 | HZ70: 380.613596 | IA70: 380.613596 | IB70: 380.613596 | IC70: 380.613596 | ID70: 380.613596 | IE70: 380.613596 | IF70: 380.613596 | IG70: 380.613596 | IH70: 380.613596 | II70: 380.613596 | IJ70: 380.613596 | IK70: 380.613596 | IL70: 380.613596 | IM70: 380.613596 | IN70: 380.613596 | IO70: 380.613596 | IP70: 380.613596 | IQ70: 380.613596 | IR70: 380.613596 | IS70: 380.613596 | IT70: 380.613596 | IU70: 380.613596 | IV70: 380.613596 | IW70: 380.613596 | IX70: 380.613596 | IY70: 380.613596 | IZ70: 380.613596 | JA70: 380.613596 | JB70: 380.613596 | JC70: 380.613596 | JD70: 380.613596 | JE70: 380.613596 | JF70: 380.613596 | JG70: =$F$70 -> 380.613596 | JH70: 380.613596 | JI70: 380.613596 | JJ70: 380.613596 | JK70: 380.613596 | JL70: 380.613596 | JM70: 380.613596 | JN70: 380.613596 | JO70: 380.613596 | JP70: 380.613596 | JQ70: 380.613596 | JR70: 380.613596 | JS70: 380.613596 | JT70: 380.613596 | JU70: 380.613596 | JV70: 380.613596 | JW70: 380.613596 | JX70: 380.613596 | JY70: 380.613596 | JZ70: 380.613596 | KA70: 380.613596 | KB70: 380.613596 | KC70: 380.613596 | KD70: 380.613596 | KE70: 380.613596 | KF70: 380.613596 | KG70: 380.613596 | KH70: 380.613596 | KI70: 380.613596 | KJ70: 380.613596 | KK70: 380.613596 | KL70: 380.613596 | KM70: 380.613596 | KN70: 380.613596 | KO70: 380.613596 | KP70: 380.613596 | KQ70: 380.613596 | KR70: 380.613596 | KS70: 380.613596 | KT70: 380.613596 | KU70: 380.613596 | KV70: 380.613596 | KW70: 380.613596 | KX70: 380.613596 | KY70: 380.613596 | KZ70: 380.613596 | LA70: 380.613596 | LB70: 380.613596 | LC70: 380.613596 | LD70: 380.613596 | LE70: 380.613596 | LF70: 380.613596 | LG70: 380.613596 | LH70: 380.613596 | LI70: 380.613596 | LJ70: 380.613596 | LK70: 380.613596 | LL70: 380.613596 | LM70: 380.613596 | LN70: 380.613596 | LO70: 380.613596 | LP70: 380.613596 | LQ70: 380.613596 | LR70: 380.613596 | LS70: =$F$70 -> 380.613596 | LT70: 380.613596 | LU70: 380.613596 | LV70: 380.613596 | LW70: 380.613596 | LX70: 380.613596 | LY70: 380.613596 | LZ70: 380.613596 | MA70: 380.613596 | MB70: 380.613596 | MC70: 380.613596 | MD70: 380.613596 | ME70: 380.613596 | MF70: 380.613596 | MG70: 380.613596 | MH70: 380.613596 | MI70: 380.613596 | MJ70: 380.613596 | MK70: 380.613596 | ML70: 380.613596 | MM70: 380.613596 | MN70: 380.613596 | MO70: 380.613596 | MP70: 380.613596 | MQ70: 380.613596 | MR70: 380.613596 | MS70: 380.613596 | MT70: 380.613596 | MU70: 380.613596 | MV70: 380.613596 | MW70: 380.613596 | MX70: 380.613596 | MY70: 380.613596 | MZ70: 380.613596 | NA70: 380.613596 | NB70: 380.613596 | NC70: 380.613596 | ND70: 380.613596 | NE70: 380.613596 | NF70: 380.613596 | NG70: 380.613596 | NH70: 380.613596 | NI70: 380.613596 | NJ70: 380.613596 | NK70: 380.613596 | NL70: 380.613596 | NM70: 380.613596 | NN70: 380.613596 | NO70: 380.613596 | NP70: 380.613596 | NQ70: 380.613596 | NR70: 380.613596 | NS70: 380.613596 | NT70: 380.613596 | NU70: 380.613596 | NV70: 380.613596
C71: Revenues | E71: USD | J71: =J70*J60 -> 0 | K71: =K70*K60 -> 132358430.1 | L71: 131996795.1 | M71: 131996795.1 | N71: 131996795.1 | O71: 132358430.1 | P71: 131996795.1 | Q71: 131996795.1 | R71: 131996795.1 | S71: 132358430.1 | T71: 131996795.1 | U71: 131996795.1 | V71: 131996795.1 | W71: 132358430.1 | X71: 131996795.1 | Y71: 131996795.1 | Z71: 131996795.1 | AA71: 132358430.1 | AB71: 131996795.1 | AC71: 131996795.1 | AD71: 131996795.1 | AE71: 132358430.1 | AF71: 131996795.1 | AG71: 131996795.1 | AH71: 131996795.1 | AI71: 132358430.1 | AJ71: 0 | AK71: 0 | AL71: 0 | AM71: 0 | AN71: 0 | AO71: 0 | AP71: 0 | AQ71: 0 | AR71: 0 | AS71: 0 | AT71: 0 | AU71: 0 | AV71: 0 | AW71: 0 | AX71: 0 | AY71: 0 | AZ71: 0 | BA71: 0 | BB71: 0 | BC71: 0 | BD71: 0 | BE71: 0 | BF71: 0 | BG71: 0 | BH71: 0 | BI71: 0 | BJ71: 0 | BK71: 0 | BL71: 0 | BM71: 0 | BN71: 0 | BO71: 0 | BP71: 0 | BQ71: 0 | BR71: 0 | BS71: 0 | BT71: 0 | BU71: 0 | BV71: 0 | BW71: =BW70*BW60 -> 0 | BX71: 0 | BY71: 0 | BZ71: 0 | CA71: 0 | CB71: 0 | CC71: 0 | CD71: 0 | CE71: 0 | CF71: 0 | CG71: 0 | CH71: 0 | CI71: 0 | CJ71: 0 | CK71: 0 | CL71: 0 | CM71: 0 | CN71: 0 | CO71: 0 | CP71: 0 | CQ71: 0 | CR71: 0 | CS71: 0 | CT71: 0 | CU71: 0 | CV71: 0 | CW71: 0 | CX71: 0 | CY71: 0 | CZ71: 0 | DA71: 0 | DB71: 0 | DC71: 0 | DD71: 0 | DE71: 0 | DF71: 0 | DG71: 0 | DH71: 0 | DI71: 0 | DJ71: 0 | DK71: 0 | DL71: 0 | DM71: 0 | DN71: 0 | DO71: 0 | DP71: 0 | DQ71: 0 | DR71: 0 | DS71: 0 | DT71: 0 | DU71: 0 | DV71: 0 | DW71: 0 | DX71: 0 | DY71: 0 | DZ71: 0 | EA71: 0 | EB71: 0 | EC71: 0 | ED71: 0 | EE71: 0 | EF71: 0 | EG71: 0 | EH71: 0 | EI71: =EI70*EI60 -> 0 | EJ71: 0 | EK71: 0 | EL71: 0 | EM71: 0 | EN71: 0 | EO71: 0 | EP71: 0 | EQ71: 0 | ER71: 0 | ES71: 0 | ET71: 0 | EU71: 0 | EV71: 0 | EW71: 0 | EX71: 0 | EY71: 0 | EZ71: 0 | FA71: 0 | FB71: 0 | FC71: 0 | FD71: 0 | FE71: 0 | FF71: 0 | FG71: 0 | FH71: 0 | FI71: 0 | FJ71: 0 | FK71: 0 | FL71: 0 | FM71: 0 | FN71: 0 | FO71: 0 | FP71: 0 | FQ71: 0 | FR71: 0 | FS71: 0 | FT71: 0 | FU71: 0 | FV71: 0 | FW71: 0 | FX71: 0 | FY71: 0 | FZ71: 0 | GA71: 0 | GB71: 0 | GC71: 0 | GD71: 0 | GE71: 0 | GF71: 0 | GG71: 0 | GH71: 0 | GI71: 0 | GJ71: 0 | GK71: 0 | GL71: 0 | GM71: 0 | GN71: 0 | GO71: 0 | GP71: 0 | GQ71: 0 | GR71: 0 | GS71: 0 | GT71: 0 | GU71: =GU70*GU60 -> 0 | GV71: 0 | GW71: 0 | GX71: 0 | GY71: 0 | GZ71: 0 | HA71: 0 | HB71: 0 | HC71: 0 | HD71: 0 | HE71: 0 | HF71: 0 | HG71: 0 | HH71: 0 | HI71: 0 | HJ71: 0 | HK71: 0 | HL71: 0 | HM71: 0 | HN71: 0 | HO71: 0 | HP71: 0 | HQ71: 0 | HR71: 0 | HS71: 0 | HT71: 0 | HU71: 0 | HV71: 0 | HW71: 0 | HX71: 0 | HY71: 0 | HZ71: 0 | IA71: 0 | IB71: 0 | IC71: 0 | ID71: 0 | IE71: 0 | IF71: 0 | IG71: 0 | IH71: 0 | II71: 0 | IJ71: 0 | IK71: 0 | IL71: 0 | IM71: 0 | IN71: 0 | IO71: 0 | IP71: 0 | IQ71: 0 | IR71: 0 | IS71: 0 | IT71: 0 | IU71: 0 | IV71: 0 | IW71: 0 | IX71: 0 | IY71: 0 | IZ71: 0 | JA71: 0 | JB71: 0 | JC71: 0 | JD71: 0 | JE71: 0 | JF71: 0 | JG71: =JG70*JG60 -> 0 | JH71: 0 | JI71: 0 | JJ71: 0 | JK71: 0 | JL71: 0 | JM71: 0 | JN71: 0 | JO71: 0 | JP71: 0 | JQ71: 0 | JR71: 0 | JS71: 0 | JT71: 0 | JU71: 0 | JV71: 0 | JW71: 0 | JX71: 0 | JY71: 0 | JZ71: 0 | KA71: 0 | KB71: 0 | KC71: 0 | KD71: 0 | KE71: 0 | KF71: 0 | KG71: 0 | KH71: 0 | KI71: 0 | KJ71: 0 | KK71: 0 | KL71: 0 | KM71: 0 | KN71: 0 | KO71: 0 | KP71: 0 | KQ71: 0 | KR71: 0 | KS71: 0 | KT71: 0 | KU71: 0 | KV71: 0 | KW71: 0 | KX71: 0 | KY71: 0 | KZ71: 0 | LA71: 0 | LB71: 0 | LC71: 0 | LD71: 0 | LE71: 0 | LF71: 0 | LG71: 0 | LH71: 0 | LI71: 0 | LJ71: 0 | LK71: 0 | LL71: 0 | LM71: 0 | LN71: 0 | LO71: 0 | LP71: 0 | LQ71: 0 | LR71: 0 | LS71: =LS70*LS60 -> 0 | LT71: 0 | LU71: 0 | LV71: 0 | LW71: 0 | LX71: 0 | LY71: 0 | LZ71: 0 | MA71: 0 | MB71: 0 | MC71: 0 | MD71: 0 | ME71: 0 | MF71: 0 | MG71: 0 | MH71: 0 | MI71: 0 | MJ71: 0 | MK71: 0 | ML71: 0 | MM71: 0 | MN71: 0 | MO71: 0 | MP71: 0 | MQ71: 0 | MR71: 0 | MS71: 0 | MT71: 0 | MU71: 0 | MV71: 0 | MW71: 0 | MX71: 0 | MY71: 0 | MZ71: 0 | NA71: 0 | NB71: 0 | NC71: 0 | ND71: 0 | NE71: 0 | NF71: 0 | NG71: 0 | NH71: 0 | NI71: 0 | NJ71: 0 | NK71: 0 | NL71: 0 | NM71: 0 | NN71: 0 | NO71: 0 | NP71: 0 | NQ71: 0 | NR71: 0 | NS71: 0 | NT71: 0 | NU71: 0 | NV71: 0
C73: Hydrogen Electrolyzer Cost | E73: USD/kg | F73: =F31 -> 2.052183334 | G73: USD | J73: =J63*$F$73 -> 0 | K73: =K63*$F$73 -> 127436970.6 | L73: 127088782.2 | M73: 127088782.2 | N73: 127088782.2 | O73: 127436970.6 | P73: 127088782.2 | Q73: 127088782.2 | R73: 127088782.2 | S73: 127436970.6 | T73: 127088782.2 | U73: 127088782.2 | V73: 127088782.2 | W73: 127436970.6 | X73: 127088782.2 | Y73: 127088782.2 | Z73: 127088782.2 | AA73: 127436970.6 | AB73: 127088782.2 | AC73: 127088782.2 | AD73: 127088782.2 | AE73: 127436970.6 | AF73: 127088782.2 | AG73: 127088782.2 | AH73: 127088782.2 | AI73: 127436970.6 | AJ73: 0 | AK73: 0 | AL73: 0 | AM73: 0 | AN73: 0 | AO73: 0 | AP73: 0 | AQ73: 0 | AR73: 0 | AS73: 0 | AT73: 0 | AU73: 0 | AV73: 0 | AW73: 0 | AX73: 0 | AY73: 0 | AZ73: 0 | BA73: 0 | BB73: 0 | BC73: 0 | BD73: 0 | BE73: 0 | BF73: 0 | BG73: 0 | BH73: 0 | BI73: 0 | BJ73: 0 | BK73: 0 | BL73: 0 | BM73: 0 | BN73: 0 | BO73: 0 | BP73: 0 | BQ73: 0 | BR73: 0 | BS73: 0 | BT73: 0 | BU73: 0 | BV73: 0 | BW73: =BW63*$F$73 -> 0 | BX73: 0 | BY73: 0 | BZ73: 0 | CA73: 0 | CB73: 0 | CC73: 0 | CD73: 0 | CE73: 0 | CF73: 0 | CG73: 0 | CH73: 0 | CI73: 0 | CJ73: 0 | CK73: 0 | CL73: 0 | CM73: 0 | CN73: 0 | CO73: 0 | CP73: 0 | CQ73: 0 | CR73: 0 | CS73: 0 | CT73: 0 | CU73: 0 | CV73: 0 | CW73: 0 | CX73: 0 | CY73: 0 | CZ73: 0 | DA73: 0 | DB73: 0 | DC73: 0 | DD73: 0 | DE73: 0 | DF73: 0 | DG73: 0 | DH73: 0 | DI73: 0 | DJ73: 0 | DK73: 0 | DL73: 0 | DM73: 0 | DN73: 0 | DO73: 0 | DP73: 0 | DQ73: 0 | DR73: 0 | DS73: 0 | DT73: 0 | DU73: 0 | DV73: 0 | DW73: 0 | DX73: 0 | DY73: 0 | DZ73: 0 | EA73: 0 | EB73: 0 | EC73: 0 | ED73: 0 | EE73: 0 | EF73: 0 | EG73: 0 | EH73: 0 | EI73: =EI63*$F$73 -> 0 | EJ73: 0 | EK73: 0 | EL73: 0 | EM73: 0 | EN73: 0 | EO73: 0 | EP73: 0 | EQ73: 0 | ER73: 0 | ES73: 0 | ET73: 0 | EU73: 0 | EV73: 0 | EW73: 0 | EX73: 0 | EY73: 0 | EZ73: 0 | FA73: 0 | FB73: 0 | FC73: 0 | FD73: 0 | FE73: 0 | FF73: 0 | FG73: 0 | FH73: 0 | FI73: 0 | FJ73: 0 | FK73: 0 | FL73: 0 | FM73: 0 | FN73: 0 | FO73: 0 | FP73: 0 | FQ73: 0 | FR73: 0 | FS73: 0 | FT73: 0 | FU73: 0 | FV73: 0 | FW73: 0 | FX73: 0 | FY73: 0 | FZ73: 0 | GA73: 0 | GB73: 0 | GC73: 0 | GD73: 0 | GE73: 0 | GF73: 0 | GG73: 0 | GH73: 0 | GI73: 0 | GJ73: 0 | GK73: 0 | GL73: 0 | GM73: 0 | GN73: 0 | GO73: 0 | GP73: 0 | GQ73: 0 | GR73: 0 | GS73: 0 | GT73: 0 | GU73: =GU63*$F$73 -> 0 | GV73: 0 | GW73: 0 | GX73: 0 | GY73: 0 | GZ73: 0 | HA73: 0 | HB73: 0 | HC73: 0 | HD73: 0 | HE73: 0 | HF73: 0 | HG73: 0 | HH73: 0 | HI73: 0 | HJ73: 0 | HK73: 0 | HL73: 0 | HM73: 0 | HN73: 0 | HO73: 0 | HP73: 0 | HQ73: 0 | HR73: 0 | HS73: 0 | HT73: 0 | HU73: 0 | HV73: 0 | HW73: 0 | HX73: 0 | HY73: 0 | HZ73: 0 | IA73: 0 | IB73: 0 | IC73: 0 | ID73: 0 | IE73: 0 | IF73: 0 | IG73: 0 | IH73: 0 | II73: 0 | IJ73: 0 | IK73: 0 | IL73: 0 | IM73: 0 | IN73: 0 | IO73: 0 | IP73: 0 | IQ73: 0 | IR73: 0 | IS73: 0 | IT73: 0 | IU73: 0 | IV73: 0 | IW73: 0 | IX73: 0 | IY73: 0 | IZ73: 0 | JA73: 0 | JB73: 0 | JC73: 0 | JD73: 0 | JE73: 0 | JF73: 0 | JG73: =JG63*$F$73 -> 0 | JH73: 0 | JI73: 0 | JJ73: 0 | JK73: 0 | JL73: 0 | JM73: 0 | JN73: 0 | JO73: 0 | JP73: 0 | JQ73: 0 | JR73: 0 | JS73: 0 | JT73: 0 | JU73: 0 | JV73: 0 | JW73: 0 | JX73: 0 | JY73: 0 | JZ73: 0 | KA73: 0 | KB73: 0 | KC73: 0 | KD73: 0 | KE73: 0 | KF73: 0 | KG73: 0 | KH73: 0 | KI73: 0 | KJ73: 0 | KK73: 0 | KL73: 0 | KM73: 0 | KN73: 0 | KO73: 0 | KP73: 0 | KQ73: 0 | KR73: 0 | KS73: 0 | KT73: 0 | KU73: 0 | KV73: 0 | KW73: 0 | KX73: 0 | KY73: 0 | KZ73: 0 | LA73: 0 | LB73: 0 | LC73: 0 | LD73: 0 | LE73: 0 | LF73: 0 | LG73: 0 | LH73: 0 | LI73: 0 | LJ73: 0 | LK73: 0 | LL73: 0 | LM73: 0 | LN73: 0 | LO73: 0 | LP73: 0 | LQ73: 0 | LR73: 0 | LS73: =LS63*$F$73 -> 0 | LT73: 0 | LU73: 0 | LV73: 0 | LW73: 0 | LX73: 0 | LY73: 0 | LZ73: 0 | MA73: 0 | MB73: 0 | MC73: 0 | MD73: 0 | ME73: 0 | MF73: 0 | MG73: 0 | MH73: 0 | MI73: 0 | MJ73: 0 | MK73: 0 | ML73: 0 | MM73: 0 | MN73: 0 | MO73: 0 | MP73: 0 | MQ73: 0 | MR73: 0 | MS73: 0 | MT73: 0 | MU73: 0 | MV73: 0 | MW73: 0 | MX73: 0 | MY73: 0 | MZ73: 0 | NA73: 0 | NB73: 0 | NC73: 0 | ND73: 0 | NE73: 0 | NF73: 0 | NG73: 0 | NH73: 0 | NI73: 0 | NJ73: 0 | NK73: 0 | NL73: 0 | NM73: 0 | NN73: 0 | NO73: 0 | NP73: 0 | NQ73: 0 | NR73: 0 | NS73: 0 | NT73: 0 | NU73: 0 | NV73: 0
C74: Hydrogen Compression Cost | E74: USD/kg | F74: =F32 -> 0.1224767399 | G74: USD | J74: =J63*$F$74 -> 0 | K74: =K63*$F$74 -> 7605589.833 | L74: 7584809.533 | M74: 7584809.533 | N74: 7584809.533 | O74: 7605589.833 | P74: 7584809.533 | Q74: 7584809.533 | R74: 7584809.533 | S74: 7605589.833 | T74: 7584809.533 | U74: 7584809.533 | V74: 7584809.533 | W74: 7605589.833 | X74: 7584809.533 | Y74: 7584809.533 | Z74: 7584809.533 | AA74: 7605589.833 | AB74: 7584809.533 | AC74: 7584809.533 | AD74: 7584809.533 | AE74: 7605589.833 | AF74: 7584809.533 | AG74: 7584809.533 | AH74: 7584809.533 | AI74: 7605589.833 | AJ74: 0 | AK74: 0 | AL74: 0 | AM74: 0 | AN74: 0 | AO74: 0 | AP74: 0 | AQ74: 0 | AR74: 0 | AS74: 0 | AT74: 0 | AU74: 0 | AV74: 0 | AW74: 0 | AX74: 0 | AY74: 0 | AZ74: 0 | BA74: 0 | BB74: 0 | BC74: 0 | BD74: 0 | BE74: 0 | BF74: 0 | BG74: 0 | BH74: 0 | BI74: 0 | BJ74: 0 | BK74: 0 | BL74: 0 | BM74: 0 | BN74: 0 | BO74: 0 | BP74: 0 | BQ74: 0 | BR74: 0 | BS74: 0 | BT74: 0 | BU74: 0 | BV74: 0 | BW74: =BW63*$F$74 -> 0 | BX74: 0 | BY74: 0 | BZ74: 0 | CA74: 0 | CB74: 0 | CC74: 0 | CD74: 0 | CE74: 0 | CF74: 0 | CG74: 0 | CH74: 0 | CI74: 0 | CJ74: 0 | CK74: 0 | CL74: 0 | CM74: 0 | CN74: 0 | CO74: 0 | CP74: 0 | CQ74: 0 | CR74: 0 | CS74: 0 | CT74: 0 | CU74: 0 | CV74: 0 | CW74: 0 | CX74: 0 | CY74: 0 | CZ74: 0 | DA74: 0 | DB74: 0 | DC74: 0 | DD74: 0 | DE74: 0 | DF74: 0 | DG74: 0 | DH74: 0 | DI74: 0 | DJ74: 0 | DK74: 0 | DL74: 0 | DM74: 0 | DN74: 0 | DO74: 0 | DP74: 0 | DQ74: 0 | DR74: 0 | DS74: 0 | DT74: 0 | DU74: 0 | DV74: 0 | DW74: 0 | DX74: 0 | DY74: 0 | DZ74: 0 | EA74: 0 | EB74: 0 | EC74: 0 | ED74: 0 | EE74: 0 | EF74: 0 | EG74: 0 | EH74: 0 | EI74: =EI63*$F$74 -> 0 | EJ74: 0 | EK74: 0 | EL74: 0 | EM74: 0 | EN74: 0 | EO74: 0 | EP74: 0 | EQ74: 0 | ER74: 0 | ES74: 0 | ET74: 0 | EU74: 0 | EV74: 0 | EW74: 0 | EX74: 0 | EY74: 0 | EZ74: 0 | FA74: 0 | FB74: 0 | FC74: 0 | FD74: 0 | FE74: 0 | FF74: 0 | FG74: 0 | FH74: 0 | FI74: 0 | FJ74: 0 | FK74: 0 | FL74: 0 | FM74: 0 | FN74: 0 | FO74: 0 | FP74: 0 | FQ74: 0 | FR74: 0 | FS74: 0 | FT74: 0 | FU74: 0 | FV74: 0 | FW74: 0 | FX74: 0 | FY74: 0 | FZ74: 0 | GA74: 0 | GB74: 0 | GC74: 0 | GD74: 0 | GE74: 0 | GF74: 0 | GG74: 0 | GH74: 0 | GI74: 0 | GJ74: 0 | GK74: 0 | GL74: 0 | GM74: 0 | GN74: 0 | GO74: 0 | GP74: 0 | GQ74: 0 | GR74: 0 | GS74: 0 | GT74: 0 | GU74: =GU63*$F$74 -> 0 | GV74: 0 | GW74: 0 | GX74: 0 | GY74: 0 | GZ74: 0 | HA74: 0 | HB74: 0 | HC74: 0 | HD74: 0 | HE74: 0 | HF74: 0 | HG74: 0 | HH74: 0 | HI74: 0 | HJ74: 0 | HK74: 0 | HL74: 0 | HM74: 0 | HN74: 0 | HO74: 0 | HP74: 0 | HQ74: 0 | HR74: 0 | HS74: 0 | HT74: 0 | HU74: 0 | HV74: 0 | HW74: 0 | HX74: 0 | HY74: 0 | HZ74: 0 | IA74: 0 | IB74: 0 | IC74: 0 | ID74: 0 | IE74: 0 | IF74: 0 | IG74: 0 | IH74: 0 | II74: 0 | IJ74: 0 | IK74: 0 | IL74: 0 | IM74: 0 | IN74: 0 | IO74: 0 | IP74: 0 | IQ74: 0 | IR74: 0 | IS74: 0 | IT74: 0 | IU74: 0 | IV74: 0 | IW74: 0 | IX74: 0 | IY74: 0 | IZ74: 0 | JA74: 0 | JB74: 0 | JC74: 0 | JD74: 0 | JE74: 0 | JF74: 0 | JG74: =JG63*$F$74 -> 0 | JH74: 0 | JI74: 0 | JJ74: 0 | JK74: 0 | JL74: 0 | JM74: 0 | JN74: 0 | JO74: 0 | JP74: 0 | JQ74: 0 | JR74: 0 | JS74: 0 | JT74: 0 | JU74: 0 | JV74: 0 | JW74: 0 | JX74: 0 | JY74: 0 | JZ74: 0 | KA74: 0 | KB74: 0 | KC74: 0 | KD74: 0 | KE74: 0 | KF74: 0 | KG74: 0 | KH74: 0 | KI74: 0 | KJ74: 0 | KK74: 0 | KL74: 0 | KM74: 0 | KN74: 0 | KO74: 0 | KP74: 0 | KQ74: 0 | KR74: 0 | KS74: 0 | KT74: 0 | KU74: 0 | KV74: 0 | KW74: 0 | KX74: 0 | KY74: 0 | KZ74: 0 | LA74: 0 | LB74: 0 | LC74: 0 | LD74: 0 | LE74: 0 | LF74: 0 | LG74: 0 | LH74: 0 | LI74: 0 | LJ74: 0 | LK74: 0 | LL74: 0 | LM74: 0 | LN74: 0 | LO74: 0 | LP74: 0 | LQ74: 0 | LR74: 0 | LS74: =LS63*$F$74 -> 0 | LT74: 0 | LU74: 0 | LV74: 0 | LW74: 0 | LX74: 0 | LY74: 0 | LZ74: 0 | MA74: 0 | MB74: 0 | MC74: 0 | MD74: 0 | ME74: 0 | MF74: 0 | MG74: 0 | MH74: 0 | MI74: 0 | MJ74: 0 | MK74: 0 | ML74: 0 | MM74: 0 | MN74: 0 | MO74: 0 | MP74: 0 | MQ74: 0 | MR74: 0 | MS74: 0 | MT74: 0 | MU74: 0 | MV74: 0 | MW74: 0 | MX74: 0 | MY74: 0 | MZ74: 0 | NA74: 0 | NB74: 0 | NC74: 0 | ND74: 0 | NE74: 0 | NF74: 0 | NG74: 0 | NH74: 0 | NI74: 0 | NJ74: 0 | NK74: 0 | NL74: 0 | NM74: 0 | NN74: 0 | NO74: 0 | NP74: 0 | NQ74: 0 | NR74: 0 | NS74: 0 | NT74: 0 | NU74: 0 | NV74: 0
C75: Nitrogen Compression Cost | E75: USD/Ton | F75: =F33 -> 20.78783138 | G75: USD | J75: =J60*$F$75 -> 0 | K75: =K60*$F$75 -> 7228971.21 | L75: 7209219.922 | M75: 7209219.922 | N75: 7209219.922 | O75: 7228971.21 | P75: 7209219.922 | Q75: 7209219.922 | R75: 7209219.922 | S75: 7228971.21 | T75: 7209219.922 | U75: 7209219.922 | V75: 7209219.922 | W75: 7228971.21 | X75: 7209219.922 | Y75: 7209219.922 | Z75: 7209219.922 | AA75: 7228971.21 | AB75: 7209219.922 | AC75: 7209219.922 | AD75: 7209219.922 | AE75: 7228971.21 | AF75: 7209219.922 | AG75: 7209219.922 | AH75: 7209219.922 | AI75: 7228971.21 | AJ75: 0 | AK75: 0 | AL75: 0 | AM75: 0 | AN75: 0 | AO75: 0 | AP75: 0 | AQ75: 0 | AR75: 0 | AS75: 0 | AT75: 0 | AU75: 0 | AV75: 0 | AW75: 0 | AX75: 0 | AY75: 0 | AZ75: 0 | BA75: 0 | BB75: 0 | BC75: 0 | BD75: 0 | BE75: 0 | BF75: 0 | BG75: 0 | BH75: 0 | BI75: 0 | BJ75: 0 | BK75: 0 | BL75: 0 | BM75: 0 | BN75: 0 | BO75: 0 | BP75: 0 | BQ75: 0 | BR75: 0 | BS75: 0 | BT75: 0 | BU75: 0 | BV75: 0 | BW75: =BW60*$F$75 -> 0 | BX75: 0 | BY75: 0 | BZ75: 0 | CA75: 0 | CB75: 0 | CC75: 0 | CD75: 0 | CE75: 0 | CF75: 0 | CG75: 0 | CH75: 0 | CI75: 0 | CJ75: 0 | CK75: 0 | CL75: 0 | CM75: 0 | CN75: 0 | CO75: 0 | CP75: 0 | CQ75: 0 | CR75: 0 | CS75: 0 | CT75: 0 | CU75: 0 | CV75: 0 | CW75: 0 | CX75: 0 | CY75: 0 | CZ75: 0 | DA75: 0 | DB75: 0 | DC75: 0 | DD75: 0 | DE75: 0 | DF75: 0 | DG75: 0 | DH75: 0 | DI75: 0 | DJ75: 0 | DK75: 0 | DL75: 0 | DM75: 0 | DN75: 0 | DO75: 0 | DP75: 0 | DQ75: 0 | DR75: 0 | DS75: 0 | DT75: 0 | DU75: 0 | DV75: 0 | DW75: 0 | DX75: 0 | DY75: 0 | DZ75: 0 | EA75: 0 | EB75: 0 | EC75: 0 | ED75: 0 | EE75: 0 | EF75: 0 | EG75: 0 | EH75: 0 | EI75: =EI60*$F$75 -> 0 | EJ75: 0 | EK75: 0 | EL75: 0 | EM75: 0 | EN75: 0 | EO75: 0 | EP75: 0 | EQ75: 0 | ER75: 0 | ES75: 0 | ET75: 0 | EU75: 0 | EV75: 0 | EW75: 0 | EX75: 0 | EY75: 0 | EZ75: 0 | FA75: 0 | FB75: 0 | FC75: 0 | FD75: 0 | FE75: 0 | FF75: 0 | FG75: 0 | FH75: 0 | FI75: 0 | FJ75: 0 | FK75: 0 | FL75: 0 | FM75: 0 | FN75: 0 | FO75: 0 | FP75: 0 | FQ75: 0 | FR75: 0 | FS75: 0 | FT75: 0 | FU75: 0 | FV75: 0 | FW75: 0 | FX75: 0 | FY75: 0 | FZ75: 0 | GA75: 0 | GB75: 0 | GC75: 0 | GD75: 0 | GE75: 0 | GF75: 0 | GG75: 0 | GH75: 0 | GI75: 0 | GJ75: 0 | GK75: 0 | GL75: 0 | GM75: 0 | GN75: 0 | GO75: 0 | GP75: 0 | GQ75: 0 | GR75: 0 | GS75: 0 | GT75: 0 | GU75: =GU60*$F$75 -> 0 | GV75: 0 | GW75: 0 | GX75: 0 | GY75: 0 | GZ75: 0 | HA75: 0 | HB75: 0 | HC75: 0 | HD75: 0 | HE75: 0 | HF75: 0 | HG75: 0 | HH75: 0 | HI75: 0 | HJ75: 0 | HK75: 0 | HL75: 0 | HM75: 0 | HN75: 0 | HO75: 0 | HP75: 0 | HQ75: 0 | HR75: 0 | HS75: 0 | HT75: 0 | HU75: 0 | HV75: 0 | HW75: 0 | HX75: 0 | HY75: 0 | HZ75: 0 | IA75: 0 | IB75: 0 | IC75: 0 | ID75: 0 | IE75: 0 | IF75: 0 | IG75: 0 | IH75: 0 | II75: 0 | IJ75: 0 | IK75: 0 | IL75: 0 | IM75: 0 | IN75: 0 | IO75: 0 | IP75: 0 | IQ75: 0 | IR75: 0 | IS75: 0 | IT75: 0 | IU75: 0 | IV75: 0 | IW75: 0 | IX75: 0 | IY75: 0 | IZ75: 0 | JA75: 0 | JB75: 0 | JC75: 0 | JD75: 0 | JE75: 0 | JF75: 0 | JG75: =JG60*$F$75 -> 0 | JH75: 0 | JI75: 0 | JJ75: 0 | JK75: 0 | JL75: 0 | JM75: 0 | JN75: 0 | JO75: 0 | JP75: 0 | JQ75: 0 | JR75: 0 | JS75: 0 | JT75: 0 | JU75: 0 | JV75: 0 | JW75: 0 | JX75: 0 | JY75: 0 | JZ75: 0 | KA75: 0 | KB75: 0 | KC75: 0 | KD75: 0 | KE75: 0 | KF75: 0 | KG75: 0 | KH75: 0 | KI75: 0 | KJ75: 0 | KK75: 0 | KL75: 0 | KM75: 0 | KN75: 0 | KO75: 0 | KP75: 0 | KQ75: 0 | KR75: 0 | KS75: 0 | KT75: 0 | KU75: 0 | KV75: 0 | KW75: 0 | KX75: 0 | KY75: 0 | KZ75: 0 | LA75: 0 | LB75: 0 | LC75: 0 | LD75: 0 | LE75: 0 | LF75: 0 | LG75: 0 | LH75: 0 | LI75: 0 | LJ75: 0 | LK75: 0 | LL75: 0 | LM75: 0 | LN75: 0 | LO75: 0 | LP75: 0 | LQ75: 0 | LR75: 0 | LS75: =LS60*$F$75 -> 0 | LT75: 0 | LU75: 0 | LV75: 0 | LW75: 0 | LX75: 0 | LY75: 0 | LZ75: 0 | MA75: 0 | MB75: 0 | MC75: 0 | MD75: 0 | ME75: 0 | MF75: 0 | MG75: 0 | MH75: 0 | MI75: 0 | MJ75: 0 | MK75: 0 | ML75: 0 | MM75: 0 | MN75: 0 | MO75: 0 | MP75: 0 | MQ75: 0 | MR75: 0 | MS75: 0 | MT75: 0 | MU75: 0 | MV75: 0 | MW75: 0 | MX75: 0 | MY75: 0 | MZ75: 0 | NA75: 0 | NB75: 0 | NC75: 0 | ND75: 0 | NE75: 0 | NF75: 0 | NG75: 0 | NH75: 0 | NI75: 0 | NJ75: 0 | NK75: 0 | NL75: 0 | NM75: 0 | NN75: 0 | NO75: 0 | NP75: 0 | NQ75: 0 | NR75: 0 | NS75: 0 | NT75: 0 | NU75: 0 | NV75: 0
C76: Power Cost | E76: USD/MWH | F76: =F34 -> 21 | G76: USD | J76: =J66*$F$76 -> 0 | K76: 5389431.623 | L76: 5374706.4 | M76: 5374706.4 | N76: 5374706.4 | O76: 5389431.623 | P76: 5374706.4 | Q76: 5374706.4 | R76: 5374706.4 | S76: 5389431.623 | T76: 5374706.4 | U76: 5374706.4 | V76: 5374706.4 | W76: 5389431.623 | X76: 5374706.4 | Y76: 5374706.4 | Z76: 5374706.4 | AA76: 5389431.623 | AB76: 5374706.4 | AC76: 5374706.4 | AD76: 5374706.4 | AE76: 5389431.623 | AF76: 5374706.4 | AG76: 5374706.4 | AH76: 5374706.4 | AI76: 5389431.623 | AJ76: 0 | AK76: 0 | AL76: 0 | AM76: 0 | AN76: 0 | AO76: 0 | AP76: 0 | AQ76: 0 | AR76: 0 | AS76: 0 | AT76: 0 | AU76: 0 | AV76: 0 | AW76: 0 | AX76: 0 | AY76: 0 | AZ76: 0 | BA76: 0 | BB76: 0 | BC76: 0 | BD76: 0 | BE76: 0 | BF76: 0 | BG76: 0 | BH76: 0 | BI76: 0 | BJ76: 0 | BK76: 0 | BL76: 0 | BM76: 0 | BN76: 0 | BO76: 0 | BP76: 0 | BQ76: 0 | BR76: 0 | BS76: 0 | BT76: 0 | BU76: 0 | BV76: =BV66*$F$76 -> 0 | BW76: 0 | BX76: 0 | BY76: 0 | BZ76: 0 | CA76: 0 | CB76: 0 | CC76: 0 | CD76: 0 | CE76: 0 | CF76: 0 | CG76: 0 | CH76: 0 | CI76: 0 | CJ76: 0 | CK76: 0 | CL76: 0 | CM76: 0 | CN76: 0 | CO76: 0 | CP76: 0 | CQ76: 0 | CR76: 0 | CS76: 0 | CT76: 0 | CU76: 0 | CV76: 0 | CW76: 0 | CX76: 0 | CY76: 0 | CZ76: 0 | DA76: 0 | DB76: 0 | DC76: 0 | DD76: 0 | DE76: 0 | DF76: 0 | DG76: 0 | DH76: 0 | DI76: 0 | DJ76: 0 | DK76: 0 | DL76: 0 | DM76: 0 | DN76: 0 | DO76: 0 | DP76: 0 | DQ76: 0 | DR76: 0 | DS76: 0 | DT76: 0 | DU76: 0 | DV76: 0 | DW76: 0 | DX76: 0 | DY76: 0 | DZ76: 0 | EA76: 0 | EB76: 0 | EC76: 0 | ED76: 0 | EE76: 0 | EF76: 0 | EG76: 0 | EH76: =EH66*$F$76 -> 0 | EI76: 0 | EJ76: 0 | EK76: 0 | EL76: 0 | EM76: 0 | EN76: 0 | EO76: 0 | EP76: 0 | EQ76: 0 | ER76: 0 | ES76: 0 | ET76: 0 | EU76: 0 | EV76: 0 | EW76: 0 | EX76: 0 | EY76: 0 | EZ76: 0 | FA76: 0 | FB76: 0 | FC76: 0 | FD76: 0 | FE76: 0 | FF76: 0 | FG76: 0 | FH76: 0 | FI76: 0 | FJ76: 0 | FK76: 0 | FL76: 0 | FM76: 0 | FN76: 0 | FO76: 0 | FP76: 0 | FQ76: 0 | FR76: 0 | FS76: 0 | FT76: 0 | FU76: 0 | FV76: 0 | FW76: 0 | FX76: 0 | FY76: 0 | FZ76: 0 | GA76: 0 | GB76: 0 | GC76: 0 | GD76: 0 | GE76: 0 | GF76: 0 | GG76: 0 | GH76: 0 | GI76: 0 | GJ76: 0 | GK76: 0 | GL76: 0 | GM76: 0 | GN76: 0 | GO76: 0 | GP76: 0 | GQ76: 0 | GR76: 0 | GS76: 0 | GT76: =GT66*$F$76 -> 0 | GU76: 0 | GV76: 0 | GW76: 0 | GX76: 0 | GY76: 0 | GZ76: 0 | HA76: 0 | HB76: 0 | HC76: 0 | HD76: 0 | HE76: 0 | HF76: 0 | HG76: 0 | HH76: 0 | HI76: 0 | HJ76: 0 | HK76: 0 | HL76: 0 | HM76: 0 | HN76: 0 | HO76: 0 | HP76: 0 | HQ76: 0 | HR76: 0 | HS76: 0 | HT76: 0 | HU76: 0 | HV76: 0 | HW76: 0 | HX76: 0 | HY76: 0 | HZ76: 0 | IA76: 0 | IB76: 0 | IC76: 0 | ID76: 0 | IE76: 0 | IF76: 0 | IG76: 0 | IH76: 0 | II76: 0 | IJ76: 0 | IK76: 0 | IL76: 0 | IM76: 0 | IN76: 0 | IO76: 0 | IP76: 0 | IQ76: 0 | IR76: 0 | IS76: 0 | IT76: 0 | IU76: 0 | IV76: 0 | IW76: 0 | IX76: 0 | IY76: 0 | IZ76: 0 | JA76: 0 | JB76: 0 | JC76: 0 | JD76: 0 | JE76: 0 | JF76: =JF66*$F$76 -> 0 | JG76: 0 | JH76: 0 | JI76: 0 | JJ76: 0 | JK76: 0 | JL76: 0 | JM76: 0 | JN76: 0 | JO76: 0 | JP76: 0 | JQ76: 0 | JR76: 0 | JS76: 0 | JT76: 0 | JU76: 0 | JV76: 0 | JW76: 0 | JX76: 0 | JY76: 0 | JZ76: 0 | KA76: 0 | KB76: 0 | KC76: 0 | KD76: 0 | KE76: 0 | KF76: 0 | KG76: 0 | KH76: 0 | KI76: 0 | KJ76: 0 | KK76: 0 | KL76: 0 | KM76: 0 | KN76: 0 | KO76: 0 | KP76: 0 | KQ76: 0 | KR76: 0 | KS76: 0 | KT76: 0 | KU76: 0 | KV76: 0 | KW76: 0 | KX76: 0 | KY76: 0 | KZ76: 0 | LA76: 0 | LB76: 0 | LC76: 0 | LD76: 0 | LE76: 0 | LF76: 0 | LG76: 0 | LH76: 0 | LI76: 0 | LJ76: 0 | LK76: 0 | LL76: 0 | LM76: 0 | LN76: 0 | LO76: 0 | LP76: 0 | LQ76: 0 | LR76: =LR66*$F$76 -> 0 | LS76: 0 | LT76: 0 | LU76: 0 | LV76: 0 | LW76: 0 | LX76: 0 | LY76: 0 | LZ76: 0 | MA76: 0 | MB76: 0 | MC76: 0 | MD76: 0 | ME76: 0 | MF76: 0 | MG76: 0 | MH76: 0 | MI76: 0 | MJ76: 0 | MK76: 0 | ML76: 0 | MM76: 0 | MN76: 0 | MO76: 0 | MP76: 0 | MQ76: 0 | MR76: 0 | MS76: 0 | MT76: 0 | MU76: 0 | MV76: 0 | MW76: 0 | MX76: 0 | MY76: 0 | MZ76: 0 | NA76: 0 | NB76: 0 | NC76: 0 | ND76: 0 | NE76: 0 | NF76: 0 | NG76: 0 | NH76: 0 | NI76: 0 | NJ76: 0 | NK76: 0 | NL76: 0 | NM76: 0 | NN76: 0 | NO76: 0 | NP76: 0 | NQ76: 0 | NR76: 0 | NS76: 0 | NT76: 0 | NU76: 0 | NV76: 0
C77: Water Cost | E77: USD/Litre | F77: =F35 -> 0 | G77: USD | J77: =J67*$F$77 -> 0 | K77: =K67*$F$77 -> 0 | L77: 0 | M77: 0 | N77: 0 | O77: 0 | P77: 0 | Q77: 0 | R77: 0 | S77: 0 | T77: 0 | U77: 0 | V77: 0 | W77: 0 | X77: 0 | Y77: 0 | Z77: 0 | AA77: 0 | AB77: 0 | AC77: 0 | AD77: 0 | AE77: 0 | AF77: 0 | AG77: 0 | AH77: 0 | AI77: 0 | AJ77: 0 | AK77: 0 | AL77: 0 | AM77: 0 | AN77: 0 | AO77: 0 | AP77: 0 | AQ77: 0 | AR77: 0 | AS77: 0 | AT77: 0 | AU77: 0 | AV77: 0 | AW77: 0 | AX77: 0 | AY77: 0 | AZ77: 0 | BA77: 0 | BB77: 0 | BC77: 0 | BD77: 0 | BE77: 0 | BF77: 0 | BG77: 0 | BH77: 0 | BI77: 0 | BJ77: 0 | BK77: 0 | BL77: 0 | BM77: 0 | BN77: 0 | BO77: 0 | BP77: 0 | BQ77: 0 | BR77: 0 | BS77: 0 | BT77: 0 | BU77: 0 | BV77: 0 | BW77: =BW67*$F$77 -> 0 | BX77: 0 | BY77: 0 | BZ77: 0 | CA77: 0 | CB77: 0 | CC77: 0 | CD77: 0 | CE77: 0 | CF77: 0 | CG77: 0 | CH77: 0 | CI77: 0 | CJ77: 0 | CK77: 0 | CL77: 0 | CM77: 0 | CN77: 0 | CO77: 0 | CP77: 0 | CQ77: 0 | CR77: 0 | CS77: 0 | CT77: 0 | CU77: 0 | CV77: 0 | CW77: 0 | CX77: 0 | CY77: 0 | CZ77: 0 | DA77: 0 | DB77: 0 | DC77: 0 | DD77: 0 | DE77: 0 | DF77: 0 | DG77: 0 | DH77: 0 | DI77: 0 | DJ77: 0 | DK77: 0 | DL77: 0 | DM77: 0 | DN77: 0 | DO77: 0 | DP77: 0 | DQ77: 0 | DR77: 0 | DS77: 0 | DT77: 0 | DU77: 0 | DV77: 0 | DW77: 0 | DX77: 0 | DY77: 0 | DZ77: 0 | EA77: 0 | EB77: 0 | EC77: 0 | ED77: 0 | EE77: 0 | EF77: 0 | EG77: 0 | EH77: 0 | EI77: =EI67*$F$77 -> 0 | EJ77: 0 | EK77: 0 | EL77: 0 | EM77: 0 | EN77: 0 | EO77: 0 | EP77: 0 | EQ77: 0 | ER77: 0 | ES77: 0 | ET77: 0 | EU77: 0 | EV77: 0 | EW77: 0 | EX77: 0 | EY77: 0 | EZ77: 0 | FA77: 0 | FB77: 0 | FC77: 0 | FD77: 0 | FE77: 0 | FF77: 0 | FG77: 0 | FH77: 0 | FI77: 0 | FJ77: 0 | FK77: 0 | FL77: 0 | FM77: 0 | FN77: 0 | FO77: 0 | FP77: 0 | FQ77: 0 | FR77: 0 | FS77: 0 | FT77: 0 | FU77: 0 | FV77: 0 | FW77: 0 | FX77: 0 | FY77: 0 | FZ77: 0 | GA77: 0 | GB77: 0 | GC77: 0 | GD77: 0 | GE77: 0 | GF77: 0 | GG77: 0 | GH77: 0 | GI77: 0 | GJ77: 0 | GK77: 0 | GL77: 0 | GM77: 0 | GN77: 0 | GO77: 0 | GP77: 0 | GQ77: 0 | GR77: 0 | GS77: 0 | GT77: 0 | GU77: =GU67*$F$77 -> 0 | GV77: 0 | GW77: 0 | GX77: 0 | GY77: 0 | GZ77: 0 | HA77: 0 | HB77: 0 | HC77: 0 | HD77: 0 | HE77: 0 | HF77: 0 | HG77: 0 | HH77: 0 | HI77: 0 | HJ77: 0 | HK77: 0 | HL77: 0 | HM77: 0 | HN77: 0 | HO77: 0 | HP77: 0 | HQ77: 0 | HR77: 0 | HS77: 0 | HT77: 0 | HU77: 0 | HV77: 0 | HW77: 0 | HX77: 0 | HY77: 0 | HZ77: 0 | IA77: 0 | IB77: 0 | IC77: 0 | ID77: 0 | IE77: 0 | IF77: 0 | IG77: 0 | IH77: 0 | II77: 0 | IJ77: 0 | IK77: 0 | IL77: 0 | IM77: 0 | IN77: 0 | IO77: 0 | IP77: 0 | IQ77: 0 | IR77: 0 | IS77: 0 | IT77: 0 | IU77: 0 | IV77: 0 | IW77: 0 | IX77: 0 | IY77: 0 | IZ77: 0 | JA77: 0 | JB77: 0 | JC77: 0 | JD77: 0 | JE77: 0 | JF77: 0 | JG77: =JG67*$F$77 -> 0 | JH77: 0 | JI77: 0 | JJ77: 0 | JK77: 0 | JL77: 0 | JM77: 0 | JN77: 0 | JO77: 0 | JP77: 0 | JQ77: 0 | JR77: 0 | JS77: 0 | JT77: 0 | JU77: 0 | JV77: 0 | JW77: 0 | JX77: 0 | JY77: 0 | JZ77: 0 | KA77: 0 | KB77: 0 | KC77: 0 | KD77: 0 | KE77: 0 | KF77: 0 | KG77: 0 | KH77: 0 | KI77: 0 | KJ77: 0 | KK77: 0 | KL77: 0 | KM77: 0 | KN77: 0 | KO77: 0 | KP77: 0 | KQ77: 0 | KR77: 0 | KS77: 0 | KT77: 0 | KU77: 0 | KV77: 0 | KW77: 0 | KX77: 0 | KY77: 0 | KZ77: 0 | LA77: 0 | LB77: 0 | LC77: 0 | LD77: 0 | LE77: 0 | LF77: 0 | LG77: 0 | LH77: 0 | LI77: 0 | LJ77: 0 | LK77: 0 | LL77: 0 | LM77: 0 | LN77: 0 | LO77: 0 | LP77: 0 | LQ77: 0 | LR77: 0 | LS77: =LS67*$F$77 -> 0 | LT77: 0 | LU77: 0 | LV77: 0 | LW77: 0 | LX77: 0 | LY77: 0 | LZ77: 0 | MA77: 0 | MB77: 0 | MC77: 0 | MD77: 0 | ME77: 0 | MF77: 0 | MG77: 0 | MH77: 0 | MI77: 0 | MJ77: 0 | MK77: 0 | ML77: 0 | MM77: 0 | MN77: 0 | MO77: 0 | MP77: 0 | MQ77: 0 | MR77: 0 | MS77: 0 | MT77: 0 | MU77: 0 | MV77: 0 | MW77: 0 | MX77: 0 | MY77: 0 | MZ77: 0 | NA77: 0 | NB77: 0 | NC77: 0 | ND77: 0 | NE77: 0 | NF77: 0 | NG77: 0 | NH77: 0 | NI77: 0 | NJ77: 0 | NK77: 0 | NL77: 0 | NM77: 0 | NN77: 0 | NO77: 0 | NP77: 0 | NQ77: 0 | NR77: 0 | NS77: 0 | NT77: 0 | NU77: 0 | NV77: 0
C78: Other Operating Cost | E78: USD/Month | F78: =F49 -> 2922000 | G78: USD | J78: =$F$78*J6 -> 0 | K78: 2922000 | L78: 2922000 | M78: 2922000 | N78: 2922000 | O78: 2922000 | P78: 2922000 | Q78: 2922000 | R78: 2922000 | S78: 2922000 | T78: 2922000 | U78: 2922000 | V78: 2922000 | W78: 2922000 | X78: 2922000 | Y78: 2922000 | Z78: 2922000 | AA78: 2922000 | AB78: 2922000 | AC78: 2922000 | AD78: 2922000 | AE78: 2922000 | AF78: 2922000 | AG78: 2922000 | AH78: 2922000 | AI78: 2922000 | AJ78: 0 | AK78: 0 | AL78: 0 | AM78: 0 | AN78: 0 | AO78: 0 | AP78: 0 | AQ78: 0 | AR78: 0 | AS78: 0 | AT78: 0 | AU78: 0 | AV78: 0 | AW78: 0 | AX78: 0 | AY78: 0 | AZ78: 0 | BA78: 0 | BB78: 0 | BC78: 0 | BD78: 0 | BE78: 0 | BF78: 0 | BG78: 0 | BH78: 0 | BI78: 0 | BJ78: 0 | BK78: 0 | BL78: 0 | BM78: 0 | BN78: 0 | BO78: 0 | BP78: 0 | BQ78: 0 | BR78: 0 | BS78: 0 | BT78: 0 | BU78: 0 | BV78: =$F$78*BV6 -> 0 | BW78: 0 | BX78: 0 | BY78: 0 | BZ78: 0 | CA78: 0 | CB78: 0 | CC78: 0 | CD78: 0 | CE78: 0 | CF78: 0 | CG78: 0 | CH78: 0 | CI78: 0 | CJ78: 0 | CK78: 0 | CL78: 0 | CM78: 0 | CN78: 0 | CO78: 0 | CP78: 0 | CQ78: 0 | CR78: 0 | CS78: 0 | CT78: 0 | CU78: 0 | CV78: 0 | CW78: 0 | CX78: 0 | CY78: 0 | CZ78: 0 | DA78: 0 | DB78: 0 | DC78: 0 | DD78: 0 | DE78: 0 | DF78: 0 | DG78: 0 | DH78: 0 | DI78: 0 | DJ78: 0 | DK78: 0 | DL78: 0 | DM78: 0 | DN78: 0 | DO78: 0 | DP78: 0 | DQ78: 0 | DR78: 0 | DS78: 0 | DT78: 0 | DU78: 0 | DV78: 0 | DW78: 0 | DX78: 0 | DY78: 0 | DZ78: 0 | EA78: 0 | EB78: 0 | EC78: 0 | ED78: 0 | EE78: 0 | EF78: 0 | EG78: 0 | EH78: =$F$78*EH6 -> 0 | EI78: 0 | EJ78: 0 | EK78: 0 | EL78: 0 | EM78: 0 | EN78: 0 | EO78: 0 | EP78: 0 | EQ78: 0 | ER78: 0 | ES78: 0 | ET78: 0 | EU78: 0 | EV78: 0 | EW78: 0 | EX78: 0 | EY78: 0 | EZ78: 0 | FA78: 0 | FB78: 0 | FC78: 0 | FD78: 0 | FE78: 0 | FF78: 0 | FG78: 0 | FH78: 0 | FI78: 0 | FJ78: 0 | FK78: 0 | FL78: 0 | FM78: 0 | FN78: 0 | FO78: 0 | FP78: 0 | FQ78: 0 | FR78: 0 | FS78: 0 | FT78: 0 | FU78: 0 | FV78: 0 | FW78: 0 | FX78: 0 | FY78: 0 | FZ78: 0 | GA78: 0 | GB78: 0 | GC78: 0 | GD78: 0 | GE78: 0 | GF78: 0 | GG78: 0 | GH78: 0 | GI78: 0 | GJ78: 0 | GK78: 0 | GL78: 0 | GM78: 0 | GN78: 0 | GO78: 0 | GP78: 0 | GQ78: 0 | GR78: 0 | GS78: 0 | GT78: =$F$78*GT6 -> 0 | GU78: 0 | GV78: 0 | GW78: 0 | GX78: 0 | GY78: 0 | GZ78: 0 | HA78: 0 | HB78: 0 | HC78: 0 | HD78: 0 | HE78: 0 | HF78: 0 | HG78: 0 | HH78: 0 | HI78: 0 | HJ78: 0 | HK78: 0 | HL78: 0 | HM78: 0 | HN78: 0 | HO78: 0 | HP78: 0 | HQ78: 0 | HR78: 0 | HS78: 0 | HT78: 0 | HU78: 0 | HV78: 0 | HW78: 0 | HX78: 0 | HY78: 0 | HZ78: 0 | IA78: 0 | IB78: 0 | IC78: 0 | ID78: 0 | IE78: 0 | IF78: 0 | IG78: 0 | IH78: 0 | II78: 0 | IJ78: 0 | IK78: 0 | IL78: 0 | IM78: 0 | IN78: 0 | IO78: 0 | IP78: 0 | IQ78: 0 | IR78: 0 | IS78: 0 | IT78: 0 | IU78: 0 | IV78: 0 | IW78: 0 | IX78: 0 | IY78: 0 | IZ78: 0 | JA78: 0 | JB78: 0 | JC78: 0 | JD78: 0 | JE78: 0 | JF78: =$F$78*JF6 -> 0 | JG78: 0 | JH78: 0 | JI78: 0 | JJ78: 0 | JK78: 0 | JL78: 0 | JM78: 0 | JN78: 0 | JO78: 0 | JP78: 0 | JQ78: 0 | JR78: 0 | JS78: 0 | JT78: 0 | JU78: 0 | JV78: 0 | JW78: 0 | JX78: 0 | JY78: 0 | JZ78: 0 | KA78: 0 | KB78: 0 | KC78: 0 | KD78: 0 | KE78: 0 | KF78: 0 | KG78: 0 | KH78: 0 | KI78: 0 | KJ78: 0 | KK78: 0 | KL78: 0 | KM78: 0 | KN78: 0 | KO78: 0 | KP78: 0 | KQ78: 0 | KR78: 0 | KS78: 0 | KT78: 0 | KU78: 0 | KV78: 0 | KW78: 0 | KX78: 0 | KY78: 0 | KZ78: 0 | LA78: 0 | LB78: 0 | LC78: 0 | LD78: 0 | LE78: 0 | LF78: 0 | LG78: 0 | LH78: 0 | LI78: 0 | LJ78: 0 | LK78: 0 | LL78: 0 | LM78: 0 | LN78: 0 | LO78: 0 | LP78: 0 | LQ78: 0 | LR78: =$F$78*LR6 -> 0 | LS78: 0 | LT78: 0 | LU78: 0 | LV78: 0 | LW78: 0 | LX78: 0 | LY78: 0 | LZ78: 0 | MA78: 0 | MB78: 0 | MC78: 0 | MD78: 0 | ME78: 0 | MF78: 0 | MG78: 0 | MH78: 0 | MI78: 0 | MJ78: 0 | MK78: 0 | ML78: 0 | MM78: 0 | MN78: 0 | MO78: 0 | MP78: 0 | MQ78: 0 | MR78: 0 | MS78: 0 | MT78: 0 | MU78: 0 | MV78: 0 | MW78: 0 | MX78: 0 | MY78: 0 | MZ78: 0 | NA78: 0 | NB78: 0 | NC78: 0 | ND78: 0 | NE78: 0 | NF78: 0 | NG78: 0 | NH78: 0 | NI78: 0 | NJ78: 0 | NK78: 0 | NL78: 0 | NM78: 0 | NN78: 0 | NO78: 0 | NP78: 0 | NQ78: 0 | NR78: 0 | NS78: 0 | NT78: 0 | NU78: 0 | NV78: 0
D79: Total Operating Cost | G79: USD | J79: =SUM(J73:J78) -> 0 | K79: =SUM(K73:K78) -> 150582963.3 | L79: 150179518 | M79: 150179518 | N79: 150179518 | O79: 150582963.3 | P79: 150179518 | Q79: 150179518 | R79: 150179518 | S79: 150582963.3 | T79: 150179518 | U79: 150179518 | V79: 150179518 | W79: 150582963.3 | X79: 150179518 | Y79: 150179518 | Z79: 150179518 | AA79: 150582963.3 | AB79: 150179518 | AC79: 150179518 | AD79: 150179518 | AE79: 150582963.3 | AF79: 150179518 | AG79: 150179518 | AH79: 150179518 | AI79: 150582963.3 | AJ79: 0 | AK79: 0 | AL79: 0 | AM79: 0 | AN79: 0 | AO79: 0 | AP79: 0 | AQ79: 0 | AR79: 0 | AS79: 0 | AT79: 0 | AU79: 0 | AV79: 0 | AW79: 0 | AX79: 0 | AY79: 0 | AZ79: 0 | BA79: 0 | BB79: 0 | BC79: 0 | BD79: 0 | BE79: 0 | BF79: 0 | BG79: 0 | BH79: 0 | BI79: 0 | BJ79: 0 | BK79: 0 | BL79: 0 | BM79: 0 | BN79: 0 | BO79: 0 | BP79: 0 | BQ79: 0 | BR79: 0 | BS79: 0 | BT79: 0 | BU79: 0 | BV79: 0 | BW79: =SUM(BW73:BW78) -> 0 | BX79: 0 | BY79: 0 | BZ79: 0 | CA79: 0 | CB79: 0 | CC79: 0 | CD79: 0 | CE79: 0 | CF79: 0 | CG79: 0 | CH79: 0 | CI79: 0 | CJ79: 0 | CK79: 0 | CL79: 0 | CM79: 0 | CN79: 0 | CO79: 0 | CP79: 0 | CQ79: 0 | CR79: 0 | CS79: 0 | CT79: 0 | CU79: 0 | CV79: 0 | CW79: 0 | CX79: 0 | CY79: 0 | CZ79: 0 | DA79: 0 | DB79: 0 | DC79: 0 | DD79: 0 | DE79: 0 | DF79: 0 | DG79: 0 | DH79: 0 | DI79: 0 | DJ79: 0 | DK79: 0 | DL79: 0 | DM79: 0 | DN79: 0 | DO79: 0 | DP79: 0 | DQ79: 0 | DR79: 0 | DS79: 0 | DT79: 0 | DU79: 0 | DV79: 0 | DW79: 0 | DX79: 0 | DY79: 0 | DZ79: 0 | EA79: 0 | EB79: 0 | EC79: 0 | ED79: 0 | EE79: 0 | EF79: 0 | EG79: 0 | EH79: 0 | EI79: =SUM(EI73:EI78) -> 0 | EJ79: 0 | EK79: 0 | EL79: 0 | EM79: 0 | EN79: 0 | EO79: 0 | EP79: 0 | EQ79: 0 | ER79: 0 | ES79: 0 | ET79: 0 | EU79: 0 | EV79: 0 | EW79: 0 | EX79: 0 | EY79: 0 | EZ79: 0 | FA79: 0 | FB79: 0 | FC79: 0 | FD79: 0 | FE79: 0 | FF79: 0 | FG79: 0 | FH79: 0 | FI79: 0 | FJ79: 0 | FK79: 0 | FL79: 0 | FM79: 0 | FN79: 0 | FO79: 0 | FP79: 0 | FQ79: 0 | FR79: 0 | FS79: 0 | FT79: 0 | FU79: 0 | FV79: 0 | FW79: 0 | FX79: 0 | FY79: 0 | FZ79: 0 | GA79: 0 | GB79: 0 | GC79: 0 | GD79: 0 | GE79: 0 | GF79: 0 | GG79: 0 | GH79: 0 | GI79: 0 | GJ79: 0 | GK79: 0 | GL79: 0 | GM79: 0 | GN79: 0 | GO79: 0 | GP79: 0 | GQ79: 0 | GR79: 0 | GS79: 0 | GT79: 0 | GU79: =SUM(GU73:GU78) -> 0 | GV79: 0 | GW79: 0 | GX79: 0 | GY79: 0 | GZ79: 0 | HA79: 0 | HB79: 0 | HC79: 0 | HD79: 0 | HE79: 0 | HF79: 0 | HG79: 0 | HH79: 0 | HI79: 0 | HJ79: 0 | HK79: 0 | HL79: 0 | HM79: 0 | HN79: 0 | HO79: 0 | HP79: 0 | HQ79: 0 | HR79: 0 | HS79: 0 | HT79: 0 | HU79: 0 | HV79: 0 | HW79: 0 | HX79: 0 | HY79: 0 | HZ79: 0 | IA79: 0 | IB79: 0 | IC79: 0 | ID79: 0 | IE79: 0 | IF79: 0 | IG79: 0 | IH79: 0 | II79: 0 | IJ79: 0 | IK79: 0 | IL79: 0 | IM79: 0 | IN79: 0 | IO79: 0 | IP79: 0 | IQ79: 0 | IR79: 0 | IS79: 0 | IT79: 0 | IU79: 0 | IV79: 0 | IW79: 0 | IX79: 0 | IY79: 0 | IZ79: 0 | JA79: 0 | JB79: 0 | JC79: 0 | JD79: 0 | JE79: 0 | JF79: 0 | JG79: =SUM(JG73:JG78) -> 0 | JH79: 0 | JI79: 0 | JJ79: 0 | JK79: 0 | JL79: 0 | JM79: 0 | JN79: 0 | JO79: 0 | JP79: 0 | JQ79: 0 | JR79: 0 | JS79: 0 | JT79: 0 | JU79: 0 | JV79: 0 | JW79: 0 | JX79: 0 | JY79: 0 | JZ79: 0 | KA79: 0 | KB79: 0 | KC79: 0 | KD79: 0 | KE79: 0 | KF79: 0 | KG79: 0 | KH79: 0 | KI79: 0 | KJ79: 0 | KK79: 0 | KL79: 0 | KM79: 0 | KN79: 0 | KO79: 0 | KP79: 0 | KQ79: 0 | KR79: 0 | KS79: 0 | KT79: 0 | KU79: 0 | KV79: 0 | KW79: 0 | KX79: 0 | KY79: 0 | KZ79: 0 | LA79: 0 | LB79: 0 | LC79: 0 | LD79: 0 | LE79: 0 | LF79: 0 | LG79: 0 | LH79: 0 | LI79: 0 | LJ79: 0 | LK79: 0 | LL79: 0 | LM79: 0 | LN79: 0 | LO79: 0 | LP79: 0 | LQ79: 0 | LR79: 0 | LS79: =SUM(LS73:LS78) -> 0 | LT79: 0 | LU79: 0 | LV79: 0 | LW79: 0 | LX79: 0 | LY79: 0 | LZ79: 0 | MA79: 0 | MB79: 0 | MC79: 0 | MD79: 0 | ME79: 0 | MF79: 0 | MG79: 0 | MH79: 0 | MI79: 0 | MJ79: 0 | MK79: 0 | ML79: 0 | MM79: 0 | MN79: 0 | MO79: 0 | MP79: 0 | MQ79: 0 | MR79: 0 | MS79: 0 | MT79: 0 | MU79: 0 | MV79: 0 | MW79: 0 | MX79: 0 | MY79: 0 | MZ79: 0 | NA79: 0 | NB79: 0 | NC79: 0 | ND79: 0 | NE79: 0 | NF79: 0 | NG79: 0 | NH79: 0 | NI79: 0 | NJ79: 0 | NK79: 0 | NL79: 0 | NM79: 0 | NN79: 0 | NO79: 0 | NP79: 0 | NQ79: 0 | NR79: 0 | NS79: 0 | NT79: 0 | NU79: 0 | NV79: 0
D81: EBITDA | J81: =J71-J79 -> 0 | K81: =K71-K79 -> -18224533.15 | L81: -18182722.96 | M81: -18182722.96 | N81: -18182722.96 | O81: -18224533.15 | P81: -18182722.96 | Q81: -18182722.96 | R81: -18182722.96 | S81: -18224533.15 | T81: -18182722.96 | U81: -18182722.96 | V81: -18182722.96 | W81: -18224533.15 | X81: -18182722.96 | Y81: -18182722.96 | Z81: -18182722.96 | AA81: -18224533.15 | AB81: -18182722.96 | AC81: -18182722.96 | AD81: -18182722.96 | AE81: -18224533.15 | AF81: -18182722.96 | AG81: -18182722.96 | AH81: -18182722.96 | AI81: -18224533.15 | AJ81: 0 | AK81: 0 | AL81: 0 | AM81: 0 | AN81: 0 | AO81: 0 | AP81: 0 | AQ81: 0 | AR81: 0 | AS81: 0 | AT81: 0 | AU81: 0 | AV81: 0 | AW81: 0 | AX81: 0 | AY81: 0 | AZ81: 0 | BA81: 0 | BB81: 0 | BC81: 0 | BD81: 0 | BE81: 0 | BF81: 0 | BG81: 0 | BH81: 0 | BI81: 0 | BJ81: 0 | BK81: 0 | BL81: 0 | BM81: 0 | BN81: 0 | BO81: 0 | BP81: 0 | BQ81: 0 | BR81: 0 | BS81: 0 | BT81: 0 | BU81: 0 | BV81: 0 | BW81: =BW71-BW79 -> 0 | BX81: 0 | BY81: 0 | BZ81: 0 | CA81: 0 | CB81: 0 | CC81: 0 | CD81: 0 | CE81: 0 | CF81: 0 | CG81: 0 | CH81: 0 | CI81: 0 | CJ81: 0 | CK81: 0 | CL81: 0 | CM81: 0 | CN81: 0 | CO81: 0 | CP81: 0 | CQ81: 0 | CR81: 0 | CS81: 0 | CT81: 0 | CU81: 0 | CV81: 0 | CW81: 0 | CX81: 0 | CY81: 0 | CZ81: 0 | DA81: 0 | DB81: 0 | DC81: 0 | DD81: 0 | DE81: 0 | DF81: 0 | DG81: 0 | DH81: 0 | DI81: 0 | DJ81: 0 | DK81: 0 | DL81: 0 | DM81: 0 | DN81: 0 | DO81: 0 | DP81: 0 | DQ81: 0 | DR81: 0 | DS81: 0 | DT81: 0 | DU81: 0 | DV81: 0 | DW81: 0 | DX81: 0 | DY81: 0 | DZ81: 0 | EA81: 0 | EB81: 0 | EC81: 0 | ED81: 0 | EE81: 0 | EF81: 0 | EG81: 0 | EH81: 0 | EI81: =EI71-EI79 -> 0 | EJ81: 0 | EK81: 0 | EL81: 0 | EM81: 0 | EN81: 0 | EO81: 0 | EP81: 0 | EQ81: 0 | ER81: 0 | ES81: 0 | ET81: 0 | EU81: 0 | EV81: 0 | EW81: 0 | EX81: 0 | EY81: 0 | EZ81: 0 | FA81: 0 | FB81: 0 | FC81: 0 | FD81: 0 | FE81: 0 | FF81: 0 | FG81: 0 | FH81: 0 | FI81: 0 | FJ81: 0 | FK81: 0 | FL81: 0 | FM81: 0 | FN81: 0 | FO81: 0 | FP81: 0 | FQ81: 0 | FR81: 0 | FS81: 0 | FT81: 0 | FU81: 0 | FV81: 0 | FW81: 0 | FX81: 0 | FY81: 0 | FZ81: 0 | GA81: 0 | GB81: 0 | GC81: 0 | GD81: 0 | GE81: 0 | GF81: 0 | GG81: 0 | GH81: 0 | GI81: 0 | GJ81: 0 | GK81: 0 | GL81: 0 | GM81: 0 | GN81: 0 | GO81: 0 | GP81: 0 | GQ81: 0 | GR81: 0 | GS81: 0 | GT81: 0 | GU81: =GU71-GU79 -> 0 | GV81: 0 | GW81: 0 | GX81: 0 | GY81: 0 | GZ81: 0 | HA81: 0 | HB81: 0 | HC81: 0 | HD81: 0 | HE81: 0 | HF81: 0 | HG81: 0 | HH81: 0 | HI81: 0 | HJ81: 0 | HK81: 0 | HL81: 0 | HM81: 0 | HN81: 0 | HO81: 0 | HP81: 0 | HQ81: 0 | HR81: 0 | HS81: 0 | HT81: 0 | HU81: 0 | HV81: 0 | HW81: 0 | HX81: 0 | HY81: 0 | HZ81: 0 | IA81: 0 | IB81: 0 | IC81: 0 | ID81: 0 | IE81: 0 | IF81: 0 | IG81: 0 | IH81: 0 | II81: 0 | IJ81: 0 | IK81: 0 | IL81: 0 | IM81: 0 | IN81: 0 | IO81: 0 | IP81: 0 | IQ81: 0 | IR81: 0 | IS81: 0 | IT81: 0 | IU81: 0 | IV81: 0 | IW81: 0 | IX81: 0 | IY81: 0 | IZ81: 0 | JA81: 0 | JB81: 0 | JC81: 0 | JD81: 0 | JE81: 0 | JF81: 0 | JG81: =JG71-JG79 -> 0 | JH81: 0 | JI81: 0 | JJ81: 0 | JK81: 0 | JL81: 0 | JM81: 0 | JN81: 0 | JO81: 0 | JP81: 0 | JQ81: 0 | JR81: 0 | JS81: 0 | JT81: 0 | JU81: 0 | JV81: 0 | JW81: 0 | JX81: 0 | JY81: 0 | JZ81: 0 | KA81: 0 | KB81: 0 | KC81: 0 | KD81: 0 | KE81: 0 | KF81: 0 | KG81: 0 | KH81: 0 | KI81: 0 | KJ81: 0 | KK81: 0 | KL81: 0 | KM81: 0 | KN81: 0 | KO81: 0 | KP81: 0 | KQ81: 0 | KR81: 0 | KS81: 0 | KT81: 0 | KU81: 0 | KV81: 0 | KW81: 0 | KX81: 0 | KY81: 0 | KZ81: 0 | LA81: 0 | LB81: 0 | LC81: 0 | LD81: 0 | LE81: 0 | LF81: 0 | LG81: 0 | LH81: 0 | LI81: 0 | LJ81: 0 | LK81: 0 | LL81: 0 | LM81: 0 | LN81: 0 | LO81: 0 | LP81: 0 | LQ81: 0 | LR81: 0 | LS81: =LS71-LS79 -> 0 | LT81: 0 | LU81: 0 | LV81: 0 | LW81: 0 | LX81: 0 | LY81: 0 | LZ81: 0 | MA81: 0 | MB81: 0 | MC81: 0 | MD81: 0 | ME81: 0 | MF81: 0 | MG81: 0 | MH81: 0 | MI81: 0 | MJ81: 0 | MK81: 0 | ML81: 0 | MM81: 0 | MN81: 0 | MO81: 0 | MP81: 0 | MQ81: 0 | MR81: 0 | MS81: 0 | MT81: 0 | MU81: 0 | MV81: 0 | MW81: 0 | MX81: 0 | MY81: 0 | MZ81: 0 | NA81: 0 | NB81: 0 | NC81: 0 | ND81: 0 | NE81: 0 | NF81: 0 | NG81: 0 | NH81: 0 | NI81: 0 | NJ81: 0 | NK81: 0 | NL81: 0 | NM81: 0 | NN81: 0 | NO81: 0 | NP81: 0 | NQ81: 0 | NR81: 0 | NS81: 0 | NT81: 0 | NU81: 0 | NV81: 0
B83: Cap Exp
C84: Initial Total Cost | E84: USD | F84: =F46 -> 194800000 | J84: =$F$84 -> 194800000 | K84: =$F$84 -> 194800000 | L84: 194800000 | M84: 194800000 | N84: 194800000 | O84: 194800000 | P84: 194800000 | Q84: 194800000 | R84: 194800000 | S84: 194800000 | T84: 194800000 | U84: 194800000 | V84: 194800000 | W84: 194800000 | X84: 194800000 | Y84: 194800000 | Z84: 194800000 | AA84: 194800000 | AB84: 194800000 | AC84: 194800000 | AD84: 194800000 | AE84: 194800000 | AF84: 194800000 | AG84: 194800000 | AH84: 194800000 | AI84: 194800000 | AJ84: 194800000 | AK84: 194800000 | AL84: 194800000 | AM84: 194800000 | AN84: 194800000 | AO84: 194800000 | AP84: 194800000 | AQ84: 194800000 | AR84: 194800000 | AS84: 194800000 | AT84: 194800000 | AU84: 194800000 | AV84: 194800000 | AW84: 194800000 | AX84: 194800000 | AY84: 194800000 | AZ84: 194800000 | BA84: 194800000 | BB84: 194800000 | BC84: 194800000 | BD84: 194800000 | BE84: 194800000 | BF84: 194800000 | BG84: 194800000 | BH84: 194800000 | BI84: 194800000 | BJ84: 194800000 | BK84: 194800000 | BL84: 194800000 | BM84: 194800000 | BN84: 194800000 | BO84: 194800000 | BP84: 194800000 | BQ84: 194800000 | BR84: 194800000 | BS84: 194800000 | BT84: 194800000 | BU84: 194800000 | BV84: 194800000 | BW84: =$F$84 -> 194800000 | BX84: 194800000 | BY84: 194800000 | BZ84: 194800000 | CA84: 194800000 | CB84: 194800000 | CC84: 194800000 | CD84: 194800000 | CE84: 194800000 | CF84: 194800000 | CG84: 194800000 | CH84: 194800000 | CI84: 194800000 | CJ84: 194800000 | CK84: 194800000 | CL84: 194800000 | CM84: 194800000 | CN84: 194800000 | CO84: 194800000 | CP84: 194800000 | CQ84: 194800000 | CR84: 194800000 | CS84: 194800000 | CT84: 194800000 | CU84: 194800000 | CV84: 194800000 | CW84: 194800000 | CX84: 194800000 | CY84: 194800000 | CZ84: 194800000 | DA84: 194800000 | DB84: 194800000 | DC84: 194800000 | DD84: 194800000 | DE84: 194800000 | DF84: 194800000 | DG84: 194800000 | DH84: 194800000 | DI84: 194800000 | DJ84: 194800000 | DK84: 194800000 | DL84: 194800000 | DM84: 194800000 | DN84: 194800000 | DO84: 194800000 | DP84: 194800000 | DQ84: 194800000 | DR84: 194800000 | DS84: 194800000 | DT84: 194800000 | DU84: 194800000 | DV84: 194800000 | DW84: 194800000 | DX84: 194800000 | DY84: 194800000 | DZ84: 194800000 | EA84: 194800000 | EB84: 194800000 | EC84: 194800000 | ED84: 194800000 | EE84: 194800000 | EF84: 194800000 | EG84: 194800000 | EH84: 194800000 | EI84: =$F$84 -> 194800000 | EJ84: 194800000 | EK84: 194800000 | EL84: 194800000 | EM84: 194800000 | EN84: 194800000 | EO84: 194800000 | EP84: 194800000 | EQ84: 194800000 | ER84: 194800000 | ES84: 194800000 | ET84: 194800000 | EU84: 194800000 | EV84: 194800000 | EW84: 194800000 | EX84: 194800000 | EY84: 194800000 | EZ84: 194800000 | FA84: 194800000 | FB84: 194800000 | FC84: 194800000 | FD84: 194800000 | FE84: 194800000 | FF84: 194800000 | FG84: 194800000 | FH84: 194800000 | FI84: 194800000 | FJ84: 194800000 | FK84: 194800000 | FL84: 194800000 | FM84: 194800000 | FN84: 194800000 | FO84: 194800000 | FP84: 194800000 | FQ84: 194800000 | FR84: 194800000 | FS84: 194800000 | FT84: 194800000 | FU84: 194800000 | FV84: 194800000 | FW84: 194800000 | FX84: 194800000 | FY84: 194800000 | FZ84: 194800000 | GA84: 194800000 | GB84: 194800000 | GC84: 194800000 | GD84: 194800000 | GE84: 194800000 | GF84: 194800000 | GG84: 194800000 | GH84: 194800000 | GI84: 194800000 | GJ84: 194800000 | GK84: 194800000 | GL84: 194800000 | GM84: 194800000 | GN84: 194800000 | GO84: 194800000 | GP84: 194800000 | GQ84: 194800000 | GR84: 194800000 | GS84: 194800000 | GT84: 194800000 | GU84: =$F$84 -> 194800000 | GV84: 194800000 | GW84: 194800000 | GX84: 194800000 | GY84: 194800000 | GZ84: 194800000 | HA84: 194800000 | HB84: 194800000 | HC84: 194800000 | HD84: 194800000 | HE84: 194800000 | HF84: 194800000 | HG84: 194800000 | HH84: 194800000 | HI84: 194800000 | HJ84: 194800000 | HK84: 194800000 | HL84: 194800000 | HM84: 194800000 | HN84: 194800000 | HO84: 194800000 | HP84: 194800000 | HQ84: 194800000 | HR84: 194800000 | HS84: 194800000 | HT84: 194800000 | HU84: 194800000 | HV84: 194800000 | HW84: 194800000 | HX84: 194800000 | HY84: 194800000 | HZ84: 194800000 | IA84: 194800000 | IB84: 194800000 | IC84: 194800000 | ID84: 194800000 | IE84: 194800000 | IF84: 194800000 | IG84: 194800000 | IH84: 194800000 | II84: 194800000 | IJ84: 194800000 | IK84: 194800000 | IL84: 194800000 | IM84: 194800000 | IN84: 194800000 | IO84: 194800000 | IP84: 194800000 | IQ84: 194800000 | IR84: 194800000 | IS84: 194800000 | IT84: 194800000 | IU84: 194800000 | IV84: 194800000 | IW84: 194800000 | IX84: 194800000 | IY84: 194800000 | IZ84: 194800000 | JA84: 194800000 | JB84: 194800000 | JC84: 194800000 | JD84: 194800000 | JE84: 194800000 | JF84: 194800000 | JG84: =$F$84 -> 194800000 | JH84: 194800000 | JI84: 194800000 | JJ84: 194800000 | JK84: 194800000 | JL84: 194800000 | JM84: 194800000 | JN84: 194800000 | JO84: 194800000 | JP84: 194800000 | JQ84: 194800000 | JR84: 194800000 | JS84: 194800000 | JT84: 194800000 | JU84: 194800000 | JV84: 194800000 | JW84: 194800000 | JX84: 194800000 | JY84: 194800000 | JZ84: 194800000 | KA84: 194800000 | KB84: 194800000 | KC84: 194800000 | KD84: 194800000 | KE84: 194800000 | KF84: 194800000 | KG84: 194800000 | KH84: 194800000 | KI84: 194800000 | KJ84: 194800000 | KK84: 194800000 | KL84: 194800000 | KM84: 194800000 | KN84: 194800000 | KO84: 194800000 | KP84: 194800000 | KQ84: 194800000 | KR84: 194800000 | KS84: 194800000 | KT84: 194800000 | KU84: 194800000 | KV84: 194800000 | KW84: 194800000 | KX84: 194800000 | KY84: 194800000 | KZ84: 194800000 | LA84: 194800000 | LB84: 194800000 | LC84: 194800000 | LD84: 194800000 | LE84: 194800000 | LF84: 194800000 | LG84: 194800000 | LH84: 194800000 | LI84: 194800000 | LJ84: 194800000 | LK84: 194800000 | LL84: 194800000 | LM84: 194800000 | LN84: 194800000 | LO84: 194800000 | LP84: 194800000 | LQ84: 194800000 | LR84: 194800000 | LS84: =$F$84 -> 194800000 | LT84: 194800000 | LU84: 194800000 | LV84: 194800000 | LW84: 194800000 | LX84: 194800000 | LY84: 194800000 | LZ84: 194800000 | MA84: 194800000 | MB84: 194800000 | MC84: 194800000 | MD84: 194800000 | ME84: 194800000 | MF84: 194800000 | MG84: 194800000 | MH84: 194800000 | MI84: 194800000 | MJ84: 194800000 | MK84: 194800000 | ML84: 194800000 | MM84: 194800000 | MN84: 194800000 | MO84: 194800000 | MP84: 194800000 | MQ84: 194800000 | MR84: 194800000 | MS84: 194800000 | MT84: 194800000 | MU84: 194800000 | MV84: 194800000 | MW84: 194800000 | MX84: 194800000 | MY84: 194800000 | MZ84: 194800000 | NA84: 194800000 | NB84: 194800000 | NC84: 194800000 | ND84: 194800000 | NE84: 194800000 | NF84: 194800000 | NG84: 194800000 | NH84: 194800000 | NI84: 194800000 | NJ84: 194800000 | NK84: 194800000 | NL84: 194800000 | NM84: 194800000 | NN84: 194800000 | NO84: 194800000 | NP84: 194800000 | NQ84: 194800000 | NR84: 194800000 | NS84: 194800000 | NT84: 194800000 | NU84: 194800000 | NV84: 194800000
C85: S-Curve | E85: % | F85: =COUNTIF(J5:NV5,TRUE) -> 1 | J85: =1/$F$85*J5 -> 1 | K85: 0 | L85: 0 | M85: 0 | N85: 0 | O85: 0 | P85: 0 | Q85: 0 | R85: 0 | S85: 0 | T85: 0 | U85: 0 | V85: 0 | W85: 0 | X85: 0 | Y85: 0 | Z85: 0 | AA85: 0 | AB85: 0 | AC85: 0 | AD85: 0 | AE85: 0 | AF85: 0 | AG85: 0 | AH85: 0 | AI85: 0 | AJ85: 0 | AK85: 0 | AL85: 0 | AM85: 0 | AN85: 0 | AO85: 0 | AP85: 0 | AQ85: 0 | AR85: 0 | AS85: 0 | AT85: 0 | AU85: 0 | AV85: 0 | AW85: 0 | AX85: 0 | AY85: 0 | AZ85: 0 | BA85: 0 | BB85: 0 | BC85: 0 | BD85: 0 | BE85: 0 | BF85: 0 | BG85: 0 | BH85: 0 | BI85: 0 | BJ85: 0 | BK85: 0 | BL85: 0 | BM85: 0 | BN85: 0 | BO85: 0 | BP85: 0 | BQ85: 0 | BR85: 0 | BS85: 0 | BT85: 0 | BU85: 0 | BV85: =1/$F$85*BV5 -> 0 | BW85: 0 | BX85: 0 | BY85: 0 | BZ85: 0 | CA85: 0 | CB85: 0 | CC85: 0 | CD85: 0 | CE85: 0 | CF85: 0 | CG85: 0 | CH85: 0 | CI85: 0 | CJ85: 0 | CK85: 0 | CL85: 0 | CM85: 0 | CN85: 0 | CO85: 0 | CP85: 0 | CQ85: 0 | CR85: 0 | CS85: 0 | CT85: 0 | CU85: 0 | CV85: 0 | CW85: 0 | CX85: 0 | CY85: 0 | CZ85: 0 | DA85: 0 | DB85: 0 | DC85: 0 | DD85: 0 | DE85: 0 | DF85: 0 | DG85: 0 | DH85: 0 | DI85: 0 | DJ85: 0 | DK85: 0 | DL85: 0 | DM85: 0 | DN85: 0 | DO85: 0 | DP85: 0 | DQ85: 0 | DR85: 0 | DS85: 0 | DT85: 0 | DU85: 0 | DV85: 0 | DW85: 0 | DX85: 0 | DY85: 0 | DZ85: 0 | EA85: 0 | EB85: 0 | EC85: 0 | ED85: 0 | EE85: 0 | EF85: 0 | EG85: 0 | EH85: =1/$F$85*EH5 -> 0 | EI85: 0 | EJ85: 0 | EK85: 0 | EL85: 0 | EM85: 0 | EN85: 0 | EO85: 0 | EP85: 0 | EQ85: 0 | ER85: 0 | ES85: 0 | ET85: 0 | EU85: 0 | EV85: 0 | EW85: 0 | EX85: 0 | EY85: 0 | EZ85: 0 | FA85: 0 | FB85: 0 | FC85: 0 | FD85: 0 | FE85: 0 | FF85: 0 | FG85: 0 | FH85: 0 | FI85: 0 | FJ85: 0 | FK85: 0 | FL85: 0 | FM85: 0 | FN85: 0 | FO85: 0 | FP85: 0 | FQ85: 0 | FR85: 0 | FS85: 0 | FT85: 0 | FU85: 0 | FV85: 0 | FW85: 0 | FX85: 0 | FY85: 0 | FZ85: 0 | GA85: 0 | GB85: 0 | GC85: 0 | GD85: 0 | GE85: 0 | GF85: 0 | GG85: 0 | GH85: 0 | GI85: 0 | GJ85: 0 | GK85: 0 | GL85: 0 | GM85: 0 | GN85: 0 | GO85: 0 | GP85: 0 | GQ85: 0 | GR85: 0 | GS85: 0 | GT85: =1/$F$85*GT5 -> 0 | GU85: 0 | GV85: 0 | GW85: 0 | GX85: 0 | GY85: 0 | GZ85: 0 | HA85: 0 | HB85: 0 | HC85: 0 | HD85: 0 | HE85: 0 | HF85: 0 | HG85: 0 | HH85: 0 | HI85: 0 | HJ85: 0 | HK85: 0 | HL85: 0 | HM85: 0 | HN85: 0 | HO85: 0 | HP85: 0 | HQ85: 0 | HR85: 0 | HS85: 0 | HT85: 0 | HU85: 0 | HV85: 0 | HW85: 0 | HX85: 0 | HY85: 0 | HZ85: 0 | IA85: 0 | IB85: 0 | IC85: 0 | ID85: 0 | IE85: 0 | IF85: 0 | IG85: 0 | IH85: 0 | II85: 0 | IJ85: 0 | IK85: 0 | IL85: 0 | IM85: 0 | IN85: 0 | IO85: 0 | IP85: 0 | IQ85: 0 | IR85: 0 | IS85: 0 | IT85: 0 | IU85: 0 | IV85: 0 | IW85: 0 | IX85: 0 | IY85: 0 | IZ85: 0 | JA85: 0 | JB85: 0 | JC85: 0 | JD85: 0 | JE85: 0 | JF85: =1/$F$85*JF5 -> 0 | JG85: 0 | JH85: 0 | JI85: 0 | JJ85: 0 | JK85: 0 | JL85: 0 | JM85: 0 | JN85: 0 | JO85: 0 | JP85: 0 | JQ85: 0 | JR85: 0 | JS85: 0 | JT85: 0 | JU85: 0 | JV85: 0 | JW85: 0 | JX85: 0 | JY85: 0 | JZ85: 0 | KA85: 0 | KB85: 0 | KC85: 0 | KD85: 0 | KE85: 0 | KF85: 0 | KG85: 0 | KH85: 0 | KI85: 0 | KJ85: 0 | KK85: 0 | KL85: 0 | KM85: 0 | KN85: 0 | KO85: 0 | KP85: 0 | KQ85: 0 | KR85: 0 | KS85: 0 | KT85: 0 | KU85: 0 | KV85: 0 | KW85: 0 | KX85: 0 | KY85: 0 | KZ85: 0 | LA85: 0 | LB85: 0 | LC85: 0 | LD85: 0 | LE85: 0 | LF85: 0 | LG85: 0 | LH85: 0 | LI85: 0 | LJ85: 0 | LK85: 0 | LL85: 0 | LM85: 0 | LN85: 0 | LO85: 0 | LP85: 0 | LQ85: 0 | LR85: =1/$F$85*LR5 -> 0 | LS85: 0 | LT85: 0 | LU85: 0 | LV85: 0 | LW85: 0 | LX85: 0 | LY85: 0 | LZ85: 0 | MA85: 0 | MB85: 0 | MC85: 0 | MD85: 0 | ME85: 0 | MF85: 0 | MG85: 0 | MH85: 0 | MI85: 0 | MJ85: 0 | MK85: 0 | ML85: 0 | MM85: 0 | MN85: 0 | MO85: 0 | MP85: 0 | MQ85: 0 | MR85: 0 | MS85: 0 | MT85: 0 | MU85: 0 | MV85: 0 | MW85: 0 | MX85: 0 | MY85: 0 | MZ85: 0 | NA85: 0 | NB85: 0 | NC85: 0 | ND85: 0 | NE85: 0 | NF85: 0 | NG85: 0 | NH85: 0 | NI85: 0 | NJ85: 0 | NK85: 0 | NL85: 0 | NM85: 0 | NN85: 0 | NO85: 0 | NP85: 0 | NQ85: 0 | NR85: 0 | NS85: 0 | NT85: 0 | NU85: 0 | NV85: 0
C86: Cap Exp per Period | E86: USD | J86: =J84*J85 -> 194800000 | K86: =K84*K85 -> 0 | L86: 0 | M86: 0 | N86: 0 | O86: 0 | P86: 0 | Q86: 0 | R86: 0 | S86: 0 | T86: 0 | U86: 0 | V86: 0 | W86: 0 | X86: 0 | Y86: 0 | Z86: 0 | AA86: 0 | AB86: 0 | AC86: 0 | AD86: 0 | AE86: 0 | AF86: 0 | AG86: 0 | AH86: 0 | AI86: 0 | AJ86: 0 | AK86: 0 | AL86: 0 | AM86: 0 | AN86: 0 | AO86: 0 | AP86: 0 | AQ86: 0 | AR86: 0 | AS86: 0 | AT86: 0 | AU86: 0 | AV86: 0 | AW86: 0 | AX86: 0 | AY86: 0 | AZ86: 0 | BA86: 0 | BB86: 0 | BC86: 0 | BD86: 0 | BE86: 0 | BF86: 0 | BG86: 0 | BH86: 0 | BI86: 0 | BJ86: 0 | BK86: 0 | BL86: 0 | BM86: 0 | BN86: 0 | BO86: 0 | BP86: 0 | BQ86: 0 | BR86: 0 | BS86: 0 | BT86: 0 | BU86: 0 | BV86: 0 | BW86: =BW84*BW85 -> 0 | BX86: 0 | BY86: 0 | BZ86: 0 | CA86: 0 | CB86: 0 | CC86: 0 | CD86: 0 | CE86: 0 | CF86: 0 | CG86: 0 | CH86: 0 | CI86: 0 | CJ86: 0 | CK86: 0 | CL86: 0 | CM86: 0 | CN86: 0 | CO86: 0 | CP86: 0 | CQ86: 0 | CR86: 0 | CS86: 0 | CT86: 0 | CU86: 0 | CV86: 0 | CW86: 0 | CX86: 0 | CY86: 0 | CZ86: 0 | DA86: 0 | DB86: 0 | DC86: 0 | DD86: 0 | DE86: 0 | DF86: 0 | DG86: 0 | DH86: 0 | DI86: 0 | DJ86: 0 | DK86: 0 | DL86: 0 | DM86: 0 | DN86: 0 | DO86: 0 | DP86: 0 | DQ86: 0 | DR86: 0 | DS86: 0 | DT86: 0 | DU86: 0 | DV86: 0 | DW86: 0 | DX86: 0 | DY86: 0 | DZ86: 0 | EA86: 0 | EB86: 0 | EC86: 0 | ED86: 0 | EE86: 0 | EF86: 0 | EG86: 0 | EH86: 0 | EI86: =EI84*EI85 -> 0 | EJ86: 0 | EK86: 0 | EL86: 0 | EM86: 0 | EN86: 0 | EO86: 0 | EP86: 0 | EQ86: 0 | ER86: 0 | ES86: 0 | ET86: 0 | EU86: 0 | EV86: 0 | EW86: 0 | EX86: 0 | EY86: 0 | EZ86: 0 | FA86: 0 | FB86: 0 | FC86: 0 | FD86: 0 | FE86: 0 | FF86: 0 | FG86: 0 | FH86: 0 | FI86: 0 | FJ86: 0 | FK86: 0 | FL86: 0 | FM86: 0 | FN86: 0 | FO86: 0 | FP86: 0 | FQ86: 0 | FR86: 0 | FS86: 0 | FT86: 0 | FU86: 0 | FV86: 0 | FW86: 0 | FX86: 0 | FY86: 0 | FZ86: 0 | GA86: 0 | GB86: 0 | GC86: 0 | GD86: 0 | GE86: 0 | GF86: 0 | GG86: 0 | GH86: 0 | GI86: 0 | GJ86: 0 | GK86: 0 | GL86: 0 | GM86: 0 | GN86: 0 | GO86: 0 | GP86: 0 | GQ86: 0 | GR86: 0 | GS86: 0 | GT86: 0 | GU86: =GU84*GU85 -> 0 | GV86: 0 | GW86: 0 | GX86: 0 | GY86: 0 | GZ86: 0 | HA86: 0 | HB86: 0 | HC86: 0 | HD86: 0 | HE86: 0 | HF86: 0 | HG86: 0 | HH86: 0 | HI86: 0 | HJ86: 0 | HK86: 0 | HL86: 0 | HM86: 0 | HN86: 0 | HO86: 0 | HP86: 0 | HQ86: 0 | HR86: 0 | HS86: 0 | HT86: 0 | HU86: 0 | HV86: 0 | HW86: 0 | HX86: 0 | HY86: 0 | HZ86: 0 | IA86: 0 | IB86: 0 | IC86: 0 | ID86: 0 | IE86: 0 | IF86: 0 | IG86: 0 | IH86: 0 | II86: 0 | IJ86: 0 | IK86: 0 | IL86: 0 | IM86: 0 | IN86: 0 | IO86: 0 | IP86: 0 | IQ86: 0 | IR86: 0 | IS86: 0 | IT86: 0 | IU86: 0 | IV86: 0 | IW86: 0 | IX86: 0 | IY86: 0 | IZ86: 0 | JA86: 0 | JB86: 0 | JC86: 0 | JD86: 0 | JE86: 0 | JF86: 0 | JG86: =JG84*JG85 -> 0 | JH86: 0 | JI86: 0 | JJ86: 0 | JK86: 0 | JL86: 0 | JM86: 0 | JN86: 0 | JO86: 0 | JP86: 0 | JQ86: 0 | JR86: 0 | JS86: 0 | JT86: 0 | JU86: 0 | JV86: 0 | JW86: 0 | JX86: 0 | JY86: 0 | JZ86: 0 | KA86: 0 | KB86: 0 | KC86: 0 | KD86: 0 | KE86: 0 | KF86: 0 | KG86: 0 | KH86: 0 | KI86: 0 | KJ86: 0 | KK86: 0 | KL86: 0 | KM86: 0 | KN86: 0 | KO86: 0 | KP86: 0 | KQ86: 0 | KR86: 0 | KS86: 0 | KT86: 0 | KU86: 0 | KV86: 0 | KW86: 0 | KX86: 0 | KY86: 0 | KZ86: 0 | LA86: 0 | LB86: 0 | LC86: 0 | LD86: 0 | LE86: 0 | LF86: 0 | LG86: 0 | LH86: 0 | LI86: 0 | LJ86: 0 | LK86: 0 | LL86: 0 | LM86: 0 | LN86: 0 | LO86: 0 | LP86: 0 | LQ86: 0 | LR86: 0 | LS86: =LS84*LS85 -> 0 | LT86: 0 | LU86: 0 | LV86: 0 | LW86: 0 | LX86: 0 | LY86: 0 | LZ86: 0 | MA86: 0 | MB86: 0 | MC86: 0 | MD86: 0 | ME86: 0 | MF86: 0 | MG86: 0 | MH86: 0 | MI86: 0 | MJ86: 0 | MK86: 0 | ML86: 0 | MM86: 0 | MN86: 0 | MO86: 0 | MP86: 0 | MQ86: 0 | MR86: 0 | MS86: 0 | MT86: 0 | MU86: 0 | MV86: 0 | MW86: 0 | MX86: 0 | MY86: 0 | MZ86: 0 | NA86: 0 | NB86: 0 | NC86: 0 | ND86: 0 | NE86: 0 | NF86: 0 | NG86: 0 | NH86: 0 | NI86: 0 | NJ86: 0 | NK86: 0 | NL86: 0 | NM86: 0 | NN86: 0 | NO86: 0 | NP86: 0 | NQ86: 0 | NR86: 0 | NS86: 0 | NT86: 0 | NU86: 0 | NV86: 0
C88: Month of Operation | J88: =I88+J6 -> 0 | K88: =J88+K6 -> 1 | L88: 2 | M88: 3 | N88: 4 | O88: 5 | P88: 6 | Q88: 7 | R88: 8 | S88: 9 | T88: 10 | U88: 11 | V88: 12 | W88: 13 | X88: 14 | Y88: 15 | Z88: 16 | AA88: 17 | AB88: 18 | AC88: 19 | AD88: 20 | AE88: 21 | AF88: 22 | AG88: 23 | AH88: 24 | AI88: 25 | AJ88: 25 | AK88: 25 | AL88: 25 | AM88: 25 | AN88: 25 | AO88: 25 | AP88: 25 | AQ88: 25 | AR88: 25 | AS88: 25 | AT88: 25 | AU88: 25 | AV88: 25 | AW88: 25 | AX88: 25 | AY88: 25 | AZ88: 25 | BA88: 25 | BB88: 25 | BC88: 25 | BD88: 25 | BE88: 25 | BF88: 25 | BG88: 25 | BH88: 25 | BI88: 25 | BJ88: 25 | BK88: 25 | BL88: 25 | BM88: 25 | BN88: 25 | BO88: 25 | BP88: 25 | BQ88: 25 | BR88: 25 | BS88: 25 | BT88: 25 | BU88: 25 | BV88: 25 | BW88: =BV88+BW6 -> 25 | BX88: 25 | BY88: 25 | BZ88: 25 | CA88: 25 | CB88: 25 | CC88: 25 | CD88: 25 | CE88: 25 | CF88: 25 | CG88: 25 | CH88: 25 | CI88: 25 | CJ88: 25 | CK88: 25 | CL88: 25 | CM88: 25 | CN88: 25 | CO88: 25 | CP88: 25 | CQ88: 25 | CR88: 25 | CS88: 25 | CT88: 25 | CU88: 25 | CV88: 25 | CW88: 25 | CX88: 25 | CY88: 25 | CZ88: 25 | DA88: 25 | DB88: 25 | DC88: 25 | DD88: 25 | DE88: 25 | DF88: 25 | DG88: 25 | DH88: 25 | DI88: 25 | DJ88: 25 | DK88: 25 | DL88: 25 | DM88: 25 | DN88: 25 | DO88: 25 | DP88: 25 | DQ88: 25 | DR88: 25 | DS88: 25 | DT88: 25 | DU88: 25 | DV88: 25 | DW88: 25 | DX88: 25 | DY88: 25 | DZ88: 25 | EA88: 25 | EB88: 25 | EC88: 25 | ED88: 25 | EE88: 25 | EF88: 25 | EG88: 25 | EH88: 25 | EI88: =EH88+EI6 -> 25 | EJ88: 25 | EK88: 25 | EL88: 25 | EM88: 25 | EN88: 25 | EO88: 25 | EP88: 25 | EQ88: 25 | ER88: 25 | ES88: 25 | ET88: 25 | EU88: 25 | EV88: 25 | EW88: 25 | EX88: 25 | EY88: 25 | EZ88: 25 | FA88: 25 | FB88: 25 | FC88: 25 | FD88: 25 | FE88: 25 | FF88: 25 | FG88: 25 | FH88: 25 | FI88: 25 | FJ88: 25 | FK88: 25 | FL88: 25 | FM88: 25 | FN88: 25 | FO88: 25 | FP88: 25 | FQ88: 25 | FR88: 25 | FS88: 25 | FT88: 25 | FU88: 25 | FV88: 25 | FW88: 25 | FX88: 25 | FY88: 25 | FZ88: 25 | GA88: 25 | GB88: 25 | GC88: 25 | GD88: 25 | GE88: 25 | GF88: 25 | GG88: 25 | GH88: 25 | GI88: 25 | GJ88: 25 | GK88: 25 | GL88: 25 | GM88: 25 | GN88: 25 | GO88: 25 | GP88: 25 | GQ88: 25 | GR88: 25 | GS88: 25 | GT88: 25 | GU88: =GT88+GU6 -> 25 | GV88: 25 | GW88: 25 | GX88: 25 | GY88: 25 | GZ88: 25 | HA88: 25 | HB88: 25 | HC88: 25 | HD88: 25 | HE88: 25 | HF88: 25 | HG88: 25 | HH88: 25 | HI88: 25 | HJ88: 25 | HK88: 25 | HL88: 25 | HM88: 25 | HN88: 25 | HO88: 25 | HP88: 25 | HQ88: 25 | HR88: 25 | HS88: 25 | HT88: 25 | HU88: 25 | HV88: 25 | HW88: 25 | HX88: 25 | HY88: 25 | HZ88: 25 | IA88: 25 | IB88: 25 | IC88: 25 | ID88: 25 | IE88: 25 | IF88: 25 | IG88: 25 | IH88: 25 | II88: 25 | IJ88: 25 | IK88: 25 | IL88: 25 | IM88: 25 | IN88: 25 | IO88: 25 | IP88: 25 | IQ88: 25 | IR88: 25 | IS88: 25 | IT88: 25 | IU88: 25 | IV88: 25 | IW88: 25 | IX88: 25 | IY88: 25 | IZ88: 25 | JA88: 25 | JB88: 25 | JC88: 25 | JD88: 25 | JE88: 25 | JF88: 25 | JG88: =JF88+JG6 -> 25 | JH88: 25 | JI88: 25 | JJ88: 25 | JK88: 25 | JL88: 25 | JM88: 25 | JN88: 25 | JO88: 25 | JP88: 25 | JQ88: 25 | JR88: 25 | JS88: 25 | JT88: 25 | JU88: 25 | JV88: 25 | JW88: 25 | JX88: 25 | JY88: 25 | JZ88: 25 | KA88: 25 | KB88: 25 | KC88: 25 | KD88: 25 | KE88: 25 | KF88: 25 | KG88: 25 | KH88: 25 | KI88: 25 | KJ88: 25 | KK88: 25 | KL88: 25 | KM88: 25 | KN88: 25 | KO88: 25 | KP88: 25 | KQ88: 25 | KR88: 25 | KS88: 25 | KT88: 25 | KU88: 25 | KV88: 25 | KW88: 25 | KX88: 25 | KY88: 25 | KZ88: 25 | LA88: 25 | LB88: 25 | LC88: 25 | LD88: 25 | LE88: 25 | LF88: 25 | LG88: 25 | LH88: 25 | LI88: 25 | LJ88: 25 | LK88: 25 | LL88: 25 | LM88: 25 | LN88: 25 | LO88: 25 | LP88: 25 | LQ88: 25 | LR88: 25 | LS88: =LR88+LS6 -> 25 | LT88: 25 | LU88: 25 | LV88: 25 | LW88: 25 | LX88: 25 | LY88: 25 | LZ88: 25 | MA88: 25 | MB88: 25 | MC88: 25 | MD88: 25 | ME88: 25 | MF88: 25 | MG88: 25 | MH88: 25 | MI88: 25 | MJ88: 25 | MK88: 25 | ML88: 25 | MM88: 25 | MN88: 25 | MO88: 25 | MP88: 25 | MQ88: 25 | MR88: 25 | MS88: 25 | MT88: 25 | MU88: 25 | MV88: 25 | MW88: 25 | MX88: 25 | MY88: 25 | MZ88: 25 | NA88: 25 | NB88: 25 | NC88: 25 | ND88: 25 | NE88: 25 | NF88: 25 | NG88: 25 | NH88: 25 | NI88: 25 | NJ88: 25 | NK88: 25 | NL88: 25 | NM88: 25 | NN88: 25 | NO88: 25 | NP88: 25 | NQ88: 25 | NR88: 25 | NS88: 25 | NT88: 25 | NU88: 25 | NV88: 25
C89: Year of Operation | J89: =ROUNDUP(J88/12,0) -> 0 | K89: =ROUNDUP(K88/12,0) -> 1 | L89: 1 | M89: 1 | N89: 1 | O89: 1 | P89: 1 | Q89: 1 | R89: 1 | S89: 1 | T89: 1 | U89: 1 | V89: =ROUNDUP(V88/12,0) -> 1 | W89: 2 | X89: 2 | Y89: 2 | Z89: 2 | AA89: 2 | AB89: 2 | AC89: 2 | AD89: 2 | AE89: 2 | AF89: 2 | AG89: 2 | AH89: =ROUNDUP(AH88/12,0) -> 2 | AI89: 3 | AJ89: 3 | AK89: 3 | AL89: 3 | AM89: 3 | AN89: 3 | AO89: 3 | AP89: 3 | AQ89: 3 | AR89: 3 | AS89: 3 | AT89: 3 | AU89: 3 | AV89: 3 | AW89: 3 | AX89: 3 | AY89: 3 | AZ89: 3 | BA89: 3 | BB89: 3 | BC89: 3 | BD89: 3 | BE89: 3 | BF89: 3 | BG89: 3 | BH89: 3 | BI89: 3 | BJ89: 3 | BK89: 3 | BL89: 3 | BM89: 3 | BN89: 3 | BO89: 3 | BP89: 3 | BQ89: 3 | BR89: 3 | BS89: 3 | BT89: 3 | BU89: 3 | BV89: 3 | BW89: =ROUNDUP(BW88/12,0) -> 3 | BX89: 3 | BY89: 3 | BZ89: 3 | CA89: 3 | CB89: 3 | CC89: 3 | CD89: 3 | CE89: 3 | CF89: 3 | CG89: 3 | CH89: 3 | CI89: 3 | CJ89: 3 | CK89: 3 | CL89: 3 | CM89: 3 | CN89: 3 | CO89: 3 | CP89: 3 | CQ89: 3 | CR89: 3 | CS89: 3 | CT89: 3 | CU89: 3 | CV89: 3 | CW89: 3 | CX89: 3 | CY89: 3 | CZ89: 3 | DA89: 3 | DB89: 3 | DC89: 3 | DD89: 3 | DE89: 3 | DF89: 3 | DG89: 3 | DH89: 3 | DI89: 3 | DJ89: 3 | DK89: 3 | DL89: 3 | DM89: 3 | DN89: 3 | DO89: 3 | DP89: 3 | DQ89: 3 | DR89: 3 | DS89: 3 | DT89: 3 | DU89: 3 | DV89: 3 | DW89: 3 | DX89: 3 | DY89: 3 | DZ89: 3 | EA89: 3 | EB89: 3 | EC89: 3 | ED89: 3 | EE89: 3 | EF89: 3 | EG89: 3 | EH89: 3 | EI89: =ROUNDUP(EI88/12,0) -> 3 | EJ89: 3 | EK89: 3 | EL89: 3 | EM89: 3 | EN89: 3 | EO89: 3 | EP89: 3 | EQ89: 3 | ER89: 3 | ES89: 3 | ET89: 3 | EU89: 3 | EV89: 3 | EW89: 3 | EX89: 3 | EY89: 3 | EZ89: 3 | FA89: 3 | FB89: 3 | FC89: 3 | FD89: 3 | FE89: 3 | FF89: 3 | FG89: 3 | FH89: 3 | FI89: 3 | FJ89: 3 | FK89: 3 | FL89: 3 | FM89: 3 | FN89: 3 | FO89: 3 | FP89: 3 | FQ89: 3 | FR89: 3 | FS89: 3 | FT89: 3 | FU89: 3 | FV89: 3 | FW89: 3 | FX89: 3 | FY89: 3 | FZ89: 3 | GA89: 3 | GB89: 3 | GC89: 3 | GD89: 3 | GE89: 3 | GF89: 3 | GG89: 3 | GH89: 3 | GI89: 3 | GJ89: 3 | GK89: 3 | GL89: 3 | GM89: 3 | GN89: 3 | GO89: 3 | GP89: 3 | GQ89: 3 | GR89: 3 | GS89: 3 | GT89: 3 | GU89: =ROUNDUP(GU88/12,0) -> 3 | GV89: 3 | GW89: 3 | GX89: 3 | GY89: 3 | GZ89: 3 | HA89: 3 | HB89: 3 | HC89: 3 | HD89: 3 | HE89: 3 | HF89: 3 | HG89: 3 | HH89: 3 | HI89: 3 | HJ89: 3 | HK89: 3 | HL89: 3 | HM89: 3 | HN89: 3 | HO89: 3 | HP89: 3 | HQ89: 3 | HR89: 3 | HS89: 3 | HT89: 3 | HU89: 3 | HV89: 3 | HW89: 3 | HX89: 3 | HY89: 3 | HZ89: 3 | IA89: 3 | IB89: 3 | IC89: 3 | ID89: 3 | IE89: 3 | IF89: 3 | IG89: 3 | IH89: 3 | II89: 3 | IJ89: 3 | IK89: 3 | IL89: 3 | IM89: 3 | IN89: 3 | IO89: 3 | IP89: 3 | IQ89: 3 | IR89: 3 | IS89: 3 | IT89: 3 | IU89: 3 | IV89: 3 | IW89: 3 | IX89: 3 | IY89: 3 | IZ89: 3 | JA89: 3 | JB89: 3 | JC89: 3 | JD89: 3 | JE89: 3 | JF89: 3 | JG89: =ROUNDUP(JG88/12,0) -> 3 | JH89: 3 | JI89: 3 | JJ89: 3 | JK89: 3 | JL89: 3 | JM89: 3 | JN89: 3 | JO89: 3 | JP89: 3 | JQ89: 3 | JR89: 3 | JS89: 3 | JT89: 3 | JU89: 3 | JV89: 3 | JW89: 3 | JX89: 3 | JY89: 3 | JZ89: 3 | KA89: 3 | KB89: 3 | KC89: 3 | KD89: 3 | KE89: 3 | KF89: 3 | KG89: 3 | KH89: 3 | KI89: 3 | KJ89: 3 | KK89: 3 | KL89: 3 | KM89: 3 | KN89: 3 | KO89: 3 | KP89: 3 | KQ89: 3 | KR89: 3 | KS89: 3 | KT89: 3 | KU89: 3 | KV89: 3 | KW89: 3 | KX89: 3 | KY89: 3 | KZ89: 3 | LA89: 3 | LB89: 3 | LC89: 3 | LD89: 3 | LE89: 3 | LF89: 3 | LG89: 3 | LH89: 3 | LI89: 3 | LJ89: 3 | LK89: 3 | LL89: 3 | LM89: 3 | LN89: 3 | LO89: 3 | LP89: 3 | LQ89: 3 | LR89: 3 | LS89: =ROUNDUP(LS88/12,0) -> 3 | LT89: 3 | LU89: 3 | LV89: 3 | LW89: 3 | LX89: 3 | LY89: 3 | LZ89: 3 | MA89: 3 | MB89: 3 | MC89: 3 | MD89: 3 | ME89: 3 | MF89: 3 | MG89: 3 | MH89: 3 | MI89: 3 | MJ89: 3 | MK89: 3 | ML89: 3 | MM89: 3 | MN89: 3 | MO89: 3 | MP89: 3 | MQ89: 3 | MR89: 3 | MS89: 3 | MT89: 3 | MU89: 3 | MV89: 3 | MW89: 3 | MX89: 3 | MY89: 3 | MZ89: 3 | NA89: 3 | NB89: 3 | NC89: 3 | ND89: 3 | NE89: 3 | NF89: 3 | NG89: 3 | NH89: 3 | NI89: 3 | NJ89: 3 | NK89: 3 | NL89: 3 | NM89: 3 | NN89: 3 | NO89: 3 | NP89: 3 | NQ89: 3 | NR89: 3 | NS89: 3 | NT89: 3 | NU89: 3 | NV89: 3
C91: Date of Replacment | J91: =IF(ISNUMBER(MATCH(J4,53:53,0)),TRUE,FALSE)*1 -> 1 | K91: =IF(ISNUMBER(MATCH(K4,53:53,0)),TRUE,FALSE)*1 -> 1 | L91: 0 | M91: 0 | N91: 0 | O91: 0 | P91: 0 | Q91: 0 | R91: 0 | S91: 0 | T91: 0 | U91: 1 | V91: 0 | W91: 0 | X91: 0 | Y91: 0 | Z91: 0 | AA91: 0 | AB91: 0 | AC91: 0 | AD91: 0 | AE91: 1 | AF91: 0 | AG91: 0 | AH91: 0 | AI91: 0 | AJ91: 0 | AK91: 0 | AL91: 0 | AM91: 0 | AN91: 0 | AO91: 1 | AP91: 0 | AQ91: 0 | AR91: 0 | AS91: 0 | AT91: 0 | AU91: 0 | AV91: 0 | AW91: 0 | AX91: 0 | AY91: 1 | AZ91: 0 | BA91: 0 | BB91: 0 | BC91: 0 | BD91: 0 | BE91: 0 | BF91: 0 | BG91: 0 | BH91: 0 | BI91: 0 | BJ91: 0 | BK91: 0 | BL91: 0 | BM91: 0 | BN91: 0 | BO91: 0 | BP91: 0 | BQ91: 0 | BR91: 0 | BS91: 0 | BT91: 0 | BU91: 0 | BV91: 0 | BW91: =IF(ISNUMBER(MATCH(BW4,53:53,0)),TRUE,FALSE)*1 -> 0 | BX91: 0 | BY91: 0 | BZ91: 0 | CA91: 0 | CB91: 0 | CC91: 0 | CD91: 0 | CE91: 0 | CF91: 0 | CG91: 0 | CH91: 0 | CI91: 0 | CJ91: 0 | CK91: 0 | CL91: 0 | CM91: 0 | CN91: 0 | CO91: 0 | CP91: 0 | CQ91: 0 | CR91: 0 | CS91: 0 | CT91: 0 | CU91: 0 | CV91: 0 | CW91: 0 | CX91: 0 | CY91: 0 | CZ91: 0 | DA91: 0 | DB91: 0 | DC91: 0 | DD91: 0 | DE91: 0 | DF91: 0 | DG91: 0 | DH91: 0 | DI91: 0 | DJ91: 0 | DK91: 0 | DL91: 0 | DM91: 0 | DN91: 0 | DO91: 0 | DP91: 0 | DQ91: 0 | DR91: 0 | DS91: 0 | DT91: 0 | DU91: 0 | DV91: 0 | DW91: 0 | DX91: 0 | DY91: 0 | DZ91: 0 | EA91: 0 | EB91: 0 | EC91: 0 | ED91: 0 | EE91: 0 | EF91: 0 | EG91: 0 | EH91: 0 | EI91: =IF(ISNUMBER(MATCH(EI4,53:53,0)),TRUE,FALSE)*1 -> 0 | EJ91: 0 | EK91: 0 | EL91: 0 | EM91: 0 | EN91: 0 | EO91: 0 | EP91: 0 | EQ91: 0 | ER91: 0 | ES91: 0 | ET91: 0 | EU91: 0 | EV91: 0 | EW91: 0 | EX91: 0 | EY91: 0 | EZ91: 0 | FA91: 0 | FB91: 0 | FC91: 0 | FD91: 0 | FE91: 0 | FF91: 0 | FG91: 0 | FH91: 0 | FI91: 0 | FJ91: 0 | FK91: 0 | FL91: 0 | FM91: 0 | FN91: 0 | FO91: 0 | FP91: 0 | FQ91: 0 | FR91: 0 | FS91: 0 | FT91: 0 | FU91: 0 | FV91: 0 | FW91: 0 | FX91: 0 | FY91: 0 | FZ91: 0 | GA91: 0 | GB91: 0 | GC91: 0 | GD91: 0 | GE91: 0 | GF91: 0 | GG91: 0 | GH91: 0 | GI91: 0 | GJ91: 0 | GK91: 0 | GL91: 0 | GM91: 0 | GN91: 0 | GO91: 0 | GP91: 0 | GQ91: 0 | GR91: 0 | GS91: 0 | GT91: 0 | GU91: =IF(ISNUMBER(MATCH(GU4,53:53,0)),TRUE,FALSE)*1 -> 0 | GV91: 0 | GW91: 0 | GX91: 0 | GY91: 0 | GZ91: 0 | HA91: 0 | HB91: 0 | HC91: 0 | HD91: 0 | HE91: 0 | HF91: 0 | HG91: 0 | HH91: 0 | HI91: 0 | HJ91: 0 | HK91: 0 | HL91: 0 | HM91: 0 | HN91: 0 | HO91: 0 | HP91: 0 | HQ91: 0 | HR91: 0 | HS91: 0 | HT91: 0 | HU91: 0 | HV91: 0 | HW91: 0 | HX91: 0 | HY91: 0 | HZ91: 0 | IA91: 0 | IB91: 0 | IC91: 0 | ID91: 0 | IE91: 0 | IF91: 0 | IG91: 0 | IH91: 0 | II91: 0 | IJ91: 0 | IK91: 0 | IL91: 0 | IM91: 0 | IN91: 0 | IO91: 0 | IP91: 0 | IQ91: 0 | IR91: 0 | IS91: 0 | IT91: 0 | IU91: 0 | IV91: 0 | IW91: 0 | IX91: 0 | IY91: 0 | IZ91: 0 | JA91: 0 | JB91: 0 | JC91: 0 | JD91: 0 | JE91: 0 | JF91: 0 | JG91: =IF(ISNUMBER(MATCH(JG4,53:53,0)),TRUE,FALSE)*1 -> 0 | JH91: 0 | JI91: 0 | JJ91: 0 | JK91: 0 | JL91: 0 | JM91: 0 | JN91: 0 | JO91: 0 | JP91: 0 | JQ91: 0 | JR91: 0 | JS91: 0 | JT91: 0 | JU91: 0 | JV91: 0 | JW91: 0 | JX91: 0 | JY91: 0 | JZ91: 0 | KA91: 0 | KB91: 0 | KC91: 0 | KD91: 0 | KE91: 0 | KF91: 0 | KG91: 0 | KH91: 0 | KI91: 0 | KJ91: 0 | KK91: 0 | KL91: 0 | KM91: 0 | KN91: 0 | KO91: 0 | KP91: 0 | KQ91: 0 | KR91: 0 | KS91: 0 | KT91: 0 | KU91: 0 | KV91: 0 | KW91: 0 | KX91: 0 | KY91: 0 | KZ91: 0 | LA91: 0 | LB91: 0 | LC91: 0 | LD91: 0 | LE91: 0 | LF91: 0 | LG91: 0 | LH91: 0 | LI91: 0 | LJ91: 0 | LK91: 0 | LL91: 0 | LM91: 0 | LN91: 0 | LO91: 0 | LP91: 0 | LQ91: 0 | LR91: 0 | LS91: =IF(ISNUMBER(MATCH(LS4,53:53,0)),TRUE,FALSE)*1 -> 0 | LT91: 0 | LU91: 0 | LV91: 0 | LW91: 0 | LX91: 0 | LY91: 0 | LZ91: 0 | MA91: 0 | MB91: 0 | MC91: 0 | MD91: 0 | ME91: 0 | MF91: 0 | MG91: 0 | MH91: 0 | MI91: 0 | MJ91: 0 | MK91: 0 | ML91: 0 | MM91: 0 | MN91: 0 | MO91: 0 | MP91: 0 | MQ91: 0 | MR91: 0 | MS91: 0 | MT91: 0 | MU91: 0 | MV91: 0 | MW91: 0 | MX91: 0 | MY91: 0 | MZ91: 0 | NA91: 0 | NB91: 0 | NC91: 0 | ND91: 0 | NE91: 0 | NF91: 0 | NG91: 0 | NH91: 0 | NI91: 0 | NJ91: 0 | NK91: 0 | NL91: 0 | NM91: 0 | NN91: 0 | NO91: 0 | NP91: 0 | NQ91: 0 | NR91: 0 | NS91: 0 | NT91: 0 | NU91: 0 | NV91: 0
C92: Replacement Cost | J92: =LOOKUP(J4,53:53,54:54)*J91 -> 0 | K92: =LOOKUP(K4,53:53,54:54)*K91 -> 0 | L92: 0 | M92: 0 | N92: 0 | O92: 0 | P92: 0 | Q92: 0 | R92: 0 | S92: 0 | T92: 0 | U92: 58381560 | V92: 0 | W92: 0 | X92: 0 | Y92: 0 | Z92: 0 | AA92: 0 | AB92: 0 | AC92: 0 | AD92: 0 | AE92: 58323120 | AF92: 0 | AG92: 0 | AH92: 0 | AI92: 0 | AJ92: 0 | AK92: 0 | AL92: 0 | AM92: 0 | AN92: 0 | AO92: 0 | AP92: 0 | AQ92: 0 | AR92: 0 | AS92: 0 | AT92: 0 | AU92: 0 | AV92: 0 | AW92: 0 | AX92: 0 | AY92: 0 | AZ92: 0 | BA92: 0 | BB92: 0 | BC92: 0 | BD92: 0 | BE92: 0 | BF92: 0 | BG92: 0 | BH92: 0 | BI92: 0 | BJ92: 0 | BK92: 0 | BL92: 0 | BM92: 0 | BN92: 0 | BO92: 0 | BP92: 0 | BQ92: 0 | BR92: 0 | BS92: 0 | BT92: 0 | BU92: 0 | BV92: 0 | BW92: =LOOKUP(BW4,53:53,54:54)*BW91 -> 0 | BX92: 0 | BY92: 0 | BZ92: 0 | CA92: 0 | CB92: 0 | CC92: 0 | CD92: 0 | CE92: 0 | CF92: 0 | CG92: 0 | CH92: 0 | CI92: 0 | CJ92: 0 | CK92: 0 | CL92: 0 | CM92: 0 | CN92: 0 | CO92: 0 | CP92: 0 | CQ92: 0 | CR92: 0 | CS92: 0 | CT92: 0 | CU92: 0 | CV92: 0 | CW92: 0 | CX92: 0 | CY92: 0 | CZ92: 0 | DA92: 0 | DB92: 0 | DC92: 0 | DD92: 0 | DE92: 0 | DF92: 0 | DG92: 0 | DH92: 0 | DI92: 0 | DJ92: 0 | DK92: 0 | DL92: 0 | DM92: 0 | DN92: 0 | DO92: 0 | DP92: 0 | DQ92: 0 | DR92: 0 | DS92: 0 | DT92: 0 | DU92: 0 | DV92: 0 | DW92: 0 | DX92: 0 | DY92: 0 | DZ92: 0 | EA92: 0 | EB92: 0 | EC92: 0 | ED92: 0 | EE92: 0 | EF92: 0 | EG92: 0 | EH92: 0 | EI92: =LOOKUP(EI4,53:53,54:54)*EI91 -> 0 | EJ92: 0 | EK92: 0 | EL92: 0 | EM92: 0 | EN92: 0 | EO92: 0 | EP92: 0 | EQ92: 0 | ER92: 0 | ES92: 0 | ET92: 0 | EU92: 0 | EV92: 0 | EW92: 0 | EX92: 0 | EY92: 0 | EZ92: 0 | FA92: 0 | FB92: 0 | FC92: 0 | FD92: 0 | FE92: 0 | FF92: 0 | FG92: 0 | FH92: 0 | FI92: 0 | FJ92: 0 | FK92: 0 | FL92: 0 | FM92: 0 | FN92: 0 | FO92: 0 | FP92: 0 | FQ92: 0 | FR92: 0 | FS92: 0 | FT92: 0 | FU92: 0 | FV92: 0 | FW92: 0 | FX92: 0 | FY92: 0 | FZ92: 0 | GA92: 0 | GB92: 0 | GC92: 0 | GD92: 0 | GE92: 0 | GF92: 0 | GG92: 0 | GH92: 0 | GI92: 0 | GJ92: 0 | GK92: 0 | GL92: 0 | GM92: 0 | GN92: 0 | GO92: 0 | GP92: 0 | GQ92: 0 | GR92: 0 | GS92: 0 | GT92: 0 | GU92: =LOOKUP(GU4,53:53,54:54)*GU91 -> 0 | GV92: 0 | GW92: 0 | GX92: 0 | GY92: 0 | GZ92: 0 | HA92: 0 | HB92: 0 | HC92: 0 | HD92: 0 | HE92: 0 | HF92: 0 | HG92: 0 | HH92: 0 | HI92: 0 | HJ92: 0 | HK92: 0 | HL92: 0 | HM92: 0 | HN92: 0 | HO92: 0 | HP92: 0 | HQ92: 0 | HR92: 0 | HS92: 0 | HT92: 0 | HU92: 0 | HV92: 0 | HW92: 0 | HX92: 0 | HY92: 0 | HZ92: 0 | IA92: 0 | IB92: 0 | IC92: 0 | ID92: 0 | IE92: 0 | IF92: 0 | IG92: 0 | IH92: 0 | II92: 0 | IJ92: 0 | IK92: 0 | IL92: 0 | IM92: 0 | IN92: 0 | IO92: 0 | IP92: 0 | IQ92: 0 | IR92: 0 | IS92: 0 | IT92: 0 | IU92: 0 | IV92: 0 | IW92: 0 | IX92: 0 | IY92: 0 | IZ92: 0 | JA92: 0 | JB92: 0 | JC92: 0 | JD92: 0 | JE92: 0 | JF92: 0 | JG92: =LOOKUP(JG4,53:53,54:54)*JG91 -> 0 | JH92: 0 | JI92: 0 | JJ92: 0 | JK92: 0 | JL92: 0 | JM92: 0 | JN92: 0 | JO92: 0 | JP92: 0 | JQ92: 0 | JR92: 0 | JS92: 0 | JT92: 0 | JU92: 0 | JV92: 0 | JW92: 0 | JX92: 0 | JY92: 0 | JZ92: 0 | KA92: 0 | KB92: 0 | KC92: 0 | KD92: 0 | KE92: 0 | KF92: 0 | KG92: 0 | KH92: 0 | KI92: 0 | KJ92: 0 | KK92: 0 | KL92: 0 | KM92: 0 | KN92: 0 | KO92: 0 | KP92: 0 | KQ92: 0 | KR92: 0 | KS92: 0 | KT92: 0 | KU92: 0 | KV92: 0 | KW92: 0 | KX92: 0 | KY92: 0 | KZ92: 0 | LA92: 0 | LB92: 0 | LC92: 0 | LD92: 0 | LE92: 0 | LF92: 0 | LG92: 0 | LH92: 0 | LI92: 0 | LJ92: 0 | LK92: 0 | LL92: 0 | LM92: 0 | LN92: 0 | LO92: 0 | LP92: 0 | LQ92: 0 | LR92: 0 | LS92: =LOOKUP(LS4,53:53,54:54)*LS91 -> 0 | LT92: 0 | LU92: 0 | LV92: 0 | LW92: 0 | LX92: 0 | LY92: 0 | LZ92: 0 | MA92: 0 | MB92: 0 | MC92: 0 | MD92: 0 | ME92: 0 | MF92: 0 | MG92: 0 | MH92: 0 | MI92: 0 | MJ92: 0 | MK92: 0 | ML92: 0 | MM92: 0 | MN92: 0 | MO92: 0 | MP92: 0 | MQ92: 0 | MR92: 0 | MS92: 0 | MT92: 0 | MU92: 0 | MV92: 0 | MW92: 0 | MX92: 0 | MY92: 0 | MZ92: 0 | NA92: 0 | NB92: 0 | NC92: 0 | ND92: 0 | NE92: 0 | NF92: 0 | NG92: 0 | NH92: 0 | NI92: 0 | NJ92: 0 | NK92: 0 | NL92: 0 | NM92: 0 | NN92: 0 | NO92: 0 | NP92: 0 | NQ92: 0 | NR92: 0 | NS92: 0 | NT92: 0 | NU92: 0 | NV92: 0
C94: Pre-Tax Cash Flow | J94: =J81-J86-J92 -> -194800000 | K94: =K81-K86-K92 -> -18224533.15 | L94: -18182722.96 | M94: -18182722.96 | N94: -18182722.96 | O94: -18224533.15 | P94: -18182722.96 | Q94: -18182722.96 | R94: -18182722.96 | S94: -18224533.15 | T94: -18182722.96 | U94: -76564282.96 | V94: -18182722.96 | W94: -18224533.15 | X94: -18182722.96 | Y94: -18182722.96 | Z94: -18182722.96 | AA94: -18224533.15 | AB94: -18182722.96 | AC94: -18182722.96 | AD94: -18182722.96 | AE94: -76547653.15 | AF94: -18182722.96 | AG94: -18182722.96 | AH94: -18182722.96 | AI94: -18224533.15 | AJ94: 0 | AK94: 0 | AL94: 0 | AM94: 0 | AN94: 0 | AO94: 0 | AP94: 0 | AQ94: 0 | AR94: 0 | AS94: 0 | AT94: 0 | AU94: 0 | AV94: 0 | AW94: 0 | AX94: 0 | AY94: 0 | AZ94: 0 | BA94: 0 | BB94: 0 | BC94: 0 | BD94: 0 | BE94: 0 | BF94: 0 | BG94: 0 | BH94: 0 | BI94: 0 | BJ94: 0 | BK94: 0 | BL94: 0 | BM94: 0 | BN94: 0 | BO94: 0 | BP94: 0 | BQ94: 0 | BR94: 0 | BS94: 0 | BT94: 0 | BU94: 0 | BV94: 0 | BW94: =BW81-BW86-BW92 -> 0 | BX94: 0 | BY94: 0 | BZ94: 0 | CA94: 0 | CB94: 0 | CC94: 0 | CD94: 0 | CE94: 0 | CF94: 0 | CG94: 0 | CH94: 0 | CI94: 0 | CJ94: 0 | CK94: 0 | CL94: 0 | CM94: 0 | CN94: 0 | CO94: 0 | CP94: 0 | CQ94: 0 | CR94: 0 | CS94: 0 | CT94: 0 | CU94: 0 | CV94: 0 | CW94: 0 | CX94: 0 | CY94: 0 | CZ94: 0 | DA94: 0 | DB94: 0 | DC94: 0 | DD94: 0 | DE94: 0 | DF94: 0 | DG94: 0 | DH94: 0 | DI94: 0 | DJ94: 0 | DK94: 0 | DL94: 0 | DM94: 0 | DN94: 0 | DO94: 0 | DP94: 0 | DQ94: 0 | DR94: 0 | DS94: 0 | DT94: 0 | DU94: 0 | DV94: 0 | DW94: 0 | DX94: 0 | DY94: 0 | DZ94: 0 | EA94: 0 | EB94: 0 | EC94: 0 | ED94: 0 | EE94: 0 | EF94: 0 | EG94: 0 | EH94: 0 | EI94: =EI81-EI86-EI92 -> 0 | EJ94: 0 | EK94: 0 | EL94: 0 | EM94: 0 | EN94: 0 | EO94: 0 | EP94: 0 | EQ94: 0 | ER94: 0 | ES94: 0 | ET94: 0 | EU94: 0 | EV94: 0 | EW94: 0 | EX94: 0 | EY94: 0 | EZ94: 0 | FA94: 0 | FB94: 0 | FC94: 0 | FD94: 0 | FE94: 0 | FF94: 0 | FG94: 0 | FH94: 0 | FI94: 0 | FJ94: 0 | FK94: 0 | FL94: 0 | FM94: 0 | FN94: 0 | FO94: 0 | FP94: 0 | FQ94: 0 | FR94: 0 | FS94: 0 | FT94: 0 | FU94: 0 | FV94: 0 | FW94: 0 | FX94: 0 | FY94: 0 | FZ94: 0 | GA94: 0 | GB94: 0 | GC94: 0 | GD94: 0 | GE94: 0 | GF94: 0 | GG94: 0 | GH94: 0 | GI94: 0 | GJ94: 0 | GK94: 0 | GL94: 0 | GM94: 0 | GN94: 0 | GO94: 0 | GP94: 0 | GQ94: 0 | GR94: 0 | GS94: 0 | GT94: 0 | GU94: =GU81-GU86-GU92 -> 0 | GV94: 0 | GW94: 0 | GX94: 0 | GY94: 0 | GZ94: 0 | HA94: 0 | HB94: 0 | HC94: 0 | HD94: 0 | HE94: 0 | HF94: 0 | HG94: 0 | HH94: 0 | HI94: 0 | HJ94: 0 | HK94: 0 | HL94: 0 | HM94: 0 | HN94: 0 | HO94: 0 | HP94: 0 | HQ94: 0 | HR94: 0 | HS94: 0 | HT94: 0 | HU94: 0 | HV94: 0 | HW94: 0 | HX94: 0 | HY94: 0 | HZ94: 0 | IA94: 0 | IB94: 0 | IC94: 0 | ID94: 0 | IE94: 0 | IF94: 0 | IG94: 0 | IH94: 0 | II94: 0 | IJ94: 0 | IK94: 0 | IL94: 0 | IM94: 0 | IN94: 0 | IO94: 0 | IP94: 0 | IQ94: 0 | IR94: 0 | IS94: 0 | IT94: 0 | IU94: 0 | IV94: 0 | IW94: 0 | IX94: 0 | IY94: 0 | IZ94: 0 | JA94: 0 | JB94: 0 | JC94: 0 | JD94: 0 | JE94: 0 | JF94: 0 | JG94: =JG81-JG86-JG92 -> 0 | JH94: 0 | JI94: 0 | JJ94: 0 | JK94: 0 | JL94: 0 | JM94: 0 | JN94: 0 | JO94: 0 | JP94: 0 | JQ94: 0 | JR94: 0 | JS94: 0 | JT94: 0 | JU94: 0 | JV94: 0 | JW94: 0 | JX94: 0 | JY94: 0 | JZ94: 0 | KA94: 0 | KB94: 0 | KC94: 0 | KD94: 0 | KE94: 0 | KF94: 0 | KG94: 0 | KH94: 0 | KI94: 0 | KJ94: 0 | KK94: 0 | KL94: 0 | KM94: 0 | KN94: 0 | KO94: 0 | KP94: 0 | KQ94: 0 | KR94: 0 | KS94: 0 | KT94: 0 | KU94: 0 | KV94: 0 | KW94: 0 | KX94: 0 | KY94: 0 | KZ94: 0 | LA94: 0 | LB94: 0 | LC94: 0 | LD94: 0 | LE94: 0 | LF94: 0 | LG94: 0 | LH94: 0 | LI94: 0 | LJ94: 0 | LK94: 0 | LL94: 0 | LM94: 0 | LN94: 0 | LO94: 0 | LP94: 0 | LQ94: 0 | LR94: 0 | LS94: =LS81-LS86-LS92 -> 0 | LT94: 0 | LU94: 0 | LV94: 0 | LW94: 0 | LX94: 0 | LY94: 0 | LZ94: 0 | MA94: 0 | MB94: 0 | MC94: 0 | MD94: 0 | ME94: 0 | MF94: 0 | MG94: 0 | MH94: 0 | MI94: 0 | MJ94: 0 | MK94: 0 | ML94: 0 | MM94: 0 | MN94: 0 | MO94: 0 | MP94: 0 | MQ94: 0 | MR94: 0 | MS94: 0 | MT94: 0 | MU94: 0 | MV94: 0 | MW94: 0 | MX94: 0 | MY94: 0 | MZ94: 0 | NA94: 0 | NB94: 0 | NC94: 0 | ND94: 0 | NE94: 0 | NF94: 0 | NG94: 0 | NH94: 0 | NI94: 0 | NJ94: 0 | NK94: 0 | NL94: 0 | NM94: 0 | NN94: 0 | NO94: 0 | NP94: 0 | NQ94: 0 | NR94: 0 | NS94: 0 | NT94: 0 | NU94: 0 | NV94: 0
C95: Pre-Tax IRR | F95: =XIRR(J94:NV94,J4:NV4) -> 
C97: Target IRR | F97: ='Levelized Cost'!F63 -> 0.07
C98: NPV at Target IRR | F98: =XNPV(F97,J94:NV94,J4:NV4) -> -448528714.6 | G98: Target_NPV
